Vendor,Category,Amount Paid,Payment Date
10 S. Riverside Property Owner LLC,Rental Expense,892.2,1/15/2021
10 S. Riverside Property Owner LLC,Rental Expense,12157.16,1/15/2021
10 S. Riverside Property Owner LLC,Rental Expense,10873.06,1/22/2021
10 S. Riverside Property Owner LLC,Rental Expense,764.4,2/22/2021
10 S. Riverside Property Owner LLC,Rental Expense,10873.06,2/22/2021
10 S. Riverside Property Owner LLC,Rental Expense,764.4,3/19/2021
10 S. Riverside Property Owner LLC,Rental Expense,10873.06,3/19/2021
10 S. Riverside Property Owner LLC,Rental Expense,10873.06,4/22/2021
10 S. Riverside Property Owner LLC,Rental Expense,892.2,4/22/2021
10 S. Riverside Property Owner LLC,Rental Expense,22398.5,6/23/2021
10 S. Riverside Property Owner LLC,Rental Expense,11199.25,7/26/2021
10 S. Riverside Property Owner LLC,Rental Expense,11199.25,8/24/2021
10 S. Riverside Property Owner LLC,Rental Expense,11199.25,9/23/2021
10 S. Riverside Property Owner LLC,Rental Expense,147.4,10/20/2021
10 S. Riverside Property Owner LLC,Rental Expense,11199.25,10/20/2021
10 S. Riverside Property Owner LLC,Rental Expense,11346.65,12/8/2021
2423 Partners  LLC,Rental Expense,15044.34,1/4/2021
401 Properties Lp C/O: Eric Janssen  Receiver #133,Rental Expense,25300.45,1/4/2021
401 Properties Lp C/O: Eric Janssen  Receiver #133,Rental Expense,24425.45,1/20/2021
401 Properties Lp C/O: Eric Janssen  Receiver #133,Rental Expense,28459.3,2/23/2021
401 Properties Lp C/O: Eric Janssen  Receiver #133,Rental Expense,24698.04,3/22/2021
401 Properties Lp C/O: Eric Janssen  Receiver #133,Rental Expense,28728.04,4/22/2021
401 Properties Lp C/O: Eric Janssen  Receiver #133,Rental Expense,27851.79,5/20/2021
401 Properties Lp C/O: Eric Janssen  Receiver #133,Rental Expense,28451.79,6/23/2021
401 Properties Lp C/O: Eric Janssen  Receiver #133,Rental Expense,28776.79,7/23/2021
401 Properties Lp C/O: Eric Janssen  Receiver #133,Rental Expense,27876.79,8/23/2021
401 Properties Lp C/O: Eric Janssen  Receiver #133,Rental Expense,26191.79,9/21/2021
401 Properties Lp C/O: Eric Janssen  Receiver #133,Rental Expense,25346.79,10/22/2021
440 South Lasalle St.(Chicago)Owner Llc,Rental Expense,138631.84,1/4/2021
440 South Lasalle St.(Chicago)Owner Llc,Rental Expense,136778.81,2/2/2021
440 South Lasalle St.(Chicago)Owner Llc,Rental Expense,138070.63,3/18/2021
440 South Lasalle St.(Chicago)Owner Llc,Rental Expense,145354.31,4/1/2021
440 South Lasalle St.(Chicago)Owner Llc,Rental Expense,138124.62,5/3/2021
440 South Lasalle St.(Chicago)Owner Llc,Rental Expense,292111.42,7/28/2021
440 South Lasalle St.(Chicago)Owner Llc,Rental Expense,140317.77,8/10/2021
440 South Lasalle St.(Chicago)Owner Llc,Rental Expense,138211.51,9/23/2021
440 South Lasalle St.(Chicago)Owner Llc,Rental Expense,138177.45,11/29/2021
440 South Lasalle St.(Chicago)Owner Llc,Rental Expense,65116.37,12/1/2021
440 South Lasalle St.(Chicago)Owner Llc,Rental Expense,138038.46,12/16/2021
A & L Relay Services Llc,Services,9440,3/29/2021
A & L Relay Services Llc,Services,7645,5/3/2021
A & L Relay Services Llc,Services,3485,11/2/2021
A & L Relay Services Llc,Services,2325,11/15/2021
"A.L.L. Masonry Construction Co., Inc.",Capital Purchases,485000,1/25/2021
A-Alert Exterminating Service,Services,180,1/6/2021
A-Alert Exterminating Service,Services,150,1/6/2021
A-Alert Exterminating Service,Services,75,1/6/2021
A-Alert Exterminating Service,Services,345,1/6/2021
A-Alert Exterminating Service,Materials,75,1/21/2021
A-Alert Exterminating Service,Services,395,1/21/2021
A-Alert Exterminating Service,Services,115,1/21/2021
A-Alert Exterminating Service,Materials,45,1/21/2021
A-Alert Exterminating Service,Materials,75,1/21/2021
A-Alert Exterminating Service,Services,75,1/21/2021
A-Alert Exterminating Service,Services,35,1/21/2021
A-Alert Exterminating Service,Materials,75,1/21/2021
A-Alert Exterminating Service,Services,150,1/21/2021
A-Alert Exterminating Service,Materials,45,2/2/2021
A-Alert Exterminating Service,Services,135,2/2/2021
A-Alert Exterminating Service,Services,315,2/2/2021
A-Alert Exterminating Service,Services,135,2/19/2021
A-Alert Exterminating Service,Services,180,2/19/2021
A-Alert Exterminating Service,Services,210,2/19/2021
A-Alert Exterminating Service,Services,115,2/19/2021
A-Alert Exterminating Service,Services,75,2/19/2021
A-Alert Exterminating Service,Services,775,2/19/2021
A-Alert Exterminating Service,Services,270,3/2/2021
A-Alert Exterminating Service,Services,75,3/5/2021
A-Alert Exterminating Service,Services,360,3/5/2021
A-Alert Exterminating Service,Services,240,3/10/2021
A-Alert Exterminating Service,Services,190,3/10/2021
A-Alert Exterminating Service,Services,165,3/10/2021
A-Alert Exterminating Service,Services,75,3/10/2021
A-Alert Exterminating Service,Services,45,3/19/2021
A-Alert Exterminating Service,Services,135,3/19/2021
A-Alert Exterminating Service,Materials,45,3/25/2021
A-Alert Exterminating Service,Services,45,3/25/2021
A-Alert Exterminating Service,Services,270,3/25/2021
A-Alert Exterminating Service,Services,30,4/1/2021
A-Alert Exterminating Service,Services,45,4/14/2021
A-Alert Exterminating Service,Materials,75,4/14/2021
A-Alert Exterminating Service,Services,745,4/14/2021
A-Alert Exterminating Service,Materials,75,4/14/2021
A-Alert Exterminating Service,Services,75,4/15/2021
A-Alert Exterminating Service,Services,210,4/15/2021
A-Alert Exterminating Service,Services,115,4/15/2021
A-Alert Exterminating Service,Services,30,4/15/2021
A-Alert Exterminating Service,Services,75,4/21/2021
A-Alert Exterminating Service,Materials,75,4/21/2021
A-Alert Exterminating Service,Services,75,5/3/2021
A-Alert Exterminating Service,Services,210,5/3/2021
A-Alert Exterminating Service,Services,270,5/3/2021
A-Alert Exterminating Service,Materials,45,5/6/2021
A-Alert Exterminating Service,Services,430,5/6/2021
A-Alert Exterminating Service,Materials,75,5/14/2021
A-Alert Exterminating Service,Materials,75,5/14/2021
A-Alert Exterminating Service,Services,105,5/14/2021
A-Alert Exterminating Service,Services,115,5/14/2021
A-Alert Exterminating Service,Materials,75,5/14/2021
A-Alert Exterminating Service,Services,315,5/14/2021
A-Alert Exterminating Service,Services,75,5/28/2021
A-Alert Exterminating Service,Services,270,6/1/2021
A-Alert Exterminating Service,Materials,45,6/1/2021
A-Alert Exterminating Service,Services,210,6/1/2021
A-Alert Exterminating Service,Materials,75,6/9/2021
A-Alert Exterminating Service,Materials,75,6/9/2021
A-Alert Exterminating Service,Services,115,6/9/2021
A-Alert Exterminating Service,Services,75,6/9/2021
A-Alert Exterminating Service,Services,745,6/9/2021
A-Alert Exterminating Service,Services,30,6/9/2021
A-Alert Exterminating Service,Services,75,6/30/2021
A-Alert Exterminating Service,Services,270,6/30/2021
A-Alert Exterminating Service,Materials,75,6/30/2021
A-Alert Exterminating Service,Services,30,7/2/2021
A-Alert Exterminating Service,Materials,75,7/12/2021
A-Alert Exterminating Service,Services,90,7/12/2021
A-Alert Exterminating Service,Materials,75,7/12/2021
A-Alert Exterminating Service,Services,280,7/12/2021
A-Alert Exterminating Service,Materials,45,7/12/2021
A-Alert Exterminating Service,Services,150,7/12/2021
A-Alert Exterminating Service,Services,480,7/13/2021
A-Alert Exterminating Service,Services,175,7/14/2021
A-Alert Exterminating Service,Services,45,8/11/2021
A-Alert Exterminating Service,Services,75,8/11/2021
A-Alert Exterminating Service,Services,115,8/11/2021
A-Alert Exterminating Service,Services,245,8/11/2021
A-Alert Exterminating Service,Services,30,8/11/2021
A-Alert Exterminating Service,Services,135,8/12/2021
A-Alert Exterminating Service,Services,300,8/12/2021
A-Alert Exterminating Service,Services,630,8/12/2021
A-Alert Exterminating Service,Services,140,8/13/2021
A-Alert Exterminating Service,Services,135,8/26/2021
A-Alert Exterminating Service,Materials,75,9/16/2021
A-Alert Exterminating Service,Materials,75,9/16/2021
A-Alert Exterminating Service,Services,115,9/16/2021
A-Alert Exterminating Service,Services,240,9/16/2021
A-Alert Exterminating Service,Materials,75,9/16/2021
A-Alert Exterminating Service,Services,405,9/16/2021
A-Alert Exterminating Service,Services,350,9/17/2021
A-Alert Exterminating Service,Services,350,10/1/2021
A-Alert Exterminating Service,Services,135,10/1/2021
A-Alert Exterminating Service,Services,885,10/27/2021
A-Alert Exterminating Service,Services,205,10/27/2021
A-Alert Exterminating Service,Materials,75,11/8/2021
A-Alert Exterminating Service,Services,45,11/8/2021
A-Alert Exterminating Service,Services,45,11/10/2021
A-Alert Exterminating Service,Services,90,11/11/2021
A-Alert Exterminating Service,Services,75,12/7/2021
A-Alert Exterminating Service,Services,415,12/16/2021
A-Alert Exterminating Service,Services,570,12/16/2021
A-Alert Exterminating Service,Services,75,12/17/2021
A-Alert Exterminating Service,Materials,75,12/17/2021
A-Alert Exterminating Service,Services,445,12/17/2021
A-Alert Exterminating Service,Services,115,12/17/2021
A-Alert Exterminating Service,Services,105,12/17/2021
Aaron Gulbransen,Services,64.18,6/1/2021
Aaron Gulbransen,Services,53.99,6/1/2021
Aaron Gulbransen,Services,398.56,6/1/2021
Aaron Gulbransen,Services,152.5,6/1/2021
Aaron Gulbransen,Services,59.25,7/9/2021
Aaron Gulbransen,Services,72.66,7/9/2021
Aaron Gulbransen,Services,327.6,7/9/2021
Aaron Gulbransen,Services,137.5,7/9/2021
Aaron Gulbransen,Services,64.06,7/9/2021
Aaron Gulbransen,Services,129.02,9/8/2021
Aaron Gulbransen,Services,92.74,10/25/2021
Aaron Gulbransen,Services,111.33,12/13/2021
Aaron Sanderson,Services,65.18,6/10/2021
Aaron Schultz,Services,4.3,1/12/2021
Aaron Schultz,Services,119.03,1/12/2021
Aaron Schultz,Services,191.07,7/21/2021
Aaron Schultz,Services,7.3,7/21/2021
Aaron Schultz,Services,164.58,8/24/2021
Aaron Schultz,Services,5.35,8/24/2021
Aaron Willie,Services,33.6,10/14/2021
Aaron Willie,Services,51.52,10/14/2021
Aaron Willie,Services,26.88,10/14/2021
"ABM Industry Groups, LLC",Services,59623.8,1/21/2021
"ABM Industry Groups, LLC",Services,17009.55,3/9/2021
"ABM Industry Groups, LLC",Services,98170.24,3/9/2021
"ABM Industry Groups, LLC",Services,53910.72,3/22/2021
"ABM Industry Groups, LLC",Services,1744.94,4/5/2021
"ABM Industry Groups, LLC",Services,6189.76,4/5/2021
"ABM Industry Groups, LLC",Services,34732.36,4/15/2021
"ABM Industry Groups, LLC",Services,46797.84,4/15/2021
"ABM Industry Groups, LLC",Services,6518.64,4/16/2021
"ABM Industry Groups, LLC",Services,79875.56,4/22/2021
"ABM Industry Groups, LLC",Services,45988.32,5/17/2021
"ABM Industry Groups, LLC",Services,46797.84,5/17/2021
"ABM Industry Groups, LLC",Services,51372.4,5/25/2021
"ABM Industry Groups, LLC",Services,46797.84,6/10/2021
"ABM Industry Groups, LLC",Services,51372.4,6/29/2021
"ABM Industry Groups, LLC",Services,50067.71,7/8/2021
"ABM Industry Groups, LLC",Services,12676.16,7/27/2021
"ABM Industry Groups, LLC",Services,48822.58,8/2/2021
"ABM Industry Groups, LLC",Services,21921.16,8/18/2021
"ABM Industry Groups, LLC",Services,6498.8,8/18/2021
"ABM Industry Groups, LLC",Services,47708.92,9/7/2021
"ABM Industry Groups, LLC",Services,213195.76,9/10/2021
"ABM Industry Groups, LLC",Services,113760.64,9/20/2021
"ABM Industry Groups, LLC",Services,18938.74,10/6/2021
"ABM Industry Groups, LLC",Services,47472.51,10/7/2021
"ABM Industry Groups, LLC",Services,3584.32,10/20/2021
"ABM Industry Groups, LLC",Services,16377.3,11/5/2021
"ABM Industry Groups, LLC",Services,159311.52,12/13/2021
"ABM Industry Groups, LLC",Services,10924.72,12/15/2021
Abraham R. Castellano,Services,40.32,2/22/2021
Abraham R. Castellano,Services,154.56,3/8/2021
Abraham R. Castellano,Services,67.2,3/8/2021
Abraham R. Castellano,Services,108.64,5/24/2021
Abraham R. Castellano,Services,85.12,5/24/2021
Abraham R. Castellano,Services,208.32,6/8/2021
Abraham R. Castellano,Services,399.84,7/13/2021
Abraham R. Castellano,Services,51.52,7/13/2021
Abraham R. Castellano,Services,51.52,9/16/2021
Abraham R. Castellano,Services,219.52,9/16/2021
Abraham R. Castellano,Services,118.72,11/16/2021
Abraham R. Castellano,Services,33.6,11/16/2021
Abraham R. Castellano,Services,85.12,12/13/2021
Abraham R. Castellano,Services,152.32,12/13/2021
Abt,Capital Purchases,22257,4/1/2021
Aca Compliance Services  Inc.,Services,12599,2/3/2021
Accel Construction Services Group,Claims & Insurance,90646.86,2/16/2021
Accel Construction Services Group,Capital Purchases,5400,2/18/2021
Accel Construction Services Group,Claims & Insurance,10670.36,11/1/2021
Ace Marking Devices Corp.,Services,121.9,9/1/2021
Ace Marking Devices Corp.,Services,5850,9/1/2021
Aci Worldwide Corp.,Services,24774,2/3/2021
Aci Worldwide Corp.,Services,24774,3/2/2021
Aci Worldwide Corp.,Services,24774,4/1/2021
Aci Worldwide Corp.,Services,24774,5/4/2021
Aci Worldwide Corp.,Services,24774,5/6/2021
Aci Worldwide Corp.,Services,34325.57,6/16/2021
Aci Worldwide Corp.,Services,1250,6/29/2021
Aci Worldwide Corp.,Services,26024,7/22/2021
Aci Worldwide Corp.,Services,26024,9/24/2021
Aci Worldwide Corp.,Services,26503.15,9/27/2021
Aci Worldwide Corp.,Services,26024,10/1/2021
Aci Worldwide Corp.,Services,18768.78,10/5/2021
Aci Worldwide Corp.,Services,89685,12/16/2021
Acuren,Materials,3484.86,7/8/2021
Acuren,Materials,3603.56,11/12/2021
Adam Farence,Services,142.77,2/25/2021
Adam Farence,Services,324.8,4/9/2021
Adam Farence,Services,273.28,5/12/2021
Adam Farence,Services,93.52,6/1/2021
Adam Farence,Services,3.75,6/1/2021
Adam Farence,Services,113.68,6/29/2021
Adam Farence,Services,179.76,7/13/2021
Adam Farence,Services,277.2,8/2/2021
Adam Farence,Services,8.8,8/2/2021
Adam Farence,Services,242.48,8/26/2021
Adam Farence,Services,4.7,8/26/2021
Adam Farence,Services,286.72,9/29/2021
Adam Farence,Services,11.25,9/29/2021
Adam Farence,Services,66.74,9/29/2021
Adam Farence,Services,176.96,11/9/2021
Adam Farence,Services,125.44,12/17/2021
Adam Gibson,Services,319.7,4/13/2021
Adam Gibson,Services,165,4/13/2021
Adam Hicks,Services,15.15,12/1/2021
Adam Hicks,Services,6.34,12/14/2021
Adam Krogul,Services,280,10/13/2021
Adam Krogul,Services,11.84,10/13/2021
Adam Krogul,Services,931.32,10/13/2021
Adams & Westlake  Ltd.,Materials,13886.96,1/22/2021
Adams & Westlake  Ltd.,Materials,21,2/22/2021
Adams & Westlake  Ltd.,Materials,12110.49,3/2/2021
Adams & Westlake  Ltd.,Materials,3788.43,3/8/2021
Adams & Westlake  Ltd.,Capital Purchases,9515.52,3/29/2021
Adams & Westlake  Ltd.,Materials,563.9,3/29/2021
Adams & Westlake  Ltd.,Materials,9649.28,4/15/2021
Adams & Westlake  Ltd.,Capital Purchases,18124.8,4/15/2021
Adams & Westlake  Ltd.,Capital Purchases,57999.36,5/4/2021
Adams & Westlake  Ltd.,Materials,1100,5/6/2021
Adams & Westlake  Ltd.,Materials,267.5,5/17/2021
Adams & Westlake  Ltd.,Materials,2330.5,5/17/2021
Adams & Westlake  Ltd.,Materials,7307.52,5/19/2021
Adams & Westlake  Ltd.,Capital Purchases,8609.28,5/19/2021
Adams & Westlake  Ltd.,Materials,5593.2,6/3/2021
Adams & Westlake  Ltd.,Materials,675.4,6/7/2021
Adams & Westlake  Ltd.,Materials,556.92,6/16/2021
Adams & Westlake  Ltd.,Materials,440,6/16/2021
Adams & Westlake  Ltd.,Materials,6000.3,7/1/2021
Adams & Westlake  Ltd.,Materials,4871.68,8/2/2021
Adams & Westlake  Ltd.,Capital Purchases,41687.04,8/2/2021
Adams & Westlake  Ltd.,Materials,338.34,8/3/2021
Adams & Westlake  Ltd.,Materials,1648.5,8/5/2021
Adams & Westlake  Ltd.,Materials,13738.68,9/10/2021
Adams & Westlake  Ltd.,Materials,2183.34,9/10/2021
Adams & Westlake  Ltd.,Materials,2183.34,9/10/2021
Adams & Westlake  Ltd.,Services,50,9/10/2021
Adams & Westlake  Ltd.,Services,50,9/10/2021
Adams & Westlake  Ltd.,Materials,2183.34,9/10/2021
Adams & Westlake  Ltd.,Services,50,9/10/2021
Adams & Westlake  Ltd.,Materials,2183.34,9/10/2021
Adams & Westlake  Ltd.,Services,50,9/10/2021
Adams & Westlake  Ltd.,Materials,5389.18,9/21/2021
Adams & Westlake  Ltd.,Materials,9732.6,10/20/2021
Adams & Westlake  Ltd.,Materials,1466,10/20/2021
Adams & Westlake  Ltd.,Materials,6059.3,11/2/2021
Adams & Westlake  Ltd.,Materials,9322,11/2/2021
Adams & Westlake  Ltd.,Materials,11652.5,11/12/2021
Adams Contracts Consulting LLC,Services,2920.58,10/19/2021
Adams Contracts Consulting LLC,Services,2392.82,11/3/2021
Adams Contracts Consulting LLC,Services,758.06,11/9/2021
Adaptive Micro Systems Inc.,Capital Purchases,37713,3/8/2021
Adaptive Micro Systems Inc.,Capital Purchases,49317,3/16/2021
Addison Electric  Inc.,Materials,215.72,3/2/2021
Addison Electric  Inc.,Materials,323.64,6/30/2021
"ADR Systems Of America, LLC",Claims & Insurance,4125,5/4/2021
"ADR Systems Of America, LLC",Claims & Insurance,1207,8/30/2021
"ADR Systems Of America, LLC",Claims & Insurance,1495,9/15/2021
"ADR Systems Of America, LLC",Claims & Insurance,650,10/11/2021
Adrienne Anderson,Claims & Insurance,44,5/24/2021
Advance Search Technical Staffing,Services,6272,1/4/2021
Advance Search Technical Staffing,Services,12691,2/1/2021
Advance Search Technical Staffing,Services,12160,2/1/2021
Advance Search Technical Staffing,Services,40190,2/22/2021
Advance Search Technical Staffing,Services,6840,3/1/2021
Advance Search Technical Staffing,Services,15440,3/29/2021
Advance Search Technical Staffing,Services,7600,4/1/2021
Advance Search Technical Staffing,Services,27744,4/16/2021
Advance Search Technical Staffing,Services,7600,5/14/2021
Advance Search Technical Staffing,Services,7840,6/3/2021
Advance Search Technical Staffing,Services,7600,6/7/2021
Advance Search Technical Staffing,Services,7840,6/7/2021
Advance Search Technical Staffing,Services,12576.5,6/18/2021
Advance Search Technical Staffing,Services,11400,6/28/2021
Advance Search Technical Staffing,Services,8673,7/1/2021
Advance Search Technical Staffing,Services,8526.25,7/2/2021
Advance Search Technical Staffing,Services,7644,7/2/2021
Advance Search Technical Staffing,Services,14132,7/21/2021
Advance Search Technical Staffing,Services,15734,8/5/2021
Advance Search Technical Staffing,Services,9212,9/21/2021
Advance Search Technical Staffing,Services,20839.5,10/1/2021
Advance Search Technical Staffing,Services,29109,10/6/2021
Advance Search Technical Staffing,Services,15440,10/26/2021
Advance Search Technical Staffing,Services,9065,11/15/2021
Advance Search Technical Staffing,Services,30687.5,12/14/2021
Advance Search Technical Staffing,Services,35957.35,12/16/2021
Advanced Orthopedic & Spine Care SC,Claims & Insurance,1000,6/23/2021
Advanced Resources  Llc,Services,1468.4,8/23/2021
Advanced Resources  Llc,Services,2900.09,9/21/2021
Advanced Resources  Llc,Services,7709.1,10/4/2021
"Adventist Health Partner, Inc.",Claims & Insurance,850,12/8/2021
"Advocate Court Reporters, LLC",Claims & Insurance,337.75,3/9/2021
"Advocate Court Reporters, LLC",Claims & Insurance,373.7,3/9/2021
"Advocate Court Reporters, LLC",Claims & Insurance,274.05,6/23/2021
"Advocate Court Reporters, LLC",Claims & Insurance,315.9,6/23/2021
Advocate Health and Hospitals Corp.,Claims & Insurance,500,8/17/2021
Aecom Technical Services  Inc.,Capital Purchases,119922.62,1/8/2021
Aecom Technical Services  Inc.,Capital Purchases,59961.31,1/20/2021
Aecom Technical Services  Inc.,Capital Purchases,75435.92,2/22/2021
Aecom Technical Services  Inc.,Capital Purchases,59961.31,3/1/2021
Aecom Technical Services  Inc.,Capital Purchases,87900.57,3/1/2021
Aecom Technical Services  Inc.,Capital Purchases,59961.31,3/17/2021
Aecom Technical Services  Inc.,Capital Purchases,69249.29,3/22/2021
Aecom Technical Services  Inc.,Capital Purchases,65380.44,5/3/2021
Aecom Technical Services  Inc.,Capital Purchases,59961.31,5/14/2021
Aecom Technical Services  Inc.,Capital Purchases,59961.31,5/19/2021
Aecom Technical Services  Inc.,Capital Purchases,78021.36,5/26/2021
Aecom Technical Services  Inc.,Capital Purchases,87532.06,6/16/2021
Aecom Technical Services  Inc.,Capital Purchases,59961.31,6/16/2021
Aecom Technical Services  Inc.,Capital Purchases,59961.31,7/27/2021
Aecom Technical Services  Inc.,Capital Purchases,60283.08,8/2/2021
Aecom Technical Services  Inc.,Capital Purchases,59961.31,8/23/2021
Aecom Technical Services  Inc.,Capital Purchases,75513.7,9/1/2021
Aecom Technical Services  Inc.,Capital Purchases,59961.31,9/20/2021
Aecom Technical Services  Inc.,Capital Purchases,67459.3,10/1/2021
Aecom Technical Services  Inc.,Capital Purchases,64127.45,10/7/2021
Aecom Technical Services  Inc.,Capital Purchases,59961.31,10/13/2021
Aecom Technical Services  Inc.,Capital Purchases,59961.31,12/8/2021
Aed Superstore,Materials,10714,3/2/2021
Aed Superstore,Materials,20024,3/17/2021
Aed Superstore,Materials,9560,3/17/2021
"Aerial Metrics, Inc.",Services,499,1/26/2021
Afc International  Inc.,Services,538.05,4/22/2021
Afc International  Inc.,Services,1227.64,5/5/2021
Afc International  Inc.,Services,946.72,7/1/2021
Afc International  Inc.,Services,275,8/5/2021
AFL Telecommunications LLC,Materials,1237.56,10/6/2021
"Ahead of Our Time Publishing, Inc.",Services,500,5/5/2021
Aircraft & Commercial Enterprises Inc.,Capital Purchases,1694,2/22/2021
Aircraft & Commercial Enterprises Inc.,Capital Purchases,1924,3/2/2021
Aircraft & Commercial Enterprises Inc.,Capital Purchases,2340,3/9/2021
Aircraft & Commercial Enterprises Inc.,Capital Purchases,585,3/9/2021
Aircraft & Commercial Enterprises Inc.,Capital Purchases,585,3/12/2021
Aircraft & Commercial Enterprises Inc.,Capital Purchases,2340,3/12/2021
Aircraft & Commercial Enterprises Inc.,Capital Purchases,2340,3/17/2021
Aircraft & Commercial Enterprises Inc.,Capital Purchases,4095,3/23/2021
Aircraft & Commercial Enterprises Inc.,Capital Purchases,46.5,3/23/2021
Aircraft & Commercial Enterprises Inc.,Capital Purchases,585,4/22/2021
Aircraft & Commercial Enterprises Inc.,Capital Purchases,847,4/22/2021
Aircraft & Commercial Enterprises Inc.,Capital Purchases,8985,6/3/2021
Aircraft & Commercial Enterprises Inc.,Materials,789,6/16/2021
Aircraft & Commercial Enterprises Inc.,Materials,899,7/21/2021
Aircraft & Commercial Enterprises Inc.,Materials,789,8/2/2021
Aircraft & Commercial Enterprises Inc.,Materials,2295,10/20/2021
Aircraft & Commercial Enterprises Inc.,Capital Purchases,1198,11/15/2021
Aircraft & Commercial Enterprises Inc.,Capital Purchases,420,12/17/2021
Airgas,Materials,1961.17,4/23/2021
Aka Comp Solutions  Inc.,Services,79910.05,4/12/2021
Aka Comp Solutions  Inc.,Services,35248.47,10/1/2021
Alan B. Bakotic,Services,245.28,7/6/2021
Alan B. Bakotic,Services,24.8,7/6/2021
Alan B. Bakotic,Services,616,10/11/2021
Alan B. Bakotic,Services,402.08,10/11/2021
Alan B. Bakotic,Services,192,12/21/2021
Alan Ratliff,Services,362.82,4/26/2021
Alan Ratliff,Services,956.46,4/26/2021
Alan Ratliff,Services,843.96,4/26/2021
Alan Ratliff,Services,97.66,4/26/2021
Alan Ratliff,Services,385,4/26/2021
Alan Ratliff,Services,570.22,9/24/2021
Alan Ratliff,Services,275,9/24/2021
Alan Ratliff,Services,309.54,9/24/2021
Alan Ratliff,Services,535.48,9/24/2021
Alan Ratliff,Services,95.08,9/24/2021
Alan Ratliff,Services,264.18,12/9/2021
Alan Ratliff,Services,620.8,12/9/2021
Alan Ratliff,Services,642.44,12/9/2021
Alan Ratliff,Services,95.2,12/9/2021
Alan Ratliff,Services,295,12/9/2021
Albertini Mfg. & Supply  Inc.,Capital Purchases,4900,3/17/2021
Alcohol & Drug Testing Services Llc,Services,5536,1/22/2021
Alcohol & Drug Testing Services Llc,Claims & Insurance,7631,2/10/2021
Alcohol & Drug Testing Services Llc,Claims & Insurance,3979,2/11/2021
Alcohol & Drug Testing Services Llc,Services,18336.5,7/9/2021
Alcohol & Drug Testing Services Llc,Services,7957,8/10/2021
Alcohol & Drug Testing Services Llc,Services,31971,10/4/2021
Alcohol & Drug Testing Services Llc,Services,8820,10/13/2021
Alcohol & Drug Testing Services Llc,Claims & Insurance,26283,12/14/2021
Alesia S. Smith,Services,326.87,1/19/2021
Alesia S. Smith,Services,239.41,2/23/2021
Alesia S. Smith,Services,84.36,3/12/2021
Alesia S. Smith,Services,404.1,4/6/2021
Alesia S. Smith,Services,463.97,5/10/2021
Alesia S. Smith,Services,358.56,6/10/2021
Alesia S. Smith,Services,321.64,7/9/2021
Alesia S. Smith,Services,400.7,8/3/2021
Alesia S. Smith,Services,243.85,9/8/2021
Alesia S. Smith,Services,292.1,10/14/2021
Alesia S. Smith,Services,249.21,11/8/2021
Alesia S. Smith,Services,147.63,12/8/2021
Alex Valenzuela,Services,35.84,4/6/2021
Alex Valenzuela,Services,44.8,6/2/2021
Alex Valenzuela,Services,137.76,6/9/2021
Alex Valenzuela,Services,118.72,6/9/2021
Alex Valenzuela,Services,138.88,7/6/2021
Alex Valenzuela,Services,45.92,7/6/2021
Alex Valenzuela,Services,71.68,8/11/2021
Alex Valenzuela,Services,12.32,8/11/2021
Alex Valenzuela,Services,143.36,9/7/2021
Alex Valenzuela,Services,71.68,10/20/2021
Alex Valenzuela,Services,24.64,10/20/2021
Alex Valenzuela,Services,35.84,10/20/2021
Alex Valenzuela,Services,179.2,11/15/2021
Alex Valenzuela,Services,35.84,12/8/2021
Alex Valenzuela,Services,24.64,12/8/2021
Alexis Dawson,Services,11.16,1/19/2021
Alexis Dawson,Services,193.2,1/19/2021
Alexis Dawson,Services,23.52,3/8/2021
Alexis Rojas,Services,53.2,10/26/2021
Alexis Rojas,Services,64.96,11/15/2021
Alexis Rojas,Services,94.08,12/9/2021
Alexis Rojas,Services,41.44,12/9/2021
Alfonso Becerra,Services,67.2,8/2/2021
Alfonso Becerra,Services,33.6,10/27/2021
Alfred Benesch & Co.,Capital Purchases,106655.8,2/25/2021
Alfred Benesch & Co.,Capital Purchases,25933.46,3/22/2021
Alfred Benesch & Co.,Capital Purchases,1597019.32,5/5/2021
Alfred Wade,Services,23.3,4/21/2021
Alfred Wade,Services,49.85,5/12/2021
All Covered It Services From Konica Minolta,Capital Purchases,247.5,2/1/2021
All Covered It Services From Konica Minolta,Capital Purchases,247.5,2/3/2021
All Covered It Services From Konica Minolta,Services,23035,5/10/2021
All Covered It Services From Konica Minolta,Services,14195,5/10/2021
All Covered It Services From Konica Minolta,Services,295,7/9/2021
All Covered It Services From Konica Minolta,Capital Purchases,165,8/2/2021
All Covered It Services From Konica Minolta,Services,3145,8/5/2021
All Covered It Services From Konica Minolta,Services,1105,8/5/2021
All Covered It Services From Konica Minolta,Services,16065,8/24/2021
All Covered It Services From Konica Minolta,Capital Purchases,3768.6,8/24/2021
All Covered It Services From Konica Minolta,Capital Purchases,1443.75,9/14/2021
All Covered It Services From Konica Minolta,Capital Purchases,495,10/13/2021
All Covered It Services From Konica Minolta,Services,3060,10/27/2021
All Covered It Services From Konica Minolta,Capital Purchases,2529.45,11/5/2021
All Covered It Services From Konica Minolta,Capital Purchases,495,11/5/2021
All Covered It Services From Konica Minolta,Services,425,11/5/2021
All Covered It Services From Konica Minolta,Capital Purchases,1732.5,12/3/2021
All Data,Services,1908,8/19/2021
Allied 100 LLC,Materials,3476.14,2/1/2021
Alstom Signaling  Inc.,Materials,1250,4/6/2021
Alstom Signaling Operation  LLC,Services,357,1/6/2021
Alstom Signaling Operation  LLC,Materials,16556.08,1/6/2021
Alstom Signaling Operation  LLC,Materials,398.79,1/8/2021
Alstom Signaling Operation  LLC,Services,593,1/12/2021
Alstom Signaling Operation  LLC,Materials,63.8,1/25/2021
Alstom Signaling Operation  LLC,Capital Purchases,44471,2/1/2021
Alstom Signaling Operation  LLC,Materials,21231.74,2/19/2021
Alstom Signaling Operation  LLC,Materials,4955.4,3/2/2021
Alstom Signaling Operation  LLC,Capital Purchases,255199.83,3/2/2021
Alstom Signaling Operation  LLC,Materials,71915.6,3/5/2021
Alstom Signaling Operation  LLC,Materials,1844.88,3/17/2021
Alstom Signaling Operation  LLC,Materials,4919.68,3/19/2021
Alstom Signaling Operation  LLC,Materials,881.55,3/26/2021
Alstom Signaling Operation  LLC,Materials,3636.84,3/26/2021
Alstom Signaling Operation  LLC,Services,1449,4/1/2021
Alstom Signaling Operation  LLC,Materials,2477.7,4/7/2021
Alstom Signaling Operation  LLC,Materials,93630.2,4/7/2021
Alstom Signaling Operation  LLC,Materials,5946.48,4/14/2021
Alstom Signaling Operation  LLC,Materials,10691.44,4/23/2021
Alstom Signaling Operation  LLC,Materials,3465.91,4/28/2021
Alstom Signaling Operation  LLC,Materials,507.61,5/3/2021
Alstom Signaling Operation  LLC,Materials,66.21,5/7/2021
Alstom Signaling Operation  LLC,Materials,39678.96,5/17/2021
Alstom Signaling Operation  LLC,Materials,1486.62,5/26/2021
Alstom Signaling Operation  LLC,Capital Purchases,911692.58,6/3/2021
Alstom Signaling Operation  LLC,Capital Purchases,6201.89,6/3/2021
Alstom Signaling Operation  LLC,Materials,11424.07,6/4/2021
Alstom Signaling Operation  LLC,Materials,1486.62,6/4/2021
Alstom Signaling Operation  LLC,Materials,386.52,6/10/2021
Alstom Signaling Operation  LLC,Materials,33365.35,6/17/2021
Alstom Signaling Operation  LLC,Materials,667.8,6/18/2021
Alstom Signaling Operation  LLC,Materials,18945.6,6/25/2021
Alstom Signaling Operation  LLC,Materials,2477.7,7/6/2021
Alstom Signaling Operation  LLC,Materials,398.79,7/12/2021
Alstom Signaling Operation  LLC,Materials,1329.3,7/23/2021
Alstom Signaling Operation  LLC,Materials,1970,8/6/2021
Alstom Signaling Operation  LLC,Materials,3530.52,8/13/2021
Alstom Signaling Operation  LLC,Materials,116.98,8/18/2021
Alstom Signaling Operation  LLC,Materials,584.9,8/19/2021
Alstom Signaling Operation  LLC,Materials,584.9,9/1/2021
Alstom Signaling Operation  LLC,Materials,4456.17,9/13/2021
Alstom Signaling Operation  LLC,Materials,494.5,9/16/2021
Alstom Signaling Operation  LLC,Materials,6943.61,9/21/2021
Alstom Signaling Operation  LLC,Materials,7420.32,9/27/2021
Alstom Signaling Operation  LLC,Materials,2477.7,9/27/2021
Alstom Signaling Operation  LLC,Materials,2126.88,10/1/2021
Alstom Signaling Operation  LLC,Services,439,10/1/2021
Alstom Signaling Operation  LLC,Services,16495,10/1/2021
Alstom Signaling Operation  LLC,Services,667,10/4/2021
Alstom Signaling Operation  LLC,Services,667,10/6/2021
Alstom Signaling Operation  LLC,Materials,2477.7,10/11/2021
Alstom Signaling Operation  LLC,Services,302,10/26/2021
Alstom Signaling Operation  LLC,Materials,11139.09,12/9/2021
Alstom Signaling Operation LLC,Capital Purchases,1382.42,1/4/2021
Alstom Signaling Operation LLC,Capital Purchases,73070.32,1/6/2021
Alstom Signaling Operation LLC,Capital Purchases,1625.94,1/6/2021
Alstom Signaling Operation LLC,Capital Purchases,16786.77,1/6/2021
Alstom Signaling Operation LLC,Capital Purchases,13907.15,1/25/2021
Alstom Signaling Operation LLC,Capital Purchases,2769.08,1/25/2021
Alstom Signaling Operation LLC,Capital Purchases,1122.96,1/25/2021
Alstom Signaling Operation LLC,Capital Purchases,8505.8,1/25/2021
Alstom Signaling Operation LLC,Capital Purchases,3968.6,1/25/2021
Alstom Signaling Operation LLC,Capital Purchases,1382.42,2/2/2021
Alstom Signaling Operation LLC,Capital Purchases,8232.84,2/19/2021
Alstom Signaling Operation LLC,Capital Purchases,36731.97,2/19/2021
Alstom Signaling Operation LLC,Capital Purchases,4403.2,2/19/2021
Alstom Signaling Operation LLC,Capital Purchases,259.46,3/2/2021
Alstom Signaling Operation LLC,Materials,18308.55,3/2/2021
Alstom Signaling Operation LLC,Capital Purchases,3489.56,3/5/2021
Alstom Signaling Operation LLC,Capital Purchases,2392.66,3/15/2021
Alstom Signaling Operation LLC,Capital Purchases,2795.77,3/15/2021
Alstom Signaling Operation LLC,Capital Purchases,2131.06,3/17/2021
Alstom Signaling Operation LLC,Capital Purchases,518.92,3/17/2021
Alstom Signaling Operation LLC,Capital Purchases,1678.05,3/17/2021
Alstom Signaling Operation LLC,Capital Purchases,1382.42,3/19/2021
Alstom Signaling Operation LLC,Capital Purchases,6599.46,3/19/2021
Alstom Signaling Operation LLC,Capital Purchases,66380.76,3/24/2021
Alstom Signaling Operation LLC,Capital Purchases,66380.76,3/24/2021
Alstom Signaling Operation LLC,Capital Purchases,66380.76,3/26/2021
Alstom Signaling Operation LLC,Capital Purchases,1656.44,3/26/2021
Alstom Signaling Operation LLC,Capital Purchases,10458.14,3/26/2021
Alstom Signaling Operation LLC,Capital Purchases,1327.12,3/26/2021
Alstom Signaling Operation LLC,Capital Purchases,16465.68,4/7/2021
Alstom Signaling Operation LLC,Capital Purchases,23624.5,4/7/2021
Alstom Signaling Operation LLC,Capital Purchases,1926.4,4/7/2021
Alstom Signaling Operation LLC,Capital Purchases,11128.9,4/14/2021
Alstom Signaling Operation LLC,Capital Purchases,73746.6,4/14/2021
Alstom Signaling Operation LLC,Materials,73646.64,4/22/2021
Alstom Signaling Operation LLC,Capital Purchases,828.22,4/22/2021
Alstom Signaling Operation LLC,Capital Purchases,412.6,4/22/2021
Alstom Signaling Operation LLC,Materials,374.32,4/23/2021
Alstom Signaling Operation LLC,Capital Purchases,33101.51,4/23/2021
Alstom Signaling Operation LLC,Capital Purchases,66380.76,4/23/2021
Alstom Signaling Operation LLC,Capital Purchases,289.24,4/26/2021
Alstom Signaling Operation LLC,Capital Purchases,187.16,4/26/2021
Alstom Signaling Operation LLC,Capital Purchases,8829.35,5/3/2021
Alstom Signaling Operation LLC,Capital Purchases,22967.22,5/3/2021
Alstom Signaling Operation LLC,Capital Purchases,1015.38,5/3/2021
Alstom Signaling Operation LLC,Capital Purchases,4564.02,5/3/2021
Alstom Signaling Operation LLC,Materials,11539.14,5/3/2021
Alstom Signaling Operation LLC,Capital Purchases,15687.21,5/7/2021
Alstom Signaling Operation LLC,Capital Purchases,1664.2,5/7/2021
Alstom Signaling Operation LLC,Materials,1335.38,5/7/2021
Alstom Signaling Operation LLC,Capital Purchases,2881.61,5/17/2021
Alstom Signaling Operation LLC,Capital Purchases,828.22,5/17/2021
Alstom Signaling Operation LLC,Capital Purchases,670.76,5/26/2021
Alstom Signaling Operation LLC,Capital Purchases,1688.68,5/26/2021
Alstom Signaling Operation LLC,Capital Purchases,692.27,6/4/2021
Alstom Signaling Operation LLC,Capital Purchases,67788.57,6/4/2021
Alstom Signaling Operation LLC,Capital Purchases,915.59,6/4/2021
Alstom Signaling Operation LLC,Capital Purchases,1743.81,6/4/2021
Alstom Signaling Operation LLC,Capital Purchases,1831.18,6/4/2021
Alstom Signaling Operation LLC,Capital Purchases,71874.3,6/4/2021
Alstom Signaling Operation LLC,Capital Purchases,2416.04,6/4/2021
Alstom Signaling Operation LLC,Capital Purchases,2073.63,6/10/2021
Alstom Signaling Operation LLC,Capital Purchases,1486.08,6/10/2021
Alstom Signaling Operation LLC,Capital Purchases,2409.66,6/10/2021
Alstom Signaling Operation LLC,Capital Purchases,828.22,6/16/2021
Alstom Signaling Operation LLC,Capital Purchases,1656.44,6/17/2021
Alstom Signaling Operation LLC,Capital Purchases,1656.44,6/18/2021
Alstom Signaling Operation LLC,Capital Purchases,12349.26,6/25/2021
Alstom Signaling Operation LLC,Capital Purchases,15404.4,7/6/2021
Alstom Signaling Operation LLC,Capital Purchases,2134.98,7/6/2021
Alstom Signaling Operation LLC,Capital Purchases,1497.28,7/7/2021
Alstom Signaling Operation LLC,Capital Purchases,1984.3,7/7/2021
Alstom Signaling Operation LLC,Capital Purchases,374.32,7/7/2021
Alstom Signaling Operation LLC,Capital Purchases,1252.68,7/8/2021
Alstom Signaling Operation LLC,Capital Purchases,187.16,7/8/2021
Alstom Signaling Operation LLC,Capital Purchases,1384.54,7/12/2021
Alstom Signaling Operation LLC,Materials,1384.54,7/12/2021
Alstom Signaling Operation LLC,Capital Purchases,1384.54,7/12/2021
Alstom Signaling Operation LLC,Capital Purchases,148384.09,7/13/2021
Alstom Signaling Operation LLC,Capital Purchases,132761.52,7/13/2021
Alstom Signaling Operation LLC,Capital Purchases,5139.08,7/23/2021
Alstom Signaling Operation LLC,Capital Purchases,1384.54,8/2/2021
Alstom Signaling Operation LLC,Capital Purchases,692.27,8/2/2021
Alstom Signaling Operation LLC,Capital Purchases,828.22,8/4/2021
Alstom Signaling Operation LLC,Capital Purchases,22459.14,8/6/2021
Alstom Signaling Operation LLC,Capital Purchases,10458.14,8/6/2021
Alstom Signaling Operation LLC,Capital Purchases,3249.5,8/13/2021
Alstom Signaling Operation LLC,Capital Purchases,825.6,8/13/2021
Alstom Signaling Operation LLC,Capital Purchases,24569.48,8/18/2021
Alstom Signaling Operation LLC,Capital Purchases,654.4,9/13/2021
Alstom Signaling Operation LLC,Capital Purchases,515.36,9/13/2021
Alstom Signaling Operation LLC,Capital Purchases,1625.8,9/21/2021
Alstom Signaling Operation LLC,Capital Purchases,748.64,9/21/2021
Alstom Signaling Operation LLC,Capital Purchases,456.04,10/1/2021
Alstom Signaling Operation LLC,Capital Purchases,2053.2,10/1/2021
Alstom Signaling Operation LLC,Materials,3110.46,10/6/2021
Alstom Signaling Operation LLC,Materials,1690.98,10/21/2021
Alstom Signaling Operation LLC,Capital Purchases,384.46,10/26/2021
Alstom Signaling Operation LLC,Materials,77455.32,10/26/2021
Alstom Transportation Inc.,Materials,148440.72,2/2/2021
Alstom Transportation Inc.,Capital Purchases,324600,2/2/2021
Alstom Transportation Inc.,Materials,101496.72,2/19/2021
Alstom Transportation Inc.,Capital Purchases,324600,3/2/2021
Alstom Transportation Inc.,Materials,304490.16,3/26/2021
Alstom Transportation Inc.,Materials,2160,4/1/2021
Alstom Transportation Inc.,Materials,46944,4/14/2021
Alstom Transportation Inc.,Capital Purchases,78261117.38,6/8/2021
Alstom Transportation Inc.,Materials,202993.44,6/17/2021
Alstom Transportation Inc.,Capital Purchases,15652226,7/6/2021
Alstom Transportation Inc.,Capital Purchases,324600,7/6/2021
Alstom Transportation Inc.,Materials,148382.76,7/12/2021
Alstom Transportation Inc.,Services,2002,8/6/2021
Alstom Transportation Inc.,Capital Purchases,324600,8/18/2021
Alstom Transportation Inc.,Materials,52836.96,8/18/2021
Alstom Transportation Inc.,Capital Purchases,324600,9/13/2021
Alstom Transportation Inc.,Capital Purchases,8604,10/1/2021
Alstom Transportation Inc.,,7100,10/1/2021
Alstom Transportation Inc.,Materials,1988,10/1/2021
Alstom Transportation Inc.,Materials,3550,10/1/2021
Alstom Transportation Inc.,Services,6506.5,10/1/2021
Alstom Transportation Inc.,Materials,167317.04,10/6/2021
Alstom Transportation Inc.,Materials,454978.08,10/7/2021
Alstom Transportation Inc.,Capital Purchases,324600,10/21/2021
Alstom Transportation Inc.,Materials,15614.88,10/27/2021
Alstom Transportation Inc.,Materials,17750,11/1/2021
Alstom Transportation Inc.,Materials,249838.08,11/12/2021
Alstom Transportation Inc.,Materials,62459.52,12/1/2021
Alstom Transportation Inc.,Services,7100,12/9/2021
Alstom Transportation Inc.,Materials,93689.28,12/9/2021
Alstom Transportation Inc.,Capital Purchases,39130565,12/9/2021
Alstom Transportation Inc.,Capital Purchases,21425.02,12/22/2021
"Alta Construction Equipment Illinois, LLC",Materials,32539.89,3/12/2021
Alta Equipment,Services,600,3/3/2021
Alta Equipment,Materials,238.67,3/12/2021
Alta Equipment,Materials,477.34,3/17/2021
Alta Equipment,Materials,212.64,5/26/2021
Alta Equipment,Materials,238.67,6/16/2021
Alta Equipment,Materials,1094.16,7/27/2021
Alta Equipment,Materials,539.24,8/9/2021
Alternate Power  Inc.,Services,1524.69,1/5/2021
Alternate Power  Inc.,Services,921.98,1/5/2021
Alternate Power  Inc.,Services,208.25,1/5/2021
Alternate Power  Inc.,Services,739.2,1/5/2021
Alternate Power  Inc.,Services,431,1/12/2021
Alternate Power  Inc.,Services,2486.92,1/22/2021
Alternate Power  Inc.,Services,2568.32,1/22/2021
Alternate Power  Inc.,Services,3340.78,1/22/2021
Alternate Power  Inc.,Services,1652.92,3/2/2021
Alternate Power  Inc.,Services,1892.13,5/4/2021
Alternate Power  Inc.,Services,3302.32,5/14/2021
Alternate Power  Inc.,Services,590.1,5/14/2021
Alternate Power  Inc.,Materials,6.49,6/4/2021
Alternate Power  Inc.,Services,565.52,6/4/2021
Alternate Power  Inc.,Services,921.19,7/9/2021
Alternate Power  Inc.,Services,853.2,7/14/2021
Alternate Power  Inc.,Services,2841.09,8/11/2021
Alternate Power  Inc.,Services,2025.55,9/10/2021
Alternate Power  Inc.,Services,1892.88,9/20/2021
Alternate Power  Inc.,Services,3374.42,9/20/2021
Alternate Power  Inc.,Services,1465.65,10/1/2021
Alternate Power  Inc.,Materials,704.26,10/13/2021
Alternate Power  Inc.,Materials,32.45,10/13/2021
Altorfer Industries Inc.,Materials,87.99,1/12/2021
Altorfer Industries Inc.,Materials,1222.31,1/25/2021
Altorfer Industries Inc.,Materials,40.82,2/1/2021
Altorfer Industries Inc.,Materials,5793.01,3/15/2021
Altorfer Industries Inc.,Materials,170.53,3/17/2021
Altorfer Industries Inc.,Materials,4400,4/6/2021
Altorfer Industries Inc.,Materials,455.52,4/6/2021
Altorfer Industries Inc.,Materials,145.11,4/7/2021
Altorfer Industries Inc.,Materials,2200,4/7/2021
Altorfer Industries Inc.,Materials,1376.25,5/5/2021
Altorfer Industries Inc.,Materials,397.5,5/5/2021
Altorfer Industries Inc.,Materials,268.03,5/5/2021
Altorfer Industries Inc.,Materials,457.02,5/5/2021
Altorfer Industries Inc.,Materials,4147.41,5/25/2021
Altorfer Industries Inc.,Materials,290.22,6/2/2021
Altorfer Industries Inc.,Materials,6963.05,6/3/2021
Altorfer Industries Inc.,Materials,3371.8,6/7/2021
Altorfer Industries Inc.,Materials,16.31,6/22/2021
Altorfer Industries Inc.,Services,7.26,7/2/2021
Altorfer Industries Inc.,Materials,48.47,7/2/2021
Altorfer Industries Inc.,Materials,2046.75,7/2/2021
Altorfer Industries Inc.,Materials,204.8,8/3/2021
Altorfer Industries Inc.,Materials,1128.56,8/10/2021
Altorfer Industries Inc.,Materials,224.43,9/1/2021
Altorfer Industries Inc.,Materials,1039.39,10/4/2021
Altorfer Industries Inc.,Services,890.47,11/1/2021
Altorfer Industries Inc.,Materials,4920.68,11/15/2021
Altorfer Industries Inc.,Materials,1152.16,11/15/2021
Altorfer Industries Inc.,Services,39.59,11/15/2021
Altorfer Industries Inc.,Services,150,11/15/2021
Alvarez  Inc.,Services,1172,2/22/2021
Alvarez  Inc.,Materials,1714,5/4/2021
Alvarez  Inc.,Services,2212,6/8/2021
Alvarez  Inc.,Services,1538,6/8/2021
Alvarez  Inc.,Services,1020,6/8/2021
Alvarez  Inc.,Services,1020,6/16/2021
Alvarez  Inc.,Services,2212,6/16/2021
Alvarez  Inc.,Services,1538,6/16/2021
Alvarez  Inc.,Services,600,7/2/2021
Alvarez  Inc.,Services,900,8/2/2021
Alvarez  Inc.,Services,4424,8/5/2021
Alvarez  Inc.,Services,2040,8/5/2021
Alvarez  Inc.,Services,540,8/5/2021
Alvarez  Inc.,Services,3076,8/5/2021
Alvarez  Inc.,Services,2812,9/21/2021
Alvarez  Inc.,Services,1020,9/21/2021
Alvarez  Inc.,Services,540,9/21/2021
Alvarez  Inc.,Services,1538,9/21/2021
Alvarez  Inc.,Services,540,9/22/2021
Alvarez  Inc.,Services,1020,10/8/2021
Alvarez  Inc.,Services,540,10/8/2021
Alvarez  Inc.,Services,3346,10/8/2021
Alvarez  Inc.,Services,1004,10/8/2021
Alvarez  Inc.,Services,5780,10/14/2021
Alvarez  Inc.,Services,540,12/14/2021
Alvarez  Inc.,Services,1538,12/14/2021
Alvarez  Inc.,Services,3179,12/14/2021
Alvarez  Inc.,Services,1020,12/14/2021
Alvin Newman,Services,29.12,7/8/2021
Alvin Newman,Services,253.12,7/8/2021
Alvin Newman,Services,88.48,8/11/2021
Alvin Newman,Services,117.6,8/19/2021
Alvin Newman,Services,212.8,9/3/2021
Alvin Newman,Services,47.04,9/20/2021
Alvin Newman,Services,23.52,10/4/2021
Alvin Newman,Services,141.12,11/19/2021
Alvin Newman,Services,94.08,12/9/2021
Alvin Newman,Services,23.52,12/9/2021
Alvin Newman,Services,164.64,12/22/2021
Alvin T. Terry,Services,1226.12,1/5/2021
Alvin T. Terry,Services,1208,3/31/2021
Alvin T. Terry,Services,2416,8/30/2021
Alvin T. Terry,Services,1626,11/2/2021
Alyssa M. Battaglia-Hofmann,Services,125.35,2/17/2021
Alyssa M. Battaglia-Hofmann,Services,16.05,2/17/2021
Alyssa M. Battaglia-Hofmann,Services,122.53,10/22/2021
Alyssa M. Battaglia-Hofmann,Services,18.7,10/22/2021
Alyssa M. Battaglia-Hofmann,Services,61.04,11/22/2021
Alyssa M. Battaglia-Hofmann,Services,9.7,11/22/2021
Amalgamated Services  Inc.,Services,840,1/4/2021
Amazon.Com/Tool Crib,Materials,9937.98,1/5/2021
Amazon.Com/Tool Crib,Materials,1247.87,1/5/2021
Amazon.Com/Tool Crib,Materials,2579.98,2/1/2021
Amazon.Com/Tool Crib,Materials,1175,2/1/2021
Amazon.Com/Tool Crib,Services,99.03,2/1/2021
Amazon.Com/Tool Crib,Materials,2636,3/1/2021
Amazon.Com/Tool Crib,Materials,207.84,3/19/2021
Amazon.Com/Tool Crib,Materials,110.64,4/23/2021
Amazon.Com/Tool Crib,Materials,527.95,4/23/2021
Amazon.Com/Tool Crib,Materials,129,5/3/2021
Amazon.Com/Tool Crib,Materials,618,6/1/2021
Amazon.Com/Tool Crib,Materials,37.59,6/1/2021
Amazon.Com/Tool Crib,Materials,7085.47,6/3/2021
Amazon.Com/Tool Crib,Materials,3376.4,6/3/2021
Amazon.Com/Tool Crib,Materials,119,6/24/2021
Amazon.Com/Tool Crib,Materials,3234.12,7/21/2021
Amazon.Com/Tool Crib,Services,134.56,7/21/2021
Amazon.Com/Tool Crib,Materials,5390.2,7/21/2021
Amazon.Com/Tool Crib,Materials,173.94,7/27/2021
Amazon.Com/Tool Crib,Materials,560.67,8/19/2021
Amazon.Com/Tool Crib,Services,41.85,8/19/2021
Amazon.Com/Tool Crib,Materials,74.99,9/23/2021
Amber Spencer,Services,60,9/16/2021
Amber Spencer,Services,231,9/16/2021
Amber Spencer,Services,705.39,9/16/2021
Amber Spencer,Services,10,9/16/2021
Amercian Welding Society  Inc.,Services,27.9,1/5/2021
Amercian Welding Society  Inc.,Services,1104,1/5/2021
American Bar Assn.,Services,850,10/4/2021
American Building Services  Llc,Materials,2984.12,3/4/2021
American Building Services  Llc,Services,3994,3/4/2021
American Building Services  Llc,Materials,2051.89,5/4/2021
American Building Services  Llc,Services,2852.8,5/4/2021
American Building Services  Llc,Services,2582.49,5/6/2021
American Building Services  Llc,Materials,4909.1,5/6/2021
American Building Services  Llc,Services,8369.26,10/14/2021
American Calibration  Inc.,Services,1254,1/4/2021
American Calibration  Inc.,Services,264,1/13/2021
American Calibration  Inc.,Services,132,1/13/2021
American Calibration  Inc.,Services,66,1/13/2021
American Calibration  Inc.,Services,264,1/13/2021
American Calibration  Inc.,Services,396,1/20/2021
American Calibration  Inc.,Services,264,1/21/2021
American Calibration  Inc.,Materials,66,3/5/2021
American Calibration  Inc.,Services,132,3/5/2021
American Calibration  Inc.,Services,66,3/5/2021
American Calibration  Inc.,Services,132,3/5/2021
American Calibration  Inc.,Services,66,3/5/2021
American Calibration  Inc.,Services,1011.63,3/5/2021
American Calibration  Inc.,Services,462,3/15/2021
American Calibration  Inc.,Services,66,3/15/2021
American Calibration  Inc.,Services,429,3/15/2021
American Calibration  Inc.,Services,3,4/6/2021
American Calibration  Inc.,Services,396,4/26/2021
American Calibration  Inc.,Services,66,4/26/2021
American Calibration  Inc.,Services,43.6,4/26/2021
American Calibration  Inc.,Services,132,4/26/2021
American Calibration  Inc.,Services,66,4/27/2021
American Calibration  Inc.,Materials,198,4/27/2021
American Calibration  Inc.,Services,1323.3,5/17/2021
American Calibration  Inc.,Materials,462,5/17/2021
American Calibration  Inc.,Services,66,5/17/2021
American Calibration  Inc.,Services,66,6/1/2021
American Calibration  Inc.,Services,66,6/3/2021
American Calibration  Inc.,Services,259,6/4/2021
American Calibration  Inc.,Services,197.4,6/4/2021
American Calibration  Inc.,Services,924,6/4/2021
American Calibration  Inc.,Services,264,6/4/2021
American Calibration  Inc.,Services,61,6/17/2021
American Calibration  Inc.,Services,132,6/25/2021
American Calibration  Inc.,Services,198,6/25/2021
American Calibration  Inc.,Services,528,7/1/2021
American Calibration  Inc.,Services,396,8/10/2021
American Calibration  Inc.,Services,600.3,8/11/2021
American Calibration  Inc.,Services,264,8/11/2021
American Calibration  Inc.,Services,345,8/11/2021
American Calibration  Inc.,Services,66,8/20/2021
American Calibration  Inc.,Services,132,9/24/2021
American Calibration  Inc.,Services,264,9/24/2021
American Calibration  Inc.,Services,66,9/24/2021
American Calibration  Inc.,Services,66,9/24/2021
American Calibration  Inc.,Services,99,10/8/2021
American Calibration  Inc.,Materials,10,10/8/2021
American Calibration  Inc.,Services,132,10/28/2021
American Calibration  Inc.,Services,66,10/28/2021
American Calibration  Inc.,Services,132,10/28/2021
American Calibration  Inc.,Services,1056,10/28/2021
American Calibration  Inc.,Services,66,10/28/2021
American Calibration  Inc.,Services,132,11/1/2021
American Calibration  Inc.,Services,198,11/1/2021
American Calibration  Inc.,Services,132,11/1/2021
American Calibration  Inc.,Services,66,11/11/2021
American Calibration  Inc.,Services,198,12/1/2021
American Calibration  Inc.,Services,330,12/1/2021
American Graphics Institute,Services,556,7/29/2021
American Payroll Association,Services,297,4/13/2021
American Payroll Association,Services,1115,8/5/2021
American Payroll Association,Services,525,10/18/2021
American Planning Assn.,Services,668,4/23/2021
American Planning Assn.,Services,100,6/23/2021
American Planning Assn.,Services,668,9/8/2021
American Public Transit Assoc.,Services,975,9/21/2021
American Public Transportation Ass Meeting Department Apta,Services,750,1/28/2021
American Public Transportation Ass Meeting Department Apta,Services,195,3/29/2021
American Public Transportation Ass Meeting Department Apta,Services,395,5/14/2021
American Recycling & Disposal  Inc.,Capital Purchases,27141.84,1/6/2021
American Recycling & Disposal  Inc.,Capital Purchases,17330.68,1/8/2021
American Recycling & Disposal  Inc.,Services,10906.3,1/22/2021
American Recycling & Disposal  Inc.,Capital Purchases,25567.28,3/12/2021
American Recycling & Disposal  Inc.,Services,12433.52,4/7/2021
American Recycling & Disposal  Inc.,Services,1217.28,4/7/2021
American Recycling & Disposal  Inc.,Capital Purchases,2697.38,5/25/2021
American Recycling & Disposal  Inc.,Capital Purchases,8862.48,6/16/2021
American Recycling & Disposal  Inc.,Capital Purchases,9814.92,7/13/2021
American Recycling & Disposal  Inc.,Capital Purchases,6610.16,9/1/2021
American Solutions For Business,Materials,5667.84,1/5/2021
American Solutions For Business,Services,18286.8,4/7/2021
American Solutions For Business,Services,31190.28,6/7/2021
American Solutions For Business,Services,14071.24,6/8/2021
American Solutions For Business,Services,12204.15,6/10/2021
American Solutions For Business,Services,22739.7,6/10/2021
American Solutions For Business,Services,78935.36,6/16/2021
American Solutions For Business,Services,6922.3,7/23/2021
American Solutions For Business,Services,954.8,8/10/2021
American Solutions For Business,Services,25779.6,10/1/2021
American Solutions For Business,Services,44393.5,12/8/2021
American Solutions For Business,Services,8878.7,12/9/2021
American Welding Society,Services,790,3/12/2021
Amerigas,Materials,689.96,1/6/2021
Amerigas,Materials,226.71,1/21/2021
Amerigas,Materials,166.46,1/21/2021
Amerigas,Materials,304.45,1/21/2021
Amerigas,Materials,803.11,1/21/2021
Amerigas,Materials,381.13,1/22/2021
Amerigas,Materials,2365.78,2/1/2021
Amerigas,Materials,114.65,2/2/2021
Amerigas,Materials,290.11,2/3/2021
Amerigas,Materials,550.5,2/16/2021
Amerigas,Materials,486.78,2/22/2021
Amerigas,Materials,287.28,2/22/2021
Amerigas,Materials,197.51,3/4/2021
Amerigas,Materials,2940.67,3/4/2021
Amerigas,Materials,257.61,3/25/2021
Amerigas,Materials,639.27,4/14/2021
Amerigas,Materials,1212.39,4/14/2021
Amerigas,Materials,616.74,4/14/2021
Amerigas,Materials,323.14,4/26/2021
Amerigas,Materials,365.72,4/26/2021
Amerigas,Materials,184.43,5/4/2021
Amerigas,Materials,194.41,6/17/2021
Amerigas,Materials,264.49,6/17/2021
Amerigas,Materials,193.69,7/13/2021
Amerigas,Services,225.05,7/13/2021
Amerigas,Materials,110,8/13/2021
Amerigas,Materials,256.02,8/23/2021
Amerigas,Materials,145.99,8/24/2021
Amerigas,Materials,276.18,9/10/2021
Amerigas,Materials,393.22,9/10/2021
Amerigas,Materials,168.57,11/11/2021
Amerigas,Materials,240.19,12/8/2021
Amerigas,Materials,648.14,12/8/2021
Amit Agarwal MD Corp,Claims & Insurance,1000,7/19/2021
"Amsted Rail Company, Inc.",Capital Purchases,39600,2/1/2021
"Amsted Rail Company, Inc.",Capital Purchases,39600,3/2/2021
"Amsted Rail Company, Inc.",Capital Purchases,3405,3/4/2021
"Amsted Rail Company, Inc.",Services,4720,7/23/2021
"Amsted Rail Company, Inc.",Capital Purchases,49140,9/10/2021
"Amsted Rail Company, Inc.",Capital Purchases,16380,10/27/2021
Analytic Systems,Materials,4386,3/22/2021
Analytic Systems,Materials,8772,4/1/2021
Analytic Systems,Materials,2073.7,5/3/2021
Analytic Systems,Materials,4386,5/25/2021
Analytic Systems,Materials,3359.6,7/19/2021
Analytic Systems,Materials,2711,8/2/2021
Analytic Systems,Materials,694.5,8/13/2021
Analytic Systems,Materials,9036,11/15/2021
Analytic Systems,Materials,4167,12/7/2021
Anchor Brake Shoe Co.,Materials,29244.6,1/22/2021
Anchor Brake Shoe Co.,Materials,8355.6,2/22/2021
Anchor Brake Shoe Co.,Materials,15986.7,3/4/2021
Anchor Brake Shoe Co.,Materials,24300,3/10/2021
Anchor Brake Shoe Co.,Materials,14622.3,3/22/2021
Anchor Brake Shoe Co.,Materials,12533.4,4/22/2021
Anchor Brake Shoe Co.,Materials,14580,5/3/2021
Anchor Brake Shoe Co.,Materials,12533.4,5/25/2021
Anchor Brake Shoe Co.,Materials,8355.6,6/1/2021
Anchor Brake Shoe Co.,Materials,8355.6,6/3/2021
Anchor Brake Shoe Co.,Materials,18800.1,7/19/2021
Anchor Brake Shoe Co.,Materials,4177.8,7/22/2021
Anchor Brake Shoe Co.,Materials,14580,7/28/2021
Anchor Brake Shoe Co.,Materials,6266.7,8/2/2021
Anchor Brake Shoe Co.,Materials,3312.7,8/6/2021
Anchor Brake Shoe Co.,Materials,11309.6,8/18/2021
Anchor Brake Shoe Co.,Materials,14622.3,8/20/2021
Anchor Brake Shoe Co.,Materials,14622.3,9/17/2021
Anchor Brake Shoe Co.,Materials,22977.9,9/27/2021
Anchor Brake Shoe Co.,Materials,8355.6,10/1/2021
Anchor Brake Shoe Co.,Materials,4177.8,10/8/2021
Anchor Brake Shoe Co.,Materials,20889,10/20/2021
Anchor Brake Shoe Co.,Materials,20889,11/8/2021
Anchor Brake Shoe Co.,Materials,95578.2,11/12/2021
Anderson Lock Co.,Materials,1352.4,1/22/2021
Anderson Lock Co.,Materials,1352.4,3/2/2021
Anderson Lock Co.,Materials,1932,5/3/2021
Anderson Lock Co.,Materials,644,5/25/2021
Anderson Lock Co.,Materials,966,11/8/2021
Anderson Lock Co.,Materials,1288,11/12/2021
Andre Hunt,Services,51.74,6/1/2021
Andre Hunt,Services,398.56,6/1/2021
Andre Hunt,Services,152.5,6/1/2021
Andre R. Feliciano,Services,44.8,3/31/2021
Andre R. Feliciano,Services,80.64,8/10/2021
Andre R. Feliciano,Services,35.84,9/7/2021
Andre R. Feliciano,Services,71.68,12/8/2021
Andre R. Feliciano,Services,44.8,12/8/2021
Andrea Clark,Services,106.4,4/13/2021
Andrea D. Peek,Services,244.95,1/15/2021
Andrew D. Garibay,Services,22.4,9/16/2021
Andrew Grigg,Services,3546.2,5/25/2021
Andrew L. Taylor,Services,98.56,6/15/2021
Andrew Osterman,Claims & Insurance,600,10/12/2021
Angelo Cockrell,Services,41.44,8/11/2021
Anita Ayala-Ortega,Services,33.6,2/16/2021
Anita Ayala-Ortega,Services,33.6,2/25/2021
Anita Ayala-Ortega,Services,90.72,3/8/2021
Anita Ayala-Ortega,Services,67.2,3/25/2021
Anita Ayala-Ortega,Services,103.04,3/25/2021
Anita Ayala-Ortega,Services,39.2,4/9/2021
Anita Ayala-Ortega,Services,57.57,4/9/2021
Anita Ayala-Ortega,Services,74.26,5/13/2021
Anita Ayala-Ortega,Services,33.6,5/13/2021
Anita Ayala-Ortega,Services,33.6,5/24/2021
Anita Ayala-Ortega,Services,100.8,5/24/2021
Anita Ayala-Ortega,Services,51.52,6/9/2021
Anita Ayala-Ortega,Services,59.58,7/2/2021
Anita Ayala-Ortega,Services,33.6,7/2/2021
Anita Ayala-Ortega,Services,23.52,8/2/2021
Anita Ayala-Ortega,Services,51.52,9/22/2021
Anita Ayala-Ortega,Services,33.6,9/22/2021
Anita Ayala-Ortega,Services,33.6,10/13/2021
Anita Ayala-Ortega,Services,33.6,10/22/2021
Anita Ayala-Ortega,Services,51.52,11/16/2021
Anita Ayala-Ortega,Services,51.52,12/1/2021
Anita Ortega,Claims & Insurance,4000,9/21/2021
Anthem Insurance Companies  Inc.,Services,81869.04,11/17/2021
Anthony B. Davis,Services,33.6,3/12/2021
Anthony B. Davis,Services,13.44,3/12/2021
Anthony B. Davis,Services,33.6,9/7/2021
Anthony B. Davis,Services,12.32,10/19/2021
Anthony Cintron,Services,47.04,3/9/2021
Anthony Cintron,Services,23.52,5/10/2021
Anthony Cintron,Services,41.44,6/15/2021
Anthony Cintron,Services,124.32,8/10/2021
Anthony Cintron,Services,6.72,8/10/2021
Anthony Ognibene,Services,108.75,11/17/2021
Anthony Ognibene,Services,10.8,11/17/2021
Aon Risk Services  Inc. Of Maryland,Claims & Insurance,26053,3/1/2021
Aon Risk Services  Inc. Of Maryland,Claims & Insurance,52446,3/9/2021
Aon Risk Services  Inc. Of Maryland,Claims & Insurance,12150,11/15/2021
Appalachian Timber Services LLC,Materials,50175,6/29/2021
Appalachian Timber Services LLC,Materials,16725,7/7/2021
Appalachian Timber Services LLC,Materials,16800,7/8/2021
Appalachian Timber Services LLC,Materials,16725,7/8/2021
Appalachian Timber Services LLC,Materials,16800,7/19/2021
Appalachian Timber Services LLC,Materials,50175,11/3/2021
Apperson  Inc,Services,59.2,4/22/2021
Apperson  Inc,Services,494,4/22/2021
Applied Industrial Technologies,Materials,1655.42,3/2/2021
Applied Industrial Technologies,Materials,3183.5,3/22/2021
April Kilgore,Services,2589,10/27/2021
Aql Technologies  Inc.,Services,16720,1/8/2021
Aql Technologies  Inc.,Services,17600,2/1/2021
Aql Technologies  Inc.,Services,19360,2/3/2021
Aql Technologies  Inc.,Services,34320,4/1/2021
Aql Technologies  Inc.,Services,39600,6/3/2021
Aql Technologies  Inc.,Services,17600,7/1/2021
Aql Technologies  Inc.,Services,38720,10/1/2021
Aql Technologies  Inc.,Services,18480,11/8/2021
Aql Technologies  Inc.,Services,18480,12/8/2021
Aql Technologies  Inc.,Services,19360,12/8/2021
Aqua Illinois,Utilities,163.73,1/13/2021
Aqua Illinois,Utilities,39.46,3/4/2021
Aqua Illinois,Utilities,83.91,3/31/2021
Aqua Illinois,Utilities,85.15,5/13/2021
Aqua Illinois,Utilities,86.74,6/8/2021
Aqua Illinois,Utilities,83.74,6/29/2021
Aqua Illinois,Utilities,84.15,7/23/2021
Aqua Illinois,Utilities,95.03,8/25/2021
Aqua Illinois,Utilities,95.93,9/29/2021
Aqua Illinois,Utilities,90,11/3/2021
Aqua Illinois,Utilities,95.19,12/14/2021
Arc Document Solutions LLC,Materials,2463.34,6/10/2021
Arcadis Us  Inc.,Capital Purchases,4775.56,1/11/2021
Arcadis Us  Inc.,Capital Purchases,19074.25,1/22/2021
Arcadis Us  Inc.,Capital Purchases,64270.93,1/22/2021
Arcadis Us  Inc.,Capital Purchases,2780.17,1/22/2021
Arcadis Us  Inc.,Capital Purchases,16037.69,2/22/2021
Arcadis Us  Inc.,Capital Purchases,67625.67,2/25/2021
Arcadis Us  Inc.,Capital Purchases,9824.11,2/25/2021
Arcadis Us  Inc.,Capital Purchases,26826.99,3/1/2021
Arcadis Us  Inc.,Capital Purchases,37796.54,3/10/2021
Arcadis Us  Inc.,Capital Purchases,8264.88,3/17/2021
Arcadis Us  Inc.,Capital Purchases,90933.44,3/17/2021
Arcadis Us  Inc.,Capital Purchases,16791.9,4/27/2021
Arcadis Us  Inc.,Capital Purchases,8224.85,4/27/2021
Arcadis Us  Inc.,Capital Purchases,25431.98,5/3/2021
Arcadis Us  Inc.,Capital Purchases,72877.43,5/3/2021
Arcadis Us  Inc.,Capital Purchases,6905.02,5/17/2021
Arcadis Us  Inc.,Capital Purchases,128475.99,5/17/2021
Arcadis Us  Inc.,Capital Purchases,45528.7,6/22/2021
Arcadis Us  Inc.,Capital Purchases,11908.15,6/22/2021
Arcadis Us  Inc.,Capital Purchases,59275.16,7/2/2021
Arcadis Us  Inc.,Capital Purchases,55081.01,7/23/2021
Arcadis Us  Inc.,Capital Purchases,11977.01,8/9/2021
Arcadis Us  Inc.,Capital Purchases,8440.53,8/9/2021
Arcadis Us  Inc.,Capital Purchases,40845.61,8/18/2021
Arcadis Us  Inc.,Capital Purchases,22375.48,8/23/2021
Arcadis Us  Inc.,Capital Purchases,4352.38,9/20/2021
Arcadis Us  Inc.,Capital Purchases,52369.17,9/29/2021
Arcadis Us  Inc.,Capital Purchases,8771.71,10/4/2021
Arcadis Us  Inc.,Capital Purchases,27741.55,10/4/2021
Arcadis Us  Inc.,Capital Purchases,108054,11/1/2021
Arcadis Us  Inc.,Capital Purchases,9881.59,11/5/2021
Arcadis Us  Inc.,Capital Purchases,37096.77,11/8/2021
Arcadis Us  Inc.,Capital Purchases,215517.56,11/15/2021
Arcadis Us  Inc.,Capital Purchases,64415.12,12/15/2021
Arema,Services,390,4/5/2021
Arema,Services,390,5/24/2021
Arema,Services,195,6/24/2021
Arema,Services,3885,11/18/2021
Argo Inc.,Services,81700,5/3/2021
Argo Inc.,Services,76475,5/3/2021
Argo Inc.,Services,117800,6/29/2021
Argo Inc.,Services,152475,7/9/2021
Argo Inc.,Services,30400,9/9/2021
Argo Inc.,Services,252700,10/12/2021
"Argon Electric Company, Inc.",Capital Purchases,45100,6/15/2021
Arinc,Capital Purchases,5513,6/17/2021
Arlington Park Racecourse Llc Churchill Downs Inc.,Rental Expense,20815.56,1/4/2021
Arlington Park Racecourse Llc Churchill Downs Inc.,Rental Expense,20815.56,1/19/2021
Arlington Park Racecourse Llc Churchill Downs Inc.,Rental Expense,20815.56,3/2/2021
Arlington Park Racecourse Llc Churchill Downs Inc.,Rental Expense,20815.56,3/17/2021
Arlington Park Racecourse Llc Churchill Downs Inc.,Rental Expense,20815.56,4/6/2021
Arlington Park Racecourse Llc Churchill Downs Inc.,Rental Expense,20815.56,6/4/2021
Arlington Park Racecourse Llc Churchill Downs Inc.,Rental Expense,20815.56,6/14/2021
Arlington Park Racecourse Llc Churchill Downs Inc.,Rental Expense,20815.56,7/19/2021
Arlington Park Racecourse Llc Churchill Downs Inc.,Rental Expense,20815.56,8/16/2021
Arlington Park Racecourse Llc Churchill Downs Inc.,Rental Expense,20815.56,9/14/2021
Arlington Park Racecourse Llc Churchill Downs Inc.,Rental Expense,20815.56,10/12/2021
Arlington Park Racecourse Llc Churchill Downs Inc.,Rental Expense,20815.56,11/9/2021
Arlington Park Racecourse Llc Churchill Downs Inc.,Rental Expense,20815.56,12/8/2021
"ARM Camco, LLC",Capital Purchases,10194,5/3/2021
Armando Palacios,Services,791,11/17/2021
Armando Palacios,Services,508.5,11/29/2021
Armando Palacios,Services,56.5,12/15/2021
"Armored Roi Services, Inc",Claims & Insurance,118.29,7/19/2021
"Armored Roi Services, Inc",Claims & Insurance,34.7,8/13/2021
Arnold Maxey,Services,283.25,1/4/2021
Arnold Maxey,Services,299.58,1/12/2021
Arnold Maxey,Services,81.31,1/27/2021
Arnold Maxey,Services,260.85,2/17/2021
Arnold Maxey,Services,270.26,2/24/2021
Arnold Maxey,Services,188.94,3/8/2021
Arnold Maxey,Services,296.13,4/1/2021
Arnold Maxey,Services,182.11,4/20/2021
Arnold Maxey,Services,125.1,5/19/2021
Arnold Maxey,Services,245.84,5/24/2021
Arnold Maxey,Services,345.74,6/21/2021
Arnold Maxey,Services,242.37,6/29/2021
Arnold Maxey,Services,242.37,7/21/2021
Arnold Maxey,Services,337.79,8/5/2021
Arnold Maxey,Services,341.6,8/19/2021
Arnold Maxey,Services,313.71,9/2/2021
Arnold Maxey,Services,280.22,9/20/2021
Arnold Maxey,Services,203.28,10/4/2021
Arnold Maxey,Services,283.81,10/20/2021
Arnold Maxey,Services,303.74,11/12/2021
Arnold Maxey,Services,363.44,11/22/2021
Arnold Maxey,Services,79.3,12/8/2021
Arnold Maxey,Services,284.03,12/20/2021
Ars Corp.,Services,10912.8,7/9/2021
Ars Corp.,Services,10912.8,7/13/2021
Ars Corp.,Services,3637.6,8/5/2021
Ars Corp.,Services,20975.92,8/20/2021
Ars Corp.,Services,12839.2,8/26/2021
Ars Corp.,Services,443.52,9/17/2021
Ars Corp.,Services,21938.48,9/17/2021
Ars Corp.,Services,7275.2,9/17/2021
Ars Corp.,Services,1872,9/20/2021
Ars Corp.,Services,39813,9/20/2021
Ars Corp.,Services,7275.2,9/20/2021
Ars Corp.,Services,24248.32,9/20/2021
Ars Corp.,Services,2142.88,10/1/2021
Ars Corp.,Services,1494.72,10/1/2021
Ars Corp.,Services,1494.72,10/1/2021
Ars Corp.,Services,2142.88,10/1/2021
Ars Corp.,Services,30213.6,10/8/2021
Ars Corp.,Services,3637.6,10/14/2021
Ars Corp.,Services,9500.8,11/11/2021
Ars Corp.,Services,26066.4,11/11/2021
Ars Corp.,Services,13844.4,12/7/2021
Arsenio Pomales,Services,82.43,11/17/2021
Arsenio Pomales,Services,49.5,12/15/2021
Arthur J Gallagher Risk Management Risk Management Services  Inc.,Claims & Insurance,1191114,1/14/2021
Arthur J Gallagher Risk Management Risk Management Services  Inc.,Claims & Insurance,172277,1/25/2021
Arthur J Gallagher Risk Management Risk Management Services  Inc.,Claims & Insurance,125,2/16/2021
Arthur J Gallagher Risk Management Risk Management Services  Inc.,Claims & Insurance,8614,3/3/2021
Arthur J Gallagher Risk Management Risk Management Services  Inc.,Claims & Insurance,93870,3/9/2021
Arthur J Gallagher Risk Management Risk Management Services  Inc.,Claims & Insurance,33613,3/18/2021
Arthur J Gallagher Risk Management Risk Management Services  Inc.,Claims & Insurance,21338,3/23/2021
Arthur J Gallagher Risk Management Risk Management Services  Inc.,Claims & Insurance,607861,3/31/2021
Arthur J Gallagher Risk Management Risk Management Services  Inc.,Claims & Insurance,47048,4/12/2021
Arthur J Gallagher Risk Management Risk Management Services  Inc.,Claims & Insurance,33317,5/5/2021
Arthur J Gallagher Risk Management Risk Management Services  Inc.,Claims & Insurance,1431,6/22/2021
Arthur J Gallagher Risk Management Risk Management Services  Inc.,Claims & Insurance,16918,7/9/2021
Arthur J Gallagher Risk Management Risk Management Services  Inc.,Claims & Insurance,151707,7/29/2021
Arthur J Gallagher Risk Management Risk Management Services  Inc.,Claims & Insurance,527740,7/29/2021
Arthur J Gallagher Risk Management Risk Management Services  Inc.,Claims & Insurance,2488997.6,7/30/2021
Arthur J Gallagher Risk Management Risk Management Services  Inc.,Claims & Insurance,138212,7/30/2021
Arthur J Gallagher Risk Management Risk Management Services  Inc.,Claims & Insurance,1188355.27,8/13/2021
Arthur J Gallagher Risk Management Risk Management Services  Inc.,Claims & Insurance,1876525,8/13/2021
Arthur J Gallagher Risk Management Risk Management Services  Inc.,Claims & Insurance,1608349.34,8/13/2021
Arthur J Gallagher Risk Management Risk Management Services  Inc.,Claims & Insurance,340,8/16/2021
Arthur J Gallagher Risk Management Risk Management Services  Inc.,Claims & Insurance,58839,9/2/2021
Arthur J Gallagher Risk Management Risk Management Services  Inc.,Claims & Insurance,95952,9/8/2021
Arthur J Gallagher Risk Management Risk Management Services  Inc.,Claims & Insurance,11977,10/19/2021
Arthur J Gallagher Risk Management Risk Management Services  Inc.,Claims & Insurance,4311,12/17/2021
Arthur J Gallagher Risk Management Risk Management Services  Inc.,Claims & Insurance,729,12/17/2021
Arthur J Gallagher Risk Management Risk Management Services  Inc.,Claims & Insurance,1046,12/17/2021
Arthur J Gallagher Risk Management Risk Management Services  Inc.,Claims & Insurance,482,12/17/2021
Arthur J Gallagher Risk Management Risk Management Services  Inc.,Claims & Insurance,185151,12/21/2021
Arturo J Mota,Services,114.69,2/8/2021
Arturo J Mota,Services,87.47,3/8/2021
Arturo J Mota,Services,108.7,4/1/2021
Arturo J Mota,Services,208.6,5/3/2021
Arturo J Mota,Services,584.58,6/2/2021
Arturo J Mota,Services,500.64,7/2/2021
Arturo J Mota,Services,569.07,8/3/2021
Arturo J Mota,Services,393.74,9/2/2021
Arturo J Mota,Services,502.49,10/4/2021
Arturo J Mota,Services,263.14,10/27/2021
Arturo J Mota,Services,380.8,12/8/2021
Arturo J Mota,Services,108.7,12/15/2021
Aruj Chaudhry,Services,69.79,10/20/2021
Asas/Tysol  Inc.,Materials,6480,5/11/2021
Asas/Tysol  Inc.,Materials,3240,6/28/2021
Asas/Tysol  Inc.,Materials,3555,11/15/2021
ASCO Power Services Inc,Materials,6590.42,3/1/2021
Ashrae,Services,280,10/20/2021
Asis International,Services,195,1/25/2021
Asis International,Services,234,11/17/2021
ASNT,Services,150,5/13/2021
"Asplundh Tree Expert, LLC",Services,61241.94,6/21/2021
"Asplundh Tree Expert, LLC",Services,41305.48,6/30/2021
"Asplundh Tree Expert, LLC",Services,24701.35,6/30/2021
"Asplundh Tree Expert, LLC",Services,36769.04,7/1/2021
"Asplundh Tree Expert, LLC",Services,28034.16,9/22/2021
"Asplundh Tree Expert, LLC",Services,16853.87,9/22/2021
"Asplundh Tree Expert, LLC",Services,25697.98,10/8/2021
"Asplundh Tree Expert, LLC",Services,4209.2,10/20/2021
"Asplundh Tree Expert, LLC",Services,15370.48,10/20/2021
"Asplundh Tree Expert, LLC",Services,31082.84,10/20/2021
"Asplundh Tree Expert, LLC",Services,13696.68,10/20/2021
"Asplundh Tree Expert, LLC",Services,20247.6,11/5/2021
ASQ,Services,169,2/17/2021
ASQ,Services,749,3/8/2021
ASQ,Services,749,5/3/2021
ASQ,Services,169,7/14/2021
Assn. Of American Railroads (AAR),Services,84375,1/19/2021
Assn. Of American Railroads (AAR),Services,3926,1/21/2021
Assn. Of American Railroads (AAR),Services,3926,1/28/2021
Assn. Of American Railroads (AAR),Capital Purchases,18051.84,2/10/2021
Assn. Of American Railroads (AAR),Services,3926,2/25/2021
Assn. Of American Railroads (AAR),Services,3926,4/6/2021
Assn. Of American Railroads (AAR),Services,108601,5/4/2021
Assn. Of American Railroads (AAR),Services,3926,5/4/2021
Assn. Of American Railroads (AAR),Services,3926,5/26/2021
Assn. Of American Railroads (AAR),Services,3926,7/7/2021
Assn. Of American Railroads (AAR),Services,53,7/21/2021
Assn. Of American Railroads (AAR),Services,3578,7/21/2021
Assn. Of American Railroads (AAR),Services,3926,7/27/2021
Assn. Of American Railroads (AAR),Services,3926,8/30/2021
Assn. Of American Railroads (AAR),Services,3926,9/28/2021
Assn. Of American Railroads (AAR),Services,3926,11/2/2021
Assn. Of American Railroads (AAR),Services,3926,11/29/2021
Assn. Of American Railroads (AAR),Services,2003,12/21/2021
Associated Urological Specialists LLC,Claims & Insurance,700,10/13/2021
Association for Financial Professionals,Services,495,2/3/2021
Association for Financial Professionals,Services,605,6/4/2021
Association of Government Accountants,Services,137,5/3/2021
AT & T,Utilities,4793.41,1/4/2021
AT & T,Utilities,6234.03,1/4/2021
AT & T,Utilities,2266.74,1/4/2021
AT & T,Utilities,14303.83,1/4/2021
AT & T,Utilities,3480,1/4/2021
AT & T,Utilities,3294.14,1/11/2021
AT & T,Utilities,343.78,1/11/2021
AT & T,Utilities,6171.36,1/11/2021
AT & T,Utilities,448433.92,1/11/2021
AT & T,Utilities,2266.74,1/11/2021
AT & T,Utilities,624.24,1/11/2021
AT & T,Utilities,7615.08,1/11/2021
AT & T,Utilities,17729.9,1/11/2021
AT & T,Utilities,1221.4,1/11/2021
AT & T,Utilities,13245.02,1/11/2021
AT & T,Utilities,2918,1/11/2021
AT & T,Utilities,38105.22,1/11/2021
AT & T,Utilities,40622.54,1/11/2021
AT & T,Utilities,4793.41,1/11/2021
AT & T,Utilities,12606.12,1/11/2021
AT & T,Utilities,3926.3,1/21/2021
AT & T,Utilities,8691.5,1/21/2021
AT & T,Utilities,2918,1/26/2021
AT & T,Utilities,2642.3,1/26/2021
AT & T,Utilities,40622.54,1/26/2021
AT & T,Utilities,343.78,1/26/2021
AT & T,Utilities,12606.12,1/26/2021
AT & T,Utilities,590.01,1/26/2021
AT & T,Utilities,782553.28,1/27/2021
AT & T,Utilities,2744.8,1/27/2021
AT & T,Utilities,794.99,1/27/2021
AT & T,Utilities,64451.21,1/27/2021
AT & T,Utilities,1221.4,1/27/2021
AT & T,Utilities,8215.34,1/27/2021
AT & T,Utilities,9242.67,1/27/2021
AT & T,Utilities,67790.1,1/27/2021
AT & T,Utilities,38021.27,1/27/2021
AT & T,Utilities,17729.9,1/27/2021
AT & T,Utilities,3928.39,1/27/2021
AT & T,Utilities,840.36,1/27/2021
AT & T,Utilities,3294.14,2/17/2021
AT & T,Utilities,6622.57,2/17/2021
AT & T,Utilities,4354,2/17/2021
AT & T,Utilities,39186.54,2/17/2021
AT & T,Utilities,3480,2/17/2021
AT & T,Utilities,454714.83,2/17/2021
AT & T,Utilities,13427.57,2/17/2021
AT & T,Utilities,4469.04,2/17/2021
AT & T,Utilities,9806.13,2/17/2021
AT & T,Utilities,3480,2/17/2021
AT & T,Utilities,6289.03,2/17/2021
AT & T,Utilities,2289.41,2/17/2021
AT & T,Utilities,3990.81,2/17/2021
AT & T,Utilities,7615.08,2/17/2021
AT & T,Utilities,2246.21,2/17/2021
AT & T,Utilities,6423.57,2/17/2021
AT & T,Utilities,873.65,3/2/2021
AT & T,Utilities,2676.87,3/2/2021
AT & T,Utilities,8234.85,3/2/2021
AT & T,Utilities,60464.36,3/2/2021
AT & T,Utilities,592.31,3/2/2021
AT & T,Utilities,343.78,3/2/2021
AT & T,Utilities,38766.03,3/2/2021
AT & T,Utilities,15816.52,3/2/2021
AT & T,Utilities,7615.08,4/19/2021
AT & T,Utilities,13976.04,4/19/2021
AT & T,Utilities,3972.07,4/19/2021
AT & T,Utilities,7615.08,4/19/2021
AT & T,Utilities,2275.27,4/19/2021
AT & T,Utilities,2279.69,4/19/2021
AT & T,Utilities,13435.63,4/20/2021
AT & T,Utilities,1221.4,4/20/2021
AT & T,Utilities,2289.41,4/20/2021
AT & T,Utilities,10753.04,4/20/2021
AT & T,Utilities,482397.04,4/20/2021
AT & T,Utilities,14926.23,4/20/2021
AT & T,Utilities,885.83,4/20/2021
AT & T,Utilities,590.01,4/20/2021
AT & T,Utilities,4970.67,4/20/2021
AT & T,Utilities,3480,4/20/2021
AT & T,Utilities,343.78,4/20/2021
AT & T,Utilities,8886.93,4/20/2021
AT & T,Utilities,6577.16,4/20/2021
AT & T,Utilities,5863.98,4/20/2021
AT & T,Utilities,480943.94,4/20/2021
AT & T,Utilities,4970.67,4/20/2021
AT & T,Utilities,3480,4/20/2021
AT & T,Utilities,2679.55,4/20/2021
AT & T,Utilities,1221.4,4/20/2021
AT & T,Utilities,3294.14,4/20/2021
AT & T,Utilities,17729.9,4/20/2021
AT & T,Utilities,17729.9,4/20/2021
AT & T,Utilities,60929.92,4/20/2021
AT & T,Utilities,13255.92,4/20/2021
AT & T,Utilities,38117.79,4/20/2021
AT & T,Utilities,929.37,4/29/2021
AT & T,Utilities,2719.98,4/29/2021
AT & T,Utilities,2301.07,4/29/2021
AT & T,Utilities,343.78,4/29/2021
AT & T,Utilities,61429.84,4/29/2021
AT & T,Utilities,12849.23,4/29/2021
AT & T,Utilities,590.01,4/29/2021
AT & T,Utilities,40064.37,4/29/2021
AT & T,Utilities,3294.14,4/29/2021
AT & T,Utilities,38384.67,4/29/2021
AT & T,Utilities,1221.4,4/29/2021
AT & T,Utilities,17729.9,4/29/2021
AT & T,Utilities,4451.6,4/29/2021
AT & T,Utilities,10119.99,4/29/2021
AT & T,Utilities,13255.92,5/3/2021
AT & T,Utilities,13489.39,5/13/2021
AT & T,Utilities,3480,5/13/2021
AT & T,Utilities,477164.16,5/13/2021
AT & T,Utilities,10.2,5/13/2021
AT & T,Utilities,590.01,5/13/2021
AT & T,Utilities,12125.38,5/13/2021
AT & T,Utilities,4771.37,5/13/2021
AT & T,Utilities,6251.11,5/13/2021
AT & T,Utilities,1524.6,5/13/2021
AT & T,Utilities,42942.37,5/13/2021
AT & T,Utilities,3294.14,5/13/2021
AT & T,Utilities,4354.05,5/13/2021
AT & T,Utilities,39186.49,5/13/2021
AT & T,Utilities,1857.3,5/14/2021
AT & T,Utilities,10207.36,5/14/2021
AT & T,Utilities,13255.92,5/14/2021
AT & T,Utilities,5484.32,5/14/2021
AT & T,Utilities,61903.16,5/14/2021
AT & T,Utilities,38225.89,5/14/2021
AT & T,Utilities,5708.36,5/19/2021
AT & T,Utilities,2314.47,5/19/2021
AT & T,Utilities,13598.17,5/19/2021
AT & T,Utilities,1221.4,5/27/2021
AT & T,Utilities,17729.9,5/27/2021
AT & T,Utilities,351.48,5/27/2021
AT & T,Utilities,3294.14,6/1/2021
AT & T,Capital Purchases,102625.6,6/2/2021
AT & T,Utilities,5031.11,6/3/2021
AT & T,Utilities,35.36,6/4/2021
AT & T,Utilities,7615.08,6/4/2021
AT & T,Utilities,930.7,6/11/2021
AT & T,Utilities,13804.27,6/11/2021
AT & T,Utilities,2358.64,6/14/2021
AT & T,Utilities,12110.32,6/14/2021
AT & T,Utilities,847,6/14/2021
AT & T,Utilities,536477.82,6/14/2021
AT & T,Utilities,43575.92,6/14/2021
AT & T,Utilities,13490.34,6/14/2021
AT & T,Utilities,3780,6/14/2021
AT & T,Utilities,6227.59,6/14/2021
AT & T,Utilities,4841.77,6/14/2021
AT & T,Utilities,597.09,6/18/2021
AT & T,Utilities,38011.74,6/18/2021
AT & T,Utilities,60581.22,6/18/2021
AT & T,Utilities,13255.92,6/18/2021
AT & T,Utilities,9790.79,6/18/2021
AT & T,Utilities,344.42,6/23/2021
AT & T,Utilities,1221.4,6/23/2021
AT & T,Utilities,3816.52,6/23/2021
AT & T,Utilities,3294.14,6/23/2021
AT & T,Utilities,17729.9,6/23/2021
AT & T,Utilities,12088.49,7/6/2021
AT & T,Utilities,14059.68,7/6/2021
AT & T,Utilities,7919.78,7/6/2021
AT & T,Utilities,7615.08,7/6/2021
AT & T,Utilities,5031.11,7/6/2021
AT & T,Utilities,1541.67,7/16/2021
AT & T,Utilities,48852.52,7/16/2021
AT & T,Utilities,11414.2,7/16/2021
AT & T,Utilities,59147.4,7/16/2021
AT & T,Utilities,38226.33,7/16/2021
AT & T,Utilities,461342.36,7/16/2021
AT & T,Utilities,5428.1,7/16/2021
AT & T,Utilities,2401.66,7/16/2021
AT & T,Utilities,13887,7/16/2021
AT & T,Utilities,847,7/16/2021
AT & T,Utilities,7615.08,7/16/2021
AT & T,Utilities,5266,7/16/2021
AT & T,Utilities,872.92,7/28/2021
AT & T,Utilities,5167.8,7/28/2021
AT & T,Utilities,7216.14,7/28/2021
AT & T,Utilities,3472.74,7/28/2021
AT & T,Utilities,17729.9,7/28/2021
AT & T,Utilities,345.06,7/28/2021
AT & T,Utilities,590.01,7/28/2021
AT & T,Utilities,1221.4,7/28/2021
AT & T,Utilities,13255.92,7/28/2021
AT & T,Utilities,847,8/11/2021
AT & T,Utilities,13429.06,8/11/2021
AT & T,Utilities,467071.02,8/11/2021
AT & T,Utilities,13671,8/11/2021
AT & T,Utilities,4970.67,8/11/2021
AT & T,Utilities,5137.37,8/17/2021
AT & T,Utilities,42219.22,8/17/2021
AT & T,Utilities,953.27,8/17/2021
AT & T,Utilities,590.01,8/17/2021
AT & T,Utilities,12062.9,8/17/2021
AT & T,Utilities,4691.03,8/17/2021
AT & T,Utilities,14134.3,8/26/2021
AT & T,Utilities,348.27,8/26/2021
AT & T,Utilities,67612.59,8/26/2021
AT & T,Utilities,11623.79,8/26/2021
AT & T,Utilities,13255.92,8/26/2021
AT & T,Utilities,6156.56,8/26/2021
AT & T,Utilities,38377.36,8/26/2021
AT & T,Utilities,12069.3,9/8/2021
AT & T,Utilities,13430.24,9/8/2021
AT & T,Utilities,7615.08,9/8/2021
AT & T,Utilities,3294.14,9/8/2021
AT & T,Utilities,1221.4,9/8/2021
AT & T,Utilities,4970.67,9/8/2021
AT & T,Utilities,17729.9,9/8/2021
AT & T,Utilities,6835.5,9/8/2021
AT & T,Utilities,847,9/14/2021
AT & T,Utilities,45568.04,9/14/2021
AT & T,Utilities,5063.12,9/14/2021
AT & T,Utilities,496689.44,9/14/2021
AT & T,Utilities,1027.68,9/14/2021
AT & T,Utilities,590.01,9/23/2021
AT & T,Utilities,5200.44,9/23/2021
AT & T,Utilities,1927.04,9/23/2021
AT & T,Utilities,13255.92,9/23/2021
AT & T,Utilities,3294.14,9/23/2021
AT & T,Utilities,17729.9,9/23/2021
AT & T,Utilities,347.63,9/23/2021
AT & T,Utilities,11594.23,9/23/2021
AT & T,Utilities,1221.4,9/23/2021
AT & T,Utilities,68509.29,9/23/2021
AT & T,Utilities,847,10/11/2021
AT & T,Utilities,12062.9,10/11/2021
AT & T,Utilities,13431.79,10/11/2021
AT & T,Utilities,7615.08,10/11/2021
AT & T,Utilities,45810.45,10/11/2021
AT & T,Utilities,2313.32,10/11/2021
AT & T,Utilities,5090.05,10/11/2021
AT & T,Utilities,830.47,10/12/2021
AT & T,Utilities,4970.67,10/12/2021
AT & T,Utilities,6327.98,10/12/2021
AT & T,Utilities,6835.5,10/12/2021
AT & T,Utilities,6382.55,10/12/2021
AT & T,Utilities,2066.58,10/12/2021
AT & T,Utilities,3780,10/12/2021
AT & T,Utilities,470233.93,10/12/2021
AT & T,Utilities,14182.52,10/12/2021
AT & T,Utilities,3606.41,10/22/2021
AT & T,Utilities,5219.06,10/22/2021
AT & T,Utilities,1927.04,10/22/2021
AT & T,Utilities,346.57,10/22/2021
AT & T,Utilities,39590,10/22/2021
AT & T,Utilities,73709.06,10/22/2021
AT & T,Utilities,13255.92,10/22/2021
AT & T,Utilities,1005.02,10/22/2021
AT & T,Utilities,3294.14,10/22/2021
AT & T,Utilities,17729.9,10/22/2021
AT & T,Utilities,8645.12,10/22/2021
AT & T,Utilities,1221.4,10/22/2021
AT & T,Utilities,2297.1,11/8/2021
AT & T,Utilities,39479,11/8/2021
AT & T,Utilities,14303.41,11/8/2021
AT & T,Utilities,3780,11/8/2021
AT & T,Utilities,6249.46,11/8/2021
AT & T,Utilities,4868.86,11/8/2021
AT & T,Utilities,7630.69,11/8/2021
AT & T,Utilities,499898.12,11/17/2021
AT & T,Utilities,13329.07,11/17/2021
AT & T,Utilities,12062.9,11/17/2021
AT & T,Utilities,14568.28,11/23/2021
AT & T,Utilities,5256.35,11/23/2021
AT & T,Utilities,1953.29,11/23/2021
AT & T,Utilities,6835.5,11/23/2021
AT & T,Utilities,2340.91,11/23/2021
AT & T,Utilities,2302.41,11/23/2021
AT & T,Utilities,991.26,11/23/2021
AT & T,Utilities,1039.96,11/23/2021
AT & T,Utilities,1356.05,12/2/2021
AT & T,Utilities,13255.92,12/2/2021
AT & T,Utilities,9420.49,12/2/2021
AT & T,Utilities,134227.44,12/2/2021
AT & T,Utilities,46793.8,12/2/2021
AT & T,Utilities,5199.31,12/2/2021
AT & T,Utilities,39592.32,12/2/2021
AT & T,Utilities,1221.4,12/13/2021
AT & T,Utilities,6835.5,12/13/2021
AT & T,Utilities,46947.1,12/13/2021
AT & T,Utilities,2338.67,12/13/2021
AT & T,Utilities,3294.14,12/13/2021
AT & T,Utilities,17729.9,12/13/2021
AT & T,Utilities,14917.93,12/13/2021
AT & T,Utilities,6224.42,12/13/2021
AT & T,Utilities,12062.9,12/13/2021
AT & T,Utilities,4868.86,12/13/2021
AT & T,Utilities,347.85,12/13/2021
AT & T,Utilities,483639.62,12/13/2021
AT & T,Utilities,1039.96,12/13/2021
AT & T,Utilities,7630.69,12/13/2021
AT & T,Utilities,5216.35,12/13/2021
AT & T,Utilities,3780,12/13/2021
AT & T,Utilities,847.42,12/13/2021
AT & T,Utilities,13331.09,12/13/2021
Athletico Ltd.,Claims & Insurance,250,6/22/2021
Athletico Ltd.,Claims & Insurance,400,11/2/2021
Athletico Ltd.,Claims & Insurance,4451,11/9/2021
A-Tire County Service  Inc.,Services,360,1/4/2021
A-Tire County Service  Inc.,Services,3909.38,1/4/2021
A-Tire County Service  Inc.,Services,3482,2/3/2021
A-Tire County Service  Inc.,Services,2507.87,2/4/2021
A-Tire County Service  Inc.,Services,7929.12,3/3/2021
A-Tire County Service  Inc.,Services,120.82,4/26/2021
A-Tire County Service  Inc.,Services,5048.91,4/26/2021
A-Tire County Service  Inc.,Services,46,4/26/2021
A-Tire County Service  Inc.,Services,23,4/26/2021
A-Tire County Service  Inc.,Services,1535.44,5/3/2021
A-Tire County Service  Inc.,Services,9483.53,5/11/2021
A-Tire County Service  Inc.,Services,46,5/11/2021
A-Tire County Service  Inc.,Services,492.5,5/14/2021
A-Tire County Service  Inc.,Services,23,5/14/2021
A-Tire County Service  Inc.,Services,5533.96,5/17/2021
A-Tire County Service  Inc.,Services,360,5/26/2021
A-Tire County Service  Inc.,Services,6228.69,5/26/2021
A-Tire County Service  Inc.,Services,7164.49,5/26/2021
A-Tire County Service  Inc.,Services,8220.7,7/7/2021
A-Tire County Service  Inc.,Services,1006.95,7/7/2021
A-Tire County Service  Inc.,Services,1893.01,8/19/2021
A-Tire County Service  Inc.,Services,2822.27,9/22/2021
A-Tire County Service  Inc.,Services,90,9/23/2021
A-Tire County Service  Inc.,Services,366.7,10/18/2021
A-Tire County Service  Inc.,Services,23,10/18/2021
A-Tire County Service  Inc.,Services,2414.26,10/19/2021
A-Tire County Service  Inc.,Services,1839.82,10/19/2021
A-Tire County Service  Inc.,Materials,2117.5,10/19/2021
A-Tire County Service  Inc.,Materials,1550.54,10/19/2021
A-Tire County Service  Inc.,Services,246,11/5/2021
A-Tire County Service  Inc.,Materials,52.5,11/5/2021
Atlantic Track & Turnout Co.,Capital Purchases,67243.35,1/22/2021
Atlantic Track & Turnout Co.,Capital Purchases,67243.35,2/3/2021
Atlantic Track & Turnout Co.,Materials,143285.76,2/4/2021
Atlantic Track & Turnout Co.,Capital Purchases,67243.35,2/4/2021
Atlantic Track & Turnout Co.,Capital Purchases,67243.35,3/3/2021
Atlantic Track & Turnout Co.,Capital Purchases,67243.35,3/9/2021
Atlantic Track & Turnout Co.,Materials,52804.08,5/3/2021
Atlantic Track & Turnout Co.,Capital Purchases,141678,6/17/2021
Atlantic Track & Turnout Co.,Materials,7426.6,11/3/2021
Atlantic Track & Turnout Co.,Materials,19675.37,12/1/2021
Atlantic Track & Turnout Co.,Materials,33077.51,12/17/2021
Atlas & Associates  Inc.,Capital Purchases,121000,3/10/2021
Atlas & Associates  Inc.,Capital Purchases,32000,4/5/2021
Atlas & Associates  Inc.,Capital Purchases,36000,5/19/2021
Atlas & Associates  Inc.,Capital Purchases,81000,10/8/2021
Atlas Bobcat Llc,Materials,7500,3/3/2021
Atlas Bobcat Llc,Capital Purchases,6100,5/3/2021
Atlas Copco Compressors LLC,Services,9366.33,3/2/2021
Atlas Copco Compressors LLC,Materials,3161.08,3/2/2021
Atlas Copco Compressors LLC,Services,1110,3/2/2021
Atlas Copco Compressors LLC,Services,866.5,11/5/2021
Atlas Copco Compressors LLC,Services,14007.7,11/5/2021
Atlas First Access,Services,3231.8,1/4/2021
Atlas First Access,Services,1495.6,1/4/2021
Atlas First Access,Services,2530.94,1/22/2021
Atlas First Access,Services,3532.49,1/22/2021
Atlas First Access,Services,514.8,1/22/2021
Atlas First Access,Services,140.4,2/4/2021
Atlas First Access,Services,2740.14,2/4/2021
Atlas First Access,Services,215.94,2/19/2021
Atlas First Access,Services,1121.76,2/19/2021
Atlas First Access,Capital Purchases,92958,2/25/2021
Atlas First Access,Services,9623.77,2/25/2021
Atlas First Access,Services,1056.25,2/25/2021
Atlas First Access,Services,2393,2/25/2021
Atlas First Access,Services,117,3/3/2021
Atlas First Access,Services,327.6,4/15/2021
Atlas First Access,Services,309.54,4/23/2021
Atlas First Access,Services,1435.9,5/3/2021
Atlas First Access,Materials,39600,5/11/2021
Atlas First Access,Materials,1114.13,5/17/2021
Atlas First Access,Services,1415.22,5/17/2021
Atlas First Access,Services,145,5/17/2021
Atlas First Access,Services,235,6/30/2021
Atlas First Access,Services,801.57,6/30/2021
Atlas First Access,Services,282.5,6/30/2021
Atlas First Access,Materials,2092.8,7/28/2021
Atlas First Access,Services,460.43,7/28/2021
Atlas First Access,Services,2714.86,7/28/2021
Atlas First Access,Services,332.5,7/28/2021
Atlas First Access,Services,145,8/20/2021
Atlas First Access,Services,1224.12,8/20/2021
Atlas First Access,Services,25654.55,8/25/2021
Atlas First Access,Services,1117.11,8/25/2021
Atlas First Access,Services,190,8/25/2021
Atlas First Access,Capital Purchases,7000,8/30/2021
Atlas First Access,Services,920.88,9/10/2021
Atlas First Access,Services,6891,9/10/2021
Atlas First Access,Services,17405.52,9/10/2021
Atlas First Access,Services,3176.99,9/10/2021
Atlas First Access,Materials,190,9/30/2021
Atlas First Access,Materials,95.77,9/30/2021
Atlas First Access,Services,0.77,9/30/2021
Atlas First Access,Materials,95,9/30/2021
Atlas First Access,Materials,1337,10/8/2021
Atlas First Access,Materials,95,10/19/2021
Atlas First Access,Materials,665,10/19/2021
Atlas First Access,Services,2723,10/19/2021
Atlas First Access,Services,706.98,10/19/2021
Atlas First Access,Services,3062.18,11/12/2021
Atlas First Access,Materials,2232.5,11/12/2021
Atlas First Access,Materials,3480.94,12/1/2021
Atlas First Access,Materials,609.01,12/1/2021
Atlas First Access,Services,12892.23,12/1/2021
Atlas First Access,Services,1780.56,12/1/2021
Atlas First Access,Services,294,12/17/2021
Atlas First Access,Services,0.74,12/17/2021
Atlas First Access,Materials,95,12/17/2021
Atlas First Access,Materials,280.08,12/17/2021
Atlas First Access,Services,617.5,12/17/2021
Atlas Toyota Material Handling  LLC,Materials,22788.98,2/25/2021
Atomic Transmissions,Services,3125,10/19/2021
Attorney Registration & Disciplinary  Commission,Services,264,2/4/2021
Attorney Registration & Disciplinary  Commission,Services,385,11/29/2021
Attorney Registration & Disciplinary  Commission,Services,385,11/29/2021
Attorney Registration & Disciplinary  Commission,Services,385,11/29/2021
Attorney Registration & Disciplinary  Commission,Services,385,11/29/2021
Attorney Registration & Disciplinary  Commission,Services,385,11/29/2021
Attorney Registration & Disciplinary  Commission,Services,385,11/29/2021
Attorney Registration & Disciplinary  Commission,Services,385,11/29/2021
Attorney Registration & Disciplinary  Commission,Services,385,11/29/2021
Attorney Registration & Disciplinary  Commission,Services,385,11/29/2021
Attorney Registration & Disciplinary  Commission,Services,385,11/29/2021
Attorney Registration & Disciplinary  Commission,Services,385,11/29/2021
Attorney Registration & Disciplinary  Commission,Services,385,12/1/2021
Attorney Registration & Disciplinary  Commission,Services,385,12/2/2021
Attorney Registration & Disciplinary  Commission,Services,385,12/2/2021
Attorney Registration & Disciplinary  Commission,Services,121,12/2/2021
Attorney Registration & Disciplinary  Commission,Services,385,12/6/2021
Attorney Registration & Disciplinary  Commission,Services,385,12/14/2021
Aurelio E. Rocha,Services,31.92,2/25/2021
Aurelio E. Rocha,Services,21.28,4/6/2021
Aurelio E. Rocha,Services,171.36,4/6/2021
Aurelio E. Rocha,Services,50.4,5/7/2021
Aurelio E. Rocha,Services,41.44,5/7/2021
Aurelio E. Rocha,Services,64.96,7/9/2021
Aurelio E. Rocha,Services,6.61,7/9/2021
Aurelio E. Rocha,Services,16.8,10/14/2021
Aurelio E. Rocha,Services,189.28,10/14/2021
Aurelio E. Rocha,Services,106.4,11/15/2021
"Aurora Medical Group, Inc",Claims & Insurance,1000,3/8/2021
Auto Glass Plus Inc,Services,154.96,8/10/2021
Auto Glass Plus Inc,Services,1050,10/20/2021
Automated Railroad Mntce. Systems Systems  Inc. (Arms  Inc.),Capital Purchases,7583.4,1/4/2021
Automated Railroad Mntce. Systems Systems  Inc. (Arms  Inc.),Capital Purchases,1897.76,12/1/2021
AVI Systems Inc.,Capital Purchases,145046,4/16/2021
AVI Systems Inc.,Capital Purchases,34338,9/27/2021
"Axon Enterprise, Inc",Materials,142200,6/14/2021
"Axon Enterprise, Inc",Materials,49120.4,7/1/2021
"Axon Enterprise, Inc",Services,699,11/3/2021
Axonius Inc.,Capital Purchases,40162.5,5/6/2021
Axonius Inc.,Services,107100.05,5/6/2021
Axonius Inc.,Capital Purchases,53549.95,5/6/2021
Axonius Inc.,Capital Purchases,95306.25,7/12/2021
Axonius Inc.,Services,14662.5,7/12/2021
Azura Investigations Llc,Services,307,2/1/2021
Azura Investigations Llc,Services,854,2/19/2021
Azura Investigations Llc,Services,646,3/3/2021
Azura Investigations Llc,Services,458,5/3/2021
Azura Investigations Llc,Services,2513,5/14/2021
Azura Investigations Llc,Services,2572,6/7/2021
Azura Investigations Llc,Services,5481,7/9/2021
Azura Investigations Llc,Services,5835,10/4/2021
Azura Investigations Llc,Services,3158,10/8/2021
Azura Investigations Llc,Services,2146,10/19/2021
Azura Investigations Llc,Services,3548,12/9/2021
B & H Photo Video Corp.,Services,279.76,6/24/2021
B & H Photo Video Corp.,Services,599.8,7/1/2021
"Babak Mokhlesi, MD",Claims & Insurance,3850,1/4/2021
Bach-Simpson Div. Of Wabtec Canada  Inc.,Capital Purchases,56955,2/1/2021
Bach-Simpson Div. Of Wabtec Canada  Inc.,Materials,289,2/1/2021
Bach-Simpson Div. Of Wabtec Canada  Inc.,Services,1190,2/4/2021
Bach-Simpson Div. Of Wabtec Canada  Inc.,Services,595,2/4/2021
Bach-Simpson Div. Of Wabtec Canada  Inc.,Materials,1990,2/17/2021
Bach-Simpson Div. Of Wabtec Canada  Inc.,Materials,425,2/17/2021
Bach-Simpson Div. Of Wabtec Canada  Inc.,Materials,525,3/1/2021
Bach-Simpson Div. Of Wabtec Canada  Inc.,Materials,1734,3/3/2021
Bach-Simpson Div. Of Wabtec Canada  Inc.,Materials,1734,3/3/2021
Bach-Simpson Div. Of Wabtec Canada  Inc.,Materials,3425,3/16/2021
Bach-Simpson Div. Of Wabtec Canada  Inc.,Materials,5360,3/19/2021
Bach-Simpson Div. Of Wabtec Canada  Inc.,Materials,4020,3/26/2021
Bach-Simpson Div. Of Wabtec Canada  Inc.,Materials,425,4/1/2021
Bach-Simpson Div. Of Wabtec Canada  Inc.,Materials,5360,4/1/2021
Bach-Simpson Div. Of Wabtec Canada  Inc.,Materials,298,4/1/2021
Bach-Simpson Div. Of Wabtec Canada  Inc.,Materials,2050,4/6/2021
Bach-Simpson Div. Of Wabtec Canada  Inc.,Materials,425,4/13/2021
Bach-Simpson Div. Of Wabtec Canada  Inc.,Materials,2384,4/13/2021
Bach-Simpson Div. Of Wabtec Canada  Inc.,Services,1785,4/26/2021
Bach-Simpson Div. Of Wabtec Canada  Inc.,Materials,1050,4/26/2021
Bach-Simpson Div. Of Wabtec Canada  Inc.,Materials,4445,5/3/2021
Bach-Simpson Div. Of Wabtec Canada  Inc.,Materials,8495,5/7/2021
Bach-Simpson Div. Of Wabtec Canada  Inc.,Materials,1075,5/7/2021
Bach-Simpson Div. Of Wabtec Canada  Inc.,Materials,2750,5/18/2021
Bach-Simpson Div. Of Wabtec Canada  Inc.,Materials,1075,6/3/2021
Bach-Simpson Div. Of Wabtec Canada  Inc.,Materials,16650,6/24/2021
Bach-Simpson Div. Of Wabtec Canada  Inc.,Materials,24120,7/1/2021
Bach-Simpson Div. Of Wabtec Canada  Inc.,Materials,425,7/16/2021
Bach-Simpson Div. Of Wabtec Canada  Inc.,Capital Purchases,6300,7/16/2021
Bach-Simpson Div. Of Wabtec Canada  Inc.,Materials,13750,7/21/2021
Bach-Simpson Div. Of Wabtec Canada  Inc.,Capital Purchases,19975,8/2/2021
Bach-Simpson Div. Of Wabtec Canada  Inc.,Materials,8200,8/3/2021
Bach-Simpson Div. Of Wabtec Canada  Inc.,Services,9740,8/9/2021
Bach-Simpson Div. Of Wabtec Canada  Inc.,Materials,425,8/11/2021
Bach-Simpson Div. Of Wabtec Canada  Inc.,Materials,425,8/23/2021
Bach-Simpson Div. Of Wabtec Canada  Inc.,Materials,2900,8/26/2021
Bach-Simpson Div. Of Wabtec Canada  Inc.,Services,12715,8/27/2021
Bach-Simpson Div. Of Wabtec Canada  Inc.,Capital Purchases,9040,9/1/2021
Bach-Simpson Div. Of Wabtec Canada  Inc.,Materials,4350,9/1/2021
Bach-Simpson Div. Of Wabtec Canada  Inc.,Capital Purchases,11985,9/7/2021
Bach-Simpson Div. Of Wabtec Canada  Inc.,Materials,2250,9/8/2021
Bach-Simpson Div. Of Wabtec Canada  Inc.,Services,5990,9/8/2021
Bach-Simpson Div. Of Wabtec Canada  Inc.,Materials,1990,9/29/2021
Bach-Simpson Div. Of Wabtec Canada  Inc.,Capital Purchases,11985,10/1/2021
Bach-Simpson Div. Of Wabtec Canada  Inc.,Capital Purchases,15980,10/1/2021
Bach-Simpson Div. Of Wabtec Canada  Inc.,Services,3495,10/1/2021
Bach-Simpson Div. Of Wabtec Canada  Inc.,Services,2995,10/11/2021
Bach-Simpson Div. Of Wabtec Canada  Inc.,Materials,425,10/26/2021
Bach-Simpson Div. Of Wabtec Canada  Inc.,Materials,425,11/1/2021
Bach-Simpson Div. Of Wabtec Canada  Inc.,Materials,790,12/1/2021
Bach-Simpson Div. Of Wabtec Canada  Inc.,Materials,4245,12/1/2021
"BADQ Products & Supply, LLC",Capital Purchases,335.04,1/28/2021
"BADQ Products & Supply, LLC",Capital Purchases,189.25,2/4/2021
"BADQ Products & Supply, LLC",Capital Purchases,951.56,2/4/2021
"BADQ Products & Supply, LLC",Capital Purchases,902.38,3/3/2021
"BADQ Products & Supply, LLC",Capital Purchases,1407,4/6/2021
"BADQ Products & Supply, LLC",Capital Purchases,23.7,4/13/2021
"BADQ Products & Supply, LLC",Capital Purchases,149.88,4/13/2021
"BADQ Products & Supply, LLC",Capital Purchases,56.4,4/26/2021
"BADQ Products & Supply, LLC",Capital Purchases,1651.46,4/28/2021
"BADQ Products & Supply, LLC",Materials,1446.5,5/3/2021
Bake For Me,Services,708.06,1/8/2021
Bake For Me,Services,129.62,1/8/2021
Bake For Me,Services,2304.2,1/11/2021
Bake For Me,Services,129.62,2/1/2021
Bake For Me,Services,388.86,2/1/2021
Bake For Me,Services,255.62,2/1/2021
Bake For Me,Services,129.62,2/1/2021
Bake For Me,Services,62.42,2/17/2021
Bake For Me,Services,100.8,2/18/2021
Bake For Me,Services,87.62,3/1/2021
Bake For Me,Services,210,3/3/2021
Bake For Me,Services,129.62,3/19/2021
Bake For Me,Services,447.66,4/1/2021
Bake For Me,Services,168,4/13/2021
Bake For Me,Services,476.48,4/13/2021
Bake For Me,Services,129.62,4/14/2021
Bake For Me,Services,129.62,4/26/2021
Bake For Me,Services,135.55,7/1/2021
Bake For Me,Services,149.25,7/2/2021
Bake For Me,Services,65.3,7/2/2021
Bake For Me,Services,306.2,8/9/2021
Bake For Me,Services,149.25,9/1/2021
Bake For Me,Services,135.55,9/20/2021
Bake For Me,Services,135.55,10/1/2021
Bake For Me,Services,275.95,10/20/2021
Bake For Me,Services,135.55,10/22/2021
Bake For Me,Services,105.35,11/1/2021
Bake For Me,Services,534.4,11/16/2021
Bake For Me,Services,91.65,12/1/2021
Bake For Me,Services,219.4,12/1/2021
Bake For Me,Services,135.55,12/1/2021
Bake For Me,Services,354.95,12/16/2021
Ballast Tools  Inc.,Materials,4208,4/13/2021
Ballast Tools  Inc.,Materials,7320,4/28/2021
Ballast Tools  Inc.,Materials,4800,5/7/2021
Ballast Tools  Inc.,Materials,2528,5/7/2021
Ballast Tools  Inc.,Materials,4208,5/18/2021
Ballast Tools  Inc.,Materials,6312,7/28/2021
Ballast Tools  Inc.,Materials,4208,9/20/2021
Bank Of America,Services,7989.19,1/28/2021
Bank Of America,Services,14407.02,1/28/2021
Bank Of America,Services,12605.26,2/3/2021
Bank Of America,Services,12490.07,2/10/2021
Bank Of America,Services,12100.91,3/10/2021
Bank Of America,Services,12620.51,3/18/2021
Bank Of America,Services,6633.84,4/29/2021
Bank Of America,Services,13902.68,4/29/2021
Bank Of America,Services,7849.58,5/7/2021
Bank Of America,Services,13359.08,5/26/2021
Bank Of America,Services,12685.64,6/17/2021
Bank Of America,Services,15890.02,7/21/2021
Bank Of America,Services,15284.8,8/23/2021
Bank Of America,Services,16517.01,9/20/2021
Bank Of America,Services,6739.17,10/7/2021
Bank Of America,Services,15049.73,10/25/2021
Bank Of America,Services,15514.75,12/2/2021
Bank Of America,Services,14761.83,12/29/2021
Barbara Smith,Services,663.56,2/18/2021
Barber Spring Co.,Materials,1677.5,2/1/2021
Barber Spring Co.,Materials,711.58,3/3/2021
Barber Spring Co.,Materials,7616.96,4/1/2021
Barber Spring Co.,Materials,674.42,7/27/2021
Barber Spring Co.,Materials,604.18,8/5/2021
Barber Spring Co.,Materials,2684,9/8/2021
Barber Spring Co.,Materials,604.18,11/1/2021
Barber Spring Co.,Materials,5368,12/1/2021
Barry Hobbs,Claims & Insurance,1700,3/26/2021
Basteel Permeter Systems,Capital Purchases,23965,12/1/2021
Baultar Concept  Inc.,Materials,1666.67,4/1/2021
Baultar Concept  Inc.,Materials,1666.66,4/1/2021
Baultar Concept  Inc.,Materials,1666.67,4/1/2021
Baultar Concept  Inc.,Services,175,4/1/2021
Baultar Concept  Inc.,Services,175,4/1/2021
Baultar Concept  Inc.,Services,175,4/1/2021
Baultar Concept  Inc.,Materials,4900,12/1/2021
Baultar Concept  Inc.,Services,200,12/1/2021
Baultar Mechanical Solutions Inc.,Materials,1629,7/1/2021
Baultar Mechanical Solutions Inc.,Materials,181,7/1/2021
Baultar Mechanical Solutions Inc.,Materials,1629,7/1/2021
Baultar Mechanical Solutions Inc.,Materials,181,7/1/2021
Baultar Mechanical Solutions Inc.,Services,62.5,7/1/2021
Baultar Mechanical Solutions Inc.,Services,93.75,7/1/2021
Baultar Mechanical Solutions Inc.,Services,62.5,7/1/2021
Baultar Mechanical Solutions Inc.,Services,62.5,7/1/2021
Baultar Mechanical Solutions Inc.,Materials,1629,7/1/2021
Baultar Mechanical Solutions Inc.,Materials,1831,7/1/2021
Baultar Mechanical Solutions Inc.,Materials,1629,7/1/2021
Baultar Mechanical Solutions Inc.,Materials,181,7/1/2021
Baultar Mechanical Solutions Inc.,Services,93.75,7/1/2021
Baultar Mechanical Solutions Inc.,Services,62.5,7/1/2021
Baultar Mechanical Solutions Inc.,Services,93.75,7/1/2021
Baultar Mechanical Solutions Inc.,Services,93.75,7/1/2021
BBA Project  Inc.,Materials,4920,2/1/2021
BBA Project  Inc.,Materials,2392,3/3/2021
BBA Project  Inc.,Capital Purchases,10126.48,4/13/2021
BBA Project  Inc.,Materials,8970,4/28/2021
BBA Project  Inc.,Materials,3280,6/24/2021
BBA Project  Inc.,Materials,2990,6/24/2021
BBA Project  Inc.,Materials,1344.5,6/28/2021
BBA Project  Inc.,Materials,5980,7/21/2021
BBA Project  Inc.,Materials,4100,10/11/2021
BCBS Of Illinois,Services,916334.02,1/12/2021
BCBS Of Illinois,Services,893822.7,2/3/2021
BCBS Of Illinois,Services,874750.99,3/1/2021
BCBS Of Illinois,Services,32027.16,3/24/2021
BCBS Of Illinois,Services,32016.9,3/24/2021
BCBS Of Illinois,Services,31911.43,3/25/2021
BCBS Of Illinois,Services,36736.74,4/9/2021
BCBS Of Illinois,Services,912831.33,4/9/2021
BCBS Of Illinois,Services,895875.56,5/3/2021
BCBS Of Illinois,Services,50145.15,5/18/2021
BCBS Of Illinois,Services,36798.72,6/2/2021
BCBS Of Illinois,Services,917513.03,6/2/2021
BCBS Of Illinois,Services,36507.41,7/2/2021
BCBS Of Illinois,Services,918150.4,7/2/2021
BCBS Of Illinois,Services,926510.23,8/3/2021
BCBS Of Illinois,Services,36065.87,8/3/2021
BCBS Of Illinois,Services,32145,9/1/2021
BCBS Of Illinois,Services,925101.44,9/1/2021
BCBS Of Illinois,Services,31903.31,10/8/2021
BCBS Of Illinois,Services,925400.39,10/8/2021
BCBS Of Illinois,Services,910442.63,11/3/2021
BCBS Of Illinois,Services,36452.36,11/3/2021
BCBS Of Illinois,Services,36348.61,12/2/2021
BCBS Of Illinois,Services,890112.46,12/3/2021
Bebon Office Machines Co.  Inc.,Services,250,10/20/2021
Bebon Office Machines Co.  Inc.,Services,775,11/1/2021
Bebon Office Machines Co.  Inc.,Services,1300,11/1/2021
"Beck Tech, Inc a Barbeck Company",Capital Purchases,170336,10/5/2021
"Beck Tech, Inc a Barbeck Company",Capital Purchases,296194,12/6/2021
Becker Professional Development Corp.,Services,957.6,10/1/2021
Beligh Sraieb,Services,35.84,6/30/2021
Beligh Sraieb,Services,71.68,8/17/2021
Beligh Sraieb,Services,44.8,9/14/2021
Bellwood Electric Motors Inc.,Materials,7800,2/18/2021
Bellwood Electric Motors Inc.,Services,19900,2/18/2021
Bellwood Electric Motors Inc.,Services,19900,3/3/2021
Bellwood Electric Motors Inc.,Materials,2500,3/23/2021
Bellwood Electric Motors Inc.,Materials,10070,3/26/2021
Bellwood Electric Motors Inc.,Materials,24600,4/6/2021
Bellwood Electric Motors Inc.,Materials,13000,4/28/2021
Bellwood Electric Motors Inc.,Materials,18900,4/28/2021
Bellwood Electric Motors Inc.,Materials,4900,5/19/2021
Bellwood Electric Motors Inc.,Materials,4900,5/19/2021
Bellwood Electric Motors Inc.,Materials,9800,6/1/2021
Bellwood Electric Motors Inc.,Materials,14700,6/3/2021
Bellwood Electric Motors Inc.,Services,19900,6/28/2021
Bellwood Electric Motors Inc.,Materials,4900,7/1/2021
Bellwood Electric Motors Inc.,Materials,8200,7/2/2021
Bellwood Electric Motors Inc.,Materials,18900,7/16/2021
Bellwood Electric Motors Inc.,Materials,8200,7/20/2021
Bellwood Electric Motors Inc.,Materials,13100,7/29/2021
Bellwood Electric Motors Inc.,Materials,4900,8/24/2021
Bellwood Electric Motors Inc.,Services,19900,8/24/2021
Bellwood Electric Motors Inc.,Services,5200,8/31/2021
Bellwood Electric Motors Inc.,Materials,990,9/20/2021
Bellwood Electric Motors Inc.,Materials,990,9/23/2021
Bellwood Electric Motors Inc.,Materials,4500,9/29/2021
Bellwood Electric Motors Inc.,Services,4900,10/5/2021
Bellwood Electric Motors Inc.,Materials,4900,10/20/2021
Bellwood Electric Motors Inc.,Materials,4900,11/1/2021
Bellwood Electric Motors Inc.,Materials,21300,12/1/2021
Benefit Resource Inc.,Services,15939.9,1/12/2021
Benefit Resource Inc.,Services,8899.87,1/27/2021
Benefit Resource Inc.,Services,90723.41,1/27/2021
Benefit Resource Inc.,Services,1249.91,3/8/2021
Benefit Resource Inc.,Services,4247.45,3/8/2021
Benefit Resource Inc.,Services,42629.08,3/8/2021
Benefit Resource Inc.,Services,85810.68,3/18/2021
Benefit Resource Inc.,Services,9076.84,3/23/2021
Benefit Resource Inc.,Services,11764.4,3/23/2021
Benefit Resource Inc.,Services,62325.04,4/14/2021
Benefit Resource Inc.,Services,4111.8,4/14/2021
Benefit Resource Inc.,Services,3925.95,4/14/2021
Benefit Resource Inc.,Services,2929.84,5/3/2021
Benefit Resource Inc.,Services,49034.42,5/3/2021
Benefit Resource Inc.,Services,12485.8,7/2/2021
Benefit Resource Inc.,Services,57377.75,7/2/2021
Benefit Resource Inc.,Services,8884.08,7/2/2021
Benefit Resource Inc.,Services,10839.25,8/13/2021
Benefit Resource Inc.,Services,5919.21,8/13/2021
Benefit Resource Inc.,Services,103397.82,8/16/2021
Benefit Resource Inc.,Services,1442.06,8/16/2021
Benefit Resource Inc.,Services,6473.14,8/17/2021
Benefit Resource Inc.,Services,93425.34,8/17/2021
Benefit Resource Inc.,Services,8533.25,8/24/2021
Benefit Resource Inc.,Services,4275.3,9/16/2021
Benefit Resource Inc.,Services,4279.45,10/14/2021
Benefit Resource Inc.,Services,3388.33,10/14/2021
Benefit Resource Inc.,Services,16724.61,11/3/2021
Benefit Resource Inc.,Services,307225.32,11/3/2021
Benefit Resource Inc.,Services,6295.78,11/11/2021
"Benjamin A. Goldberg, MD",Claims & Insurance,3000,1/12/2021
"Benjamin A. Goldberg, MD",Claims & Insurance,500,2/4/2021
"Benjamin A. Goldberg, MD",Claims & Insurance,3125,5/5/2021
"Benjamin A. Goldberg, MD",Claims & Insurance,1000,5/17/2021
"Benjamin A. Goldberg, MD",Claims & Insurance,1500,5/20/2021
"Benjamin A. Goldberg, MD",Claims & Insurance,2250,5/20/2021
"Benjamin A. Goldberg, MD",Claims & Insurance,1500,7/19/2021
"Benjamin A. Goldberg, MD",Claims & Insurance,15500,8/11/2021
"Benjamin A. Goldberg, MD",Claims & Insurance,500,9/14/2021
"Benjamin A. Goldberg, MD",Claims & Insurance,3000,11/2/2021
"Benjamin A. Goldberg, MD",Claims & Insurance,500,11/8/2021
Bentley Systems  Inc.,Capital Purchases,88750,2/18/2021
Bentley Systems  Inc.,Capital Purchases,83750,7/1/2021
Bentley Systems  Inc.,Services,236882,8/27/2021
Bentley Systems  Inc.,Services,42320,12/1/2021
Berg Engineering & Sales,Materials,2644.3,3/26/2021
Berg Engineering & Sales,Services,63.67,3/26/2021
Berg Engineering & Sales,Services,230.45,6/28/2021
"Berkeley Engineering & Research, Inc",Services,30000,9/8/2021
Berkeley Simulation Software  LLC,Services,15000,6/3/2021
Berkeley Simulation Software  LLC,Capital Purchases,65000,7/1/2021
Berts Car Wash  Inc.,Services,1050,2/1/2021
Berts Car Wash  Inc.,Services,888,2/4/2021
Berts Car Wash  Inc.,Services,1206,3/23/2021
Berts Car Wash  Inc.,Services,1165,4/28/2021
Berts Car Wash  Inc.,Services,1042,6/3/2021
Berts Car Wash  Inc.,Services,782,6/28/2021
Berts Car Wash  Inc.,Services,1311,7/26/2021
Berts Car Wash  Inc.,Services,1221,8/24/2021
Berts Car Wash  Inc.,Services,1411,9/23/2021
Berts Car Wash  Inc.,Services,1108,10/20/2021
Berts Car Wash  Inc.,Services,626,12/1/2021
Billy F. Williams,Claims & Insurance,1676.84,7/19/2021
Black Dog Petroleum LLC,Materials,6037.25,2/18/2021
Black Dog Petroleum LLC,Materials,6184.5,3/3/2021
Black Dog Petroleum LLC,Materials,2503.25,3/19/2021
Black Dog Petroleum LLC,Materials,3386.75,6/28/2021
Black Dog Petroleum LLC,Materials,2208.75,6/28/2021
Black Dog Petroleum LLC,Materials,1472.5,7/27/2021
Black Dog Petroleum LLC,Materials,2061.5,7/27/2021
Black Dog Petroleum LLC,Materials,1472.5,7/27/2021
Black Dog Petroleum LLC,Materials,2061.5,9/9/2021
Black Dog Petroleum LLC,Materials,2945,9/23/2021
Blinderman Construction Co.  Inc.,Capital Purchases,58069.7,6/3/2021
Blinderman Construction Co.  Inc.,Claims & Insurance,135000,6/23/2021
Blinderman Construction Co.  Inc.,Capital Purchases,7575.19,11/1/2021
Blinderman Construction Co.  Inc.,Services,587.57,11/1/2021
Blinderman Construction Co.  Inc.,Capital Purchases,62633.45,11/1/2021
Blue Print Shoppe  Inc.,Capital Purchases,78.13,3/16/2021
Blue Print Shoppe  Inc.,Capital Purchases,3488.7,7/16/2021
Blue Shield Tactical Systems,Services,325,5/25/2021
Bnsf Railway Co.,Capital Purchases,104584.27,1/4/2021
Bnsf Railway Co.,Services,4032.99,1/4/2021
Bnsf Railway Co.,Services,4562809,1/4/2021
Bnsf Railway Co.,Services,3773941,1/11/2021
Bnsf Railway Co.,Services,4032.99,1/21/2021
Bnsf Railway Co.,Capital Purchases,246906.06,1/22/2021
Bnsf Railway Co.,Services,352497.81,1/28/2021
Bnsf Railway Co.,Capital Purchases,410625.05,1/29/2021
Bnsf Railway Co.,Services,5931954,2/1/2021
Bnsf Railway Co.,Capital Purchases,57471.23,2/1/2021
Bnsf Railway Co.,Capital Purchases,17009.36,2/1/2021
Bnsf Railway Co.,Capital Purchases,109544.1,2/1/2021
Bnsf Railway Co.,Capital Purchases,116729.39,2/2/2021
Bnsf Railway Co.,Capital Purchases,766427.87,2/2/2021
Bnsf Railway Co.,Capital Purchases,3449.81,2/2/2021
Bnsf Railway Co.,Capital Purchases,17385.04,2/2/2021
Bnsf Railway Co.,Capital Purchases,200827.56,2/3/2021
Bnsf Railway Co.,Capital Purchases,55820.1,2/12/2021
Bnsf Railway Co.,Services,4032.99,2/17/2021
Bnsf Railway Co.,Services,462230.27,2/25/2021
Bnsf Railway Co.,Capital Purchases,6177.16,3/1/2021
Bnsf Railway Co.,Capital Purchases,159438.5,3/15/2021
Bnsf Railway Co.,Services,4032.99,3/22/2021
Bnsf Railway Co.,Services,350692.77,3/24/2021
Bnsf Railway Co.,Capital Purchases,28133.33,4/1/2021
Bnsf Railway Co.,Capital Purchases,115279.43,4/1/2021
Bnsf Railway Co.,Services,8188461,4/13/2021
Bnsf Railway Co.,Services,4032.99,4/13/2021
Bnsf Railway Co.,Services,462224.1,4/21/2021
Bnsf Railway Co.,Capital Purchases,36566.14,5/4/2021
Bnsf Railway Co.,Capital Purchases,130.51,5/4/2021
Bnsf Railway Co.,Capital Purchases,15417.55,5/7/2021
Bnsf Railway Co.,Capital Purchases,38253.64,5/7/2021
Bnsf Railway Co.,Services,4032.99,5/13/2021
Bnsf Railway Co.,Services,4423005,5/13/2021
Bnsf Railway Co.,Capital Purchases,87834.66,5/14/2021
Bnsf Railway Co.,Capital Purchases,9210.2,5/17/2021
Bnsf Railway Co.,Services,528146.77,5/19/2021
Bnsf Railway Co.,Capital Purchases,14057.7,6/2/2021
Bnsf Railway Co.,Capital Purchases,98958.05,6/2/2021
Bnsf Railway Co.,Capital Purchases,14311.92,6/10/2021
Bnsf Railway Co.,Services,722668.95,6/14/2021
Bnsf Railway Co.,Services,4032.99,6/14/2021
Bnsf Railway Co.,Capital Purchases,11798.64,6/15/2021
Bnsf Railway Co.,Capital Purchases,11093.43,6/21/2021
Bnsf Railway Co.,Services,4048809,6/29/2021
Bnsf Railway Co.,Services,3610967,7/7/2021
Bnsf Railway Co.,Services,1067122.35,7/16/2021
Bnsf Railway Co.,Services,4032.99,7/16/2021
Bnsf Railway Co.,Capital Purchases,38430.01,7/26/2021
Bnsf Railway Co.,Capital Purchases,8459.02,7/26/2021
Bnsf Railway Co.,Services,3386592,7/27/2021
Bnsf Railway Co.,Capital Purchases,14613.67,8/2/2021
Bnsf Railway Co.,Capital Purchases,9910.83,8/2/2021
Bnsf Railway Co.,Capital Purchases,36786.95,8/2/2021
Bnsf Railway Co.,Capital Purchases,12089.6,8/3/2021
Bnsf Railway Co.,Capital Purchases,42251.52,8/3/2021
Bnsf Railway Co.,Capital Purchases,19884.21,8/5/2021
Bnsf Railway Co.,Capital Purchases,219400.89,8/11/2021
Bnsf Railway Co.,Capital Purchases,64285.47,8/17/2021
Bnsf Railway Co.,Services,3502586,8/26/2021
Bnsf Railway Co.,Services,4022.93,8/26/2021
Bnsf Railway Co.,Services,1101914.74,8/30/2021
Bnsf Railway Co.,Capital Purchases,135834.2,9/10/2021
Bnsf Railway Co.,Capital Purchases,14720.25,9/15/2021
Bnsf Railway Co.,Services,4022.93,9/15/2021
Bnsf Railway Co.,Capital Purchases,128464.83,9/16/2021
Bnsf Railway Co.,Capital Purchases,156827.29,9/16/2021
Bnsf Railway Co.,Capital Purchases,151075.92,9/16/2021
Bnsf Railway Co.,Capital Purchases,329845.57,9/16/2021
Bnsf Railway Co.,Capital Purchases,18713.95,9/21/2021
Bnsf Railway Co.,Capital Purchases,35920.97,9/21/2021
Bnsf Railway Co.,Capital Purchases,552290.22,9/21/2021
Bnsf Railway Co.,Services,1367426.01,9/24/2021
Bnsf Railway Co.,Capital Purchases,289328.76,10/1/2021
Bnsf Railway Co.,Capital Purchases,51353.5,10/6/2021
Bnsf Railway Co.,Capital Purchases,69278.74,10/6/2021
Bnsf Railway Co.,Capital Purchases,53721.65,10/7/2021
Bnsf Railway Co.,Capital Purchases,108422.05,10/11/2021
Bnsf Railway Co.,Services,4022.93,10/14/2021
Bnsf Railway Co.,Services,1327255.26,10/27/2021
Bnsf Railway Co.,Capital Purchases,265497.64,11/1/2021
Bnsf Railway Co.,Capital Purchases,19074.71,11/1/2021
Bnsf Railway Co.,Capital Purchases,45227.98,11/1/2021
Bnsf Railway Co.,Capital Purchases,144.69,11/1/2021
Bnsf Railway Co.,Capital Purchases,460085.25,11/1/2021
Bnsf Railway Co.,Capital Purchases,7487.51,11/1/2021
Bnsf Railway Co.,Services,6836129,11/12/2021
Bnsf Railway Co.,Capital Purchases,531252.52,11/16/2021
Bnsf Railway Co.,Capital Purchases,5863.48,11/16/2021
Bnsf Railway Co.,Capital Purchases,31678.95,11/17/2021
Bnsf Railway Co.,Services,1419863.97,11/19/2021
Bnsf Railway Co.,Capital Purchases,134225.78,12/1/2021
Bnsf Railway Co.,Capital Purchases,102770.11,12/1/2021
Bnsf Railway Co.,Capital Purchases,13484.93,12/1/2021
Bnsf Railway Co.,Capital Purchases,5382.17,12/1/2021
Bnsf Railway Co.,Capital Purchases,6433.2,12/1/2021
Bnsf Railway Co.,Capital Purchases,16923.96,12/1/2021
Bnsf Railway Co.,Capital Purchases,70353.26,12/1/2021
Bnsf Railway Co.,Services,3318655,12/14/2021
Bnsf Railway Co.,Capital Purchases,39450.32,12/14/2021
Bnsf Railway Co.,Services,1457140.96,12/16/2021
Bnsf Railway Co.,Capital Purchases,5475.78,12/17/2021
Bnsf Railway Co.,Capital Purchases,15567.5,12/17/2021
Boma/Chicago,Services,2514,1/5/2021
"Bone & Joint Specialists, P.C.",Claims & Insurance,2000,6/25/2021
"Bone & Joint Specialists, P.C.",Claims & Insurance,750,8/13/2021
Borislav Apostolov,Services,82.88,7/6/2021
Borislav Apostolov,Services,21.28,8/9/2021
Borislav Apostolov,Services,124.32,9/8/2021
Borislav Apostolov,Services,23.52,10/11/2021
Borkan & Scahill,Claims & Insurance,6245,10/11/2021
BOTZ Enterprises DBA Kodiak Parts,Services,3981.32,2/1/2021
BOTZ Enterprises DBA Kodiak Parts,Services,220,2/1/2021
BOTZ Enterprises DBA Kodiak Parts,Materials,442.6,7/1/2021
BOTZ Enterprises DBA Kodiak Parts,Materials,6161.8,7/1/2021
BOTZ Enterprises DBA Kodiak Parts,Services,536,7/1/2021
Brabazon Pumpe Co.  Ltd.,Materials,799.68,2/1/2021
Brabazon Pumpe Co.  Ltd.,Materials,1228.48,2/4/2021
Brabazon Pumpe Co.  Ltd.,Materials,24287.52,5/7/2021
Brabazon Pumpe Co.  Ltd.,Materials,1228.48,8/10/2021
Brabazon Pumpe Co.  Ltd.,Materials,986.64,9/1/2021
Brabazon Pumpe Co.  Ltd.,Materials,399.84,9/1/2021
Brabazon Pumpe Co.  Ltd.,Materials,376.32,10/12/2021
Brad Methling,Services,184,1/20/2021
Brad Methling,Services,35.84,2/11/2021
Brad Methling,Services,35.84,3/10/2021
Brad Methling,Services,24.64,3/10/2021
Brad Methling,Services,35.84,4/19/2021
Brad Methling,Services,119.84,5/7/2021
Brad Methling,Services,71.68,6/7/2021
Brad Methling,Services,12.32,6/7/2021
Brad Methling,Services,12.32,8/10/2021
Brad Methling,Services,275.52,8/10/2021
Brad Methling,Services,135.52,8/10/2021
Brad Methling,Services,35.84,9/2/2021
Brad Methling,Services,24.64,9/2/2021
Brad Methling,Services,24.64,10/27/2021
Brad Methling,Services,35.84,11/17/2021
Brad Methling,Services,48.16,11/17/2021
Brad Methling,Services,45.92,12/8/2021
Brad Methling,Services,36.96,12/8/2021
Bradford Systems Corp.,Capital Purchases,13207.21,1/4/2021
Bradken-Atchison/St. Joseph  Inc.,Capital Purchases,55209,9/9/2021
Brasco International  Inc.,Capital Purchases,11640,7/16/2021
Brendan A. Stejskal,Services,242.65,1/19/2021
Brendan A. Stejskal,Services,241.92,1/20/2021
Brendan A. Stejskal,Services,218.4,2/8/2021
Brendan A. Stejskal,Services,194.88,3/1/2021
Brendan A. Stejskal,Services,259.84,3/8/2021
Brendan A. Stejskal,Services,241.92,3/22/2021
Brendan A. Stejskal,Services,215.6,4/6/2021
Brendan A. Stejskal,Services,236.32,4/20/2021
Brendan A. Stejskal,Services,241.92,5/10/2021
Brendan A. Stejskal,Services,218.4,5/24/2021
Brendan A. Stejskal,Services,236.32,6/2/2021
Brendan A. Stejskal,Services,259.84,6/22/2021
Brendan A. Stejskal,Services,241.92,7/2/2021
Brendan A. Stejskal,Services,236.32,7/27/2021
Brendan A. Stejskal,Services,262.64,8/17/2021
Brendan A. Stejskal,Services,127.12,8/26/2021
Brendan A. Stejskal,Services,259.84,9/7/2021
Brendan A. Stejskal,Services,286.16,9/22/2021
Brendan A. Stejskal,Services,304.08,10/14/2021
Brendan A. Stejskal,Services,218.4,10/20/2021
Brendan A. Stejskal,Services,171.36,11/8/2021
Brendan A. Stejskal,Services,283.36,11/29/2021
Brendan A. Stejskal,Services,215.6,12/8/2021
Brendan A. Stejskal,Services,212.8,12/15/2021
Brendan O'hara,Claims & Insurance,20000,5/24/2021
Brendon Cotton,Services,10.41,9/16/2021
Brendon Cotton,Services,181.78,9/16/2021
Brennon Miller,Claims & Insurance,1697.81,2/19/2021
Bria Scarlett,Services,82.88,10/14/2021
Bria Scarlett,Services,41.44,12/8/2021
Bria Scarlett,Services,106.4,12/8/2021
Brian Cotten,Services,57.57,8/13/2021
Brian Cotten,Services,1.5,8/13/2021
Brian D. McCarthy,Services,2910,7/9/2021
Brian Michael Cotten,Services,1.5,8/13/2021
Brian Michael Cotten,Services,57.57,8/13/2021
Brian Richards,Services,105.8,1/4/2021
Brian Richards,Services,103.04,2/25/2021
Brian Richards,Services,21.28,7/23/2021
Brian Richards,Services,51.52,9/7/2021
Brian Richards,Services,33.6,9/7/2021
Brian Richards,Services,51.52,11/10/2021
Brian Richards,Services,51.52,12/1/2021
Brian Richards,Services,33.6,12/9/2021
Brian Richards,Services,51.52,12/20/2021
Brian S Wimmer,Services,319.32,7/2/2021
Brian S Wimmer,Services,162.96,7/2/2021
Brian S Wimmer,Services,6,7/2/2021
Brian Windle,Services,337.5,6/9/2021
Brian Windle,Services,96,6/9/2021
Brian Windle,Services,79,10/14/2021
Brian Windle,Services,46.08,10/14/2021
Brian Windle,Services,403.31,10/14/2021
Brian Windle,Services,379.5,10/14/2021
Bridges Court Reporting,Claims & Insurance,121.5,3/15/2021
Brittany Bogan,Services,5250,11/15/2021
Brittany Harvard,Services,917.7,1/19/2021
Brittany Harvard,Services,127.68,2/1/2021
Broadway Electric  Inc.,Capital Purchases,283720.68,12/1/2021
Bureau Veritas North America  Inc.,Capital Purchases,269.18,1/11/2021
Bureau Veritas North America  Inc.,Capital Purchases,1515.94,1/21/2021
Bureau Veritas North America  Inc.,Capital Purchases,11973.75,3/3/2021
Bureau Veritas North America  Inc.,Capital Purchases,1704.98,3/10/2021
Burns & Mcdonnell Engineering Co.,Capital Purchases,18905.74,3/1/2021
Burns & Mcdonnell Engineering Co.,Capital Purchases,198865.52,4/1/2021
Burns & Mcdonnell Engineering Co.,Capital Purchases,153688.53,8/9/2021
Burns & Mcdonnell Engineering Co.,Capital Purchases,13065.01,11/1/2021
Burns & Mcdonnell Engineering Co.,Capital Purchases,16329.41,11/1/2021
Burris Equipment Co.,Rental Expense,2014.4,6/3/2021
Burris Equipment Co.,Rental Expense,1814.4,6/3/2021
Burris Equipment Co.,Rental Expense,1814.4,6/29/2021
Burris Equipment Co.,Rental Expense,7257.6,7/16/2021
Burris Equipment Co.,Rental Expense,1814.4,9/1/2021
Burris Equipment Co.,Rental Expense,3628.8,9/20/2021
Burris Equipment Co.,Rental Expense,1814.4,9/23/2021
Burris Equipment Co.,Rental Expense,3628.8,11/2/2021
Burris Equipment Co.,Rental Expense,1814.4,12/6/2021
Burris Equipment Co.,Rental Expense,1814.4,12/6/2021
Buvanendran SC,Claims & Insurance,1000,3/3/2021
Buvanendran SC,Claims & Insurance,1500,8/19/2021
Cadient LLC,Services,2872,1/7/2021
Cadient LLC,Services,2872,2/22/2021
Cadient LLC,Services,2872,3/10/2021
Cadient LLC,Services,2872,5/3/2021
Cadient LLC,Services,2872,5/10/2021
Cadient LLC,Services,4622,6/3/2021
Cadient LLC,Services,2872,7/26/2021
Cadient LLC,Services,2872,8/5/2021
Cadient LLC,Services,2872,9/28/2021
Cadient LLC,Services,2872,12/7/2021
Cadient LLC,Services,7744,12/8/2021
Calumet Harbor Lumber & Supplyco.,Materials,473.4,1/14/2021
Calumet Harbor Lumber & Supplyco.,Materials,670,3/12/2021
Calumet Harbor Lumber & Supplyco.,Materials,441.6,4/21/2021
Calumet Harbor Lumber & Supplyco.,Materials,102144,5/3/2021
Calumet Harbor Lumber & Supplyco.,Materials,146.4,5/10/2021
Calumet Harbor Lumber & Supplyco.,Materials,182,6/23/2021
Calumet Harbor Lumber & Supplyco.,Materials,160,7/1/2021
Calumet Harbor Lumber & Supplyco.,Materials,571.84,7/21/2021
Calumet Harbor Lumber & Supplyco.,Materials,364,8/10/2021
Calumet Harbor Lumber & Supplyco.,Materials,268.8,9/29/2021
Calumet Harbor Lumber & Supplyco.,Materials,40,10/7/2021
Calumet Harbor Lumber & Supplyco.,Materials,511.76,10/18/2021
Calumet Harbor Lumber & Supplyco.,Materials,16353,11/10/2021
Calumet Harbor Lumber & Supplyco.,Materials,200,12/1/2021
Calumet Harbor Lumber & Supplyco.,Materials,146809,12/1/2021
Calumet Harbor Lumber & Supplyco.,Materials,15597,12/30/2021
Calumet Lift Truck Service Co. Inc.,Services,1100,3/8/2021
Calumet Lift Truck Service Co. Inc.,Services,900,4/1/2021
Canadian National Railroad,Services,535.24,2/8/2021
Canadian National Railroad,Services,704.1,2/19/2021
Canadian National Railroad,Services,54571.65,3/3/2021
Canadian National Railroad,Services,145530.25,3/3/2021
Canadian National Railroad,Services,218295.38,3/8/2021
Canadian National Railroad,Services,436590.76,3/15/2021
Canadian National Railroad,Capital Purchases,726793.2,4/6/2021
Canadian National Railroad,Services,1442.91,4/15/2021
Canadian National Railroad,Services,145530.25,4/16/2021
Canadian National Railroad,Services,218295.38,4/16/2021
Canadian National Railroad,Services,291060.5,4/26/2021
Canadian National Railroad,Services,143751,5/17/2021
Canadian National Railroad,Services,25308.58,5/17/2021
Canadian National Railroad,Services,266392.43,6/10/2021
Canadian National Railroad,Services,145530.25,6/21/2021
Canadian National Railroad,Services,269564.9,7/13/2021
Canadian National Railroad,Services,145530.3,7/13/2021
Canadian National Railroad,Services,9365.65,7/13/2021
Canadian National Railroad,Capital Purchases,23869.18,7/15/2021
Canadian National Railroad,Capital Purchases,9840.36,7/23/2021
Canadian National Railroad,Services,218295.38,8/2/2021
Canadian National Railroad,Services,39688.48,8/2/2021
Canadian National Railroad,Services,593.2,8/5/2021
Canadian National Railroad,Services,218295.38,8/11/2021
Canadian National Railroad,Services,145530.25,8/11/2021
Canadian National Railroad,Services,145530.25,8/16/2021
Canadian National Railroad,Services,255.06,8/24/2021
Canadian National Railroad,Capital Purchases,228300.99,9/1/2021
Canadian National Railroad,Services,218295.38,9/10/2021
Canadian National Railroad,Services,145530.25,9/10/2021
Canadian National Railroad,Services,28663.9,9/30/2021
Canadian National Railroad,Services,145530.25,10/11/2021
Canadian National Railroad,Services,218295.38,10/11/2021
Canadian National Railroad,Capital Purchases,35909.98,11/3/2021
Canadian National Railroad,Services,145530.25,11/3/2021
Canadian National Railroad,Services,218295.38,11/3/2021
Canadian National Railroad,Services,43888.31,11/3/2021
Canadian National Railroad,Services,39075.99,11/17/2021
Canadian National Railroad,Services,26563.98,11/23/2021
Canadian National Railroad,Services,145530.25,12/13/2021
Canadian National Railroad,Services,218295.38,12/13/2021
Canadian National Railroad,Services,5347.08,12/14/2021
Canadian National Railroad,Services,591.72,12/23/2021
Canadian National Railroad,Services,316.05,12/23/2021
Canadian Pacific Railway Co.,Services,177933.84,1/21/2021
Canadian Pacific Railway Co.,Services,93475.71,2/19/2021
Canadian Pacific Railway Co.,Services,92191.16,4/13/2021
Canadian Pacific Railway Co.,Services,157237.43,4/21/2021
Canadian Pacific Railway Co.,Services,93154.33,6/2/2021
Canadian Pacific Railway Co.,Services,94146.77,7/1/2021
Candice Randolph,Services,177.38,10/14/2021
Candice Randolph,Services,114,10/14/2021
Candice Randolph,Services,77.84,10/14/2021
Canteen Refreshment Services,Materials,717.17,1/4/2021
Canteen Refreshment Services,Materials,143.82,2/17/2021
Canteen Refreshment Services,Materials,440,3/15/2021
Canteen Refreshment Services,Materials,480.42,3/22/2021
Canteen Refreshment Services,Materials,190,4/8/2021
Canteen Refreshment Services,Materials,645.66,5/5/2021
Canteen Refreshment Services,Materials,22.44,5/5/2021
Canteen Refreshment Services,Materials,234.04,7/2/2021
Canteen Refreshment Services,Materials,736.31,8/2/2021
Canteen Refreshment Services,Materials,429.35,8/25/2021
Canteen Refreshment Services,Materials,100.1,9/28/2021
Canteen Refreshment Services,Materials,208.98,10/14/2021
Canteen Refreshment Services,Materials,189.67,12/1/2021
Canteen Refreshment Services,Materials,500.97,12/30/2021
Capricorn Communications,Services,8500,2/11/2021
Capricorn Communications,Services,4250,3/24/2021
Carahsoft Technology Corp,Services,30667.43,1/4/2021
Carl E. Clark,Services,50.17,2/25/2021
Carlos A. Del Toro,Services,16.46,1/27/2021
Carlos A. Del Toro,Services,17.92,4/9/2021
Carlos A. Del Toro,Services,35.84,4/21/2021
Carlos A. Del Toro,Services,9.52,6/3/2021
Carlos A. Del Toro,Services,286.16,10/14/2021
Carlos A. Del Toro,Services,238.11,10/22/2021
Carlos A. Del Toro,Services,308.9,11/9/2021
Carlos A. Del Toro,Services,126.9,12/2/2021
Carlos A. Del Toro,Services,236.88,12/9/2021
Carlos A. Del Toro,Services,92.74,12/23/2021
Carlos Lazaro,Services,148.74,5/26/2021
Carlos Lazaro,Services,150.52,9/3/2021
Carmichael Leasing Co.  Inc.,Services,5316.48,1/4/2021
Carmichael Leasing Co.  Inc.,Services,746.06,1/5/2021
Carmichael Leasing Co.  Inc.,Services,479.61,1/14/2021
Carmichael Leasing Co.  Inc.,Services,700.67,1/20/2021
Carmichael Leasing Co.  Inc.,Services,5605.85,1/28/2021
Carmichael Leasing Co.  Inc.,Services,11699.86,2/17/2021
Carmichael Leasing Co.  Inc.,Services,833.7,3/1/2021
Carmichael Leasing Co.  Inc.,Services,9591.45,3/11/2021
Carmichael Leasing Co.  Inc.,Services,53.29,3/25/2021
Carmichael Leasing Co.  Inc.,Services,53.29,3/29/2021
Carmichael Leasing Co.  Inc.,Services,2618.15,3/29/2021
Carmichael Leasing Co.  Inc.,Services,4237.97,4/20/2021
Carmichael Leasing Co.  Inc.,Services,5686.2,5/10/2021
Carmichael Leasing Co.  Inc.,Services,6449.93,5/13/2021
Carmichael Leasing Co.  Inc.,Services,3894.28,5/17/2021
Carmichael Leasing Co.  Inc.,Services,3885.33,5/28/2021
Carmichael Leasing Co.  Inc.,Services,6621.82,6/4/2021
Carmichael Leasing Co.  Inc.,Services,469.65,6/8/2021
Carmichael Leasing Co.  Inc.,Services,2008.23,6/16/2021
Carmichael Leasing Co.  Inc.,Services,3366.18,7/6/2021
Carmichael Leasing Co.  Inc.,Services,1747.39,7/21/2021
Carmichael Leasing Co.  Inc.,Services,734.81,7/22/2021
Carmichael Leasing Co.  Inc.,Services,434.79,9/22/2021
Carmichael Leasing Co.  Inc.,Services,5485.11,9/22/2021
Carmichael Leasing Co.  Inc.,Services,539.6,9/22/2021
Carmichael Leasing Co.  Inc.,Services,4913.86,9/22/2021
Carmichael Leasing Co.  Inc.,Services,7577.74,10/7/2021
Carmichael Leasing Co.  Inc.,Materials,5392.78,10/7/2021
Carmichael Leasing Co.  Inc.,Services,3260.56,10/13/2021
Carmichael Leasing Co.  Inc.,Materials,3079.95,12/1/2021
Carmichael Leasing Co.  Inc.,Services,3878.75,12/1/2021
Carmichael Leasing Co.  Inc.,Services,4296.35,12/2/2021
Carmichael Leasing Co.  Inc.,Materials,3732.79,12/2/2021
Carmichael Leasing Co.  Inc.,Services,8372.75,12/8/2021
Carmichael Leasing Co.  Inc.,Materials,4601.25,12/8/2021
Carmichael Leasing Co.  Inc.,Services,1551.5,12/14/2021
Carmichael Leasing Co.  Inc.,Services,642,12/14/2021
Carmichael Leasing Co.  Inc.,Materials,4445.07,12/14/2021
Carmichael Leasing Co.  Inc.,Services,2915.75,12/30/2021
Carmichael Leasing Co.  Inc.,Materials,1254.75,12/30/2021
Carnow  Conibear & Assoc.  Ltd.,Services,3250,1/7/2021
Carnow  Conibear & Assoc.  Ltd.,Services,9925.78,1/12/2021
Carnow  Conibear & Assoc.  Ltd.,Services,5670,2/17/2021
Carnow  Conibear & Assoc.  Ltd.,Services,1570,3/4/2021
Carnow  Conibear & Assoc.  Ltd.,Services,4781.55,4/16/2021
Carnow  Conibear & Assoc.  Ltd.,Services,3740.66,4/20/2021
Carnow  Conibear & Assoc.  Ltd.,Services,875,4/20/2021
Carnow  Conibear & Assoc.  Ltd.,Services,1412,4/21/2021
Carnow  Conibear & Assoc.  Ltd.,Services,835,5/10/2021
Carnow  Conibear & Assoc.  Ltd.,Services,16516,6/1/2021
Carnow  Conibear & Assoc.  Ltd.,Services,800,6/1/2021
Carnow  Conibear & Assoc.  Ltd.,Services,2388,6/10/2021
Carnow  Conibear & Assoc.  Ltd.,Services,7075.75,7/20/2021
Carnow  Conibear & Assoc.  Ltd.,Services,4880,8/2/2021
Carnow  Conibear & Assoc.  Ltd.,Services,19282,8/3/2021
Carnow  Conibear & Assoc.  Ltd.,Services,2530.25,8/4/2021
Carnow  Conibear & Assoc.  Ltd.,Services,1229.87,8/10/2021
Carnow  Conibear & Assoc.  Ltd.,Services,1235,8/10/2021
Carnow  Conibear & Assoc.  Ltd.,Services,1520,9/10/2021
Carnow  Conibear & Assoc.  Ltd.,Claims & Insurance,6256.25,9/28/2021
Carnow  Conibear & Assoc.  Ltd.,Services,2909.34,9/29/2021
Carnow  Conibear & Assoc.  Ltd.,Services,2059,10/14/2021
Carnow  Conibear & Assoc.  Ltd.,Services,3350.1,10/14/2021
Carnow  Conibear & Assoc.  Ltd.,Services,18000,10/14/2021
Carnow  Conibear & Assoc.  Ltd.,Services,87.5,11/11/2021
Carnow  Conibear & Assoc.  Ltd.,Services,9460,11/17/2021
Carnow  Conibear & Assoc.  Ltd.,Services,3570,11/17/2021
Carnow  Conibear & Assoc.  Ltd.,Services,5215,12/2/2021
Carnow  Conibear & Assoc.  Ltd.,Services,16705,12/14/2021
Carnow  Conibear & Assoc.  Ltd.,Services,11287.5,12/17/2021
Carnow  Conibear & Assoc.  Ltd.,Services,2813.73,12/30/2021
Carolyn R. King,Services,85.68,8/10/2021
Cavalry Fire Protection Svc. LLC,Materials,380,1/4/2021
Cavalry Fire Protection Svc. LLC,Services,1045,1/14/2021
Cavalry Fire Protection Svc. LLC,Services,1392.5,1/28/2021
Cavalry Fire Protection Svc. LLC,Services,403,1/28/2021
Cavalry Fire Protection Svc. LLC,Services,617,2/17/2021
Cavalry Fire Protection Svc. LLC,Services,399.65,2/17/2021
Cavalry Fire Protection Svc. LLC,Services,280,3/1/2021
Cavalry Fire Protection Svc. LLC,Materials,1370.9,3/12/2021
Cavalry Fire Protection Svc. LLC,Services,786.45,3/12/2021
Cavalry Fire Protection Svc. LLC,Services,449.9,3/15/2021
Cavalry Fire Protection Svc. LLC,Services,2125.5,3/15/2021
Cavalry Fire Protection Svc. LLC,Materials,1256,3/22/2021
Cavalry Fire Protection Svc. LLC,Materials,1744.15,3/22/2021
Cavalry Fire Protection Svc. LLC,Services,576.6,3/22/2021
Cavalry Fire Protection Svc. LLC,Services,2764.4,3/25/2021
Cavalry Fire Protection Svc. LLC,Materials,644.5,3/29/2021
Cavalry Fire Protection Svc. LLC,Services,610.4,4/13/2021
Cavalry Fire Protection Svc. LLC,Services,1189.3,4/13/2021
Cavalry Fire Protection Svc. LLC,Services,668.7,4/13/2021
Cavalry Fire Protection Svc. LLC,Services,5244.3,4/13/2021
Cavalry Fire Protection Svc. LLC,Materials,7468.8,4/21/2021
Cavalry Fire Protection Svc. LLC,Services,2272.4,4/21/2021
Cavalry Fire Protection Svc. LLC,Materials,724.7,5/5/2021
Cavalry Fire Protection Svc. LLC,Materials,135,5/5/2021
Cavalry Fire Protection Svc. LLC,Services,1811.5,5/5/2021
Cavalry Fire Protection Svc. LLC,Services,375.2,5/17/2021
Cavalry Fire Protection Svc. LLC,Services,309.3,5/17/2021
Cavalry Fire Protection Svc. LLC,Services,245,5/17/2021
Cavalry Fire Protection Svc. LLC,Services,229.4,5/17/2021
Cavalry Fire Protection Svc. LLC,Services,1156,6/3/2021
Cavalry Fire Protection Svc. LLC,Services,470.9,6/10/2021
Cavalry Fire Protection Svc. LLC,Services,542.6,6/10/2021
Cavalry Fire Protection Svc. LLC,Services,1114.8,6/16/2021
Cavalry Fire Protection Svc. LLC,Services,274.5,6/16/2021
Cavalry Fire Protection Svc. LLC,Services,1391.5,7/14/2021
Cavalry Fire Protection Svc. LLC,Services,467.8,7/14/2021
Cavalry Fire Protection Svc. LLC,Materials,1044.9,8/2/2021
Cavalry Fire Protection Svc. LLC,Services,977.7,8/3/2021
Cavalry Fire Protection Svc. LLC,Services,619.5,8/10/2021
Cavalry Fire Protection Svc. LLC,Services,410.2,8/10/2021
Cavalry Fire Protection Svc. LLC,Services,869.6,8/11/2021
Cavalry Fire Protection Svc. LLC,Services,835.8,9/10/2021
Cavalry Fire Protection Svc. LLC,Services,566.6,9/10/2021
Cavalry Fire Protection Svc. LLC,Materials,1098.1,9/28/2021
Cavalry Fire Protection Svc. LLC,Services,566.1,9/28/2021
Cavalry Fire Protection Svc. LLC,Services,1022,10/14/2021
Cavalry Fire Protection Svc. LLC,Services,414.2,10/14/2021
Cavalry Fire Protection Svc. LLC,Services,748.2,11/3/2021
Cavalry Fire Protection Svc. LLC,Materials,3017.1,12/2/2021
Cavalry Fire Protection Svc. LLC,Services,507.5,12/2/2021
Cavalry Fire Protection Svc. LLC,Materials,556.3,12/14/2021
Cavalry Fire Protection Svc. LLC,Services,644.1,12/16/2021
Cavalry Fire Protection Svc. LLC,Services,374.6,12/16/2021
Cavalry Fire Protection Svc. LLC,Materials,875.8,12/16/2021
Cavalry Fire Protection Svc. LLC,Services,350,12/30/2021
Cavalry Fire Protection Svc. LLC,Services,427.2,12/30/2021
Cavalry Fire Protection Svc. LLC,Services,396,12/30/2021
Cbre  Inc.,Services,3000,1/13/2021
Cbt Nuggets Llc,Services,2995,11/17/2021
CDECI,Services,21656,1/28/2021
CDECI,Materials,736.3,1/28/2021
CDECI,Materials,581.14,2/24/2021
CDECI,Services,27488,2/24/2021
CDECI,Services,51826,3/4/2021
CDECI,Materials,1636.86,3/4/2021
CDECI,Services,12944,3/22/2021
CDECI,Materials,49480.49,3/22/2021
CDECI,Services,15584,4/13/2021
CDECI,Materials,1021.43,4/13/2021
CDECI,Services,27568,5/17/2021
CDECI,Materials,207.32,5/17/2021
CDECI,Materials,29.9,6/8/2021
CDECI,Services,15248,6/8/2021
CDECI,Services,14256,7/1/2021
CDECI,Materials,2267.08,7/1/2021
CDECI,Services,15048,7/13/2021
CDECI,Services,15002,8/2/2021
CDECI,Materials,2752.36,8/2/2021
CDECI,Services,30890,8/16/2021
CDECI,Materials,21052.84,8/16/2021
CDECI,Materials,975.09,10/1/2021
CDECI,Services,35997,10/1/2021
CDECI,Services,8240,10/1/2021
CDECI,Services,11584,10/5/2021
CDECI,Materials,712.69,10/5/2021
CDECI,Materials,64.2,11/3/2021
CDECI,Services,13464,11/3/2021
CDECI,Materials,3224.78,11/4/2021
CDECI,Services,16832,11/4/2021
CDECI,Materials,6446.62,11/16/2021
CDECI,Services,13664,11/16/2021
CDECI,Services,13960,11/16/2021
CDECI,Materials,400.61,11/16/2021
CDECI,Materials,2691.08,12/1/2021
CDECI,Services,14302,12/1/2021
CDECI,Services,16832,12/17/2021
Cdm Smith  Inc.,Services,989.6,1/5/2021
Cdm Smith  Inc.,Services,17998.3,3/1/2021
Cdm Smith  Inc.,Capital Purchases,12533.94,3/30/2021
Cdm Smith  Inc.,Capital Purchases,167624.64,9/28/2021
CDW Government  LLC,Capital Purchases,1088,1/4/2021
CDW Government  LLC,Capital Purchases,7616,2/16/2021
CDW Government  LLC,Services,33210.34,2/26/2021
CDW Government  LLC,Capital Purchases,485,4/20/2021
CDW Government  LLC,Materials,485,4/20/2021
CDW Government  LLC,Capital Purchases,485,4/20/2021
CDW Government  LLC,Capital Purchases,485,5/17/2021
CDW Government  LLC,Capital Purchases,970,6/16/2021
CDW Government  LLC,Capital Purchases,485,6/16/2021
CDW Government  LLC,Capital Purchases,485,7/1/2021
CDW Government  LLC,Capital Purchases,181650.45,7/20/2021
CDW Government  LLC,Capital Purchases,485,8/5/2021
CDW Government  LLC,Services,9790,8/11/2021
CDW Government  LLC,Capital Purchases,57064.56,9/28/2021
CDW Government  LLC,Materials,485,9/28/2021
CDW Government  LLC,Capital Purchases,970,12/16/2021
CDW Government  LLC,Capital Purchases,1237.9,12/16/2021
CE Power Engineered Services LLC,Claims & Insurance,13325,11/1/2021
CE Power Engineered Services LLC,Capital Purchases,64920,11/3/2021
Cedric Hayes,Services,143.36,6/14/2021
Cedric Hayes,Services,60.48,7/22/2021
Cedric Hayes,Services,35.84,11/8/2021
Cedric L Smith,Services,172.66,1/12/2021
Cedric L Smith,Services,9,11/22/2021
Cedric L Smith,Services,455.84,11/29/2021
Celeste Industries Corp.,Materials,1694,1/20/2021
Celeste Industries Corp.,Materials,2178,2/22/2021
Celeste Industries Corp.,Materials,968,3/1/2021
Celeste Industries Corp.,Materials,968,3/1/2021
Celeste Industries Corp.,Materials,1210,5/24/2021
Celeste Industries Corp.,Materials,1210,5/28/2021
Celeste Industries Corp.,Materials,968,6/1/2021
Celeste Industries Corp.,Materials,1452,6/3/2021
Celeste Industries Corp.,Materials,1037.6,8/2/2021
Central Sales & Service Inc.,Materials,193.53,3/1/2021
Central Sales & Service Inc.,Materials,319.92,6/1/2021
Central Sales & Service Inc.,Materials,1934.4,11/3/2021
CenTrio Energy Chicago LLC,Utilities,15791.71,1/14/2021
CenTrio Energy Chicago LLC,Utilities,14146.28,2/8/2021
CenTrio Energy Chicago LLC,Utilities,22899.58,3/10/2021
CenTrio Energy Chicago LLC,Utilities,19217.74,4/8/2021
CenTrio Energy Chicago LLC,Utilities,18214.93,5/11/2021
CenTrio Energy Chicago LLC,Utilities,8418.09,7/1/2021
CenTrio Energy Chicago LLC,Utilities,49655.15,7/28/2021
CenTrio Energy Chicago LLC,Utilities,38990.59,8/24/2021
CenTrio Energy Chicago LLC,Utilities,40119.1,9/16/2021
CenTrio Energy Chicago LLC,Utilities,33777.44,10/7/2021
CenTrio Energy Chicago LLC,Utilities,48913.36,12/15/2021
Certified Fleet Services  Inc.,Services,849.99,2/18/2021
Certified Fleet Services  Inc.,Services,4354.28,4/20/2021
Certified Fleet Services  Inc.,Services,435,4/20/2021
Certified Fleet Services  Inc.,Services,219.89,5/17/2021
Certified Fleet Services  Inc.,Services,14940.69,5/17/2021
Certified Fleet Services  Inc.,Services,675,5/17/2021
Certified Fleet Services  Inc.,Services,9140.04,5/21/2021
Certified Fleet Services  Inc.,Services,339.5,6/16/2021
Certified Fleet Services  Inc.,Services,73.15,6/18/2021
Certified Fleet Services  Inc.,Services,435,6/18/2021
Certified Fleet Services  Inc.,Services,4643.61,6/18/2021
Certified Fleet Services  Inc.,Services,4139.48,8/25/2021
Certified Fleet Services  Inc.,Services,400,11/3/2021
Certified Fleet Services  Inc.,Services,1622,11/3/2021
Certified Fleet Services  Inc.,Services,24.12,11/3/2021
Certified Fleet Services  Inc.,Services,675,11/3/2021
Certified Fleet Services  Inc.,Services,3876.97,11/3/2021
Certified Fleet Services  Inc.,Services,50,11/3/2021
Certified Languages International,Services,25.2,1/20/2021
Certified Languages International,Services,105.3,3/31/2021
Certified Languages International,Services,30.6,4/20/2021
Certified Languages International,Services,44.1,4/20/2021
Certified Languages International,Services,944.89,5/3/2021
Certified Languages International,Services,52.2,6/4/2021
Certified Languages International,Services,65.7,7/30/2021
Certified Languages International,Services,94.5,8/10/2021
Certified Languages International,Services,107.1,8/30/2021
Certified Languages International,Services,152.1,10/5/2021
Certified Languages International,Services,32.4,11/9/2021
Certified Languages International,Services,1370.07,12/7/2021
Certified Languages International,Services,1052.73,12/10/2021
Certified Languages International,Services,65.7,12/22/2021
"Channahon Tractor, LLC",Services,2148.7,7/14/2021
"Channahon Tractor, LLC",Services,1367.09,9/14/2021
Charles A. Wilson,Services,36.8,1/27/2021
Charles A. Wilson,Services,17.92,6/9/2021
Charles A. Wilson,Services,268.8,6/9/2021
Charles A. Wilson,Services,49.28,10/5/2021
Charles J. Harrison,Services,199,3/17/2021
Charles J. Harrison,Services,53.98,8/2/2021
Chas A Arce,Services,36.8,1/20/2021
Chas A Arce,Services,44.8,8/2/2021
Chas A Arce,Services,35.84,8/9/2021
Chas A Arce,Services,35.84,8/9/2021
Chas A Arce,Services,35.84,12/1/2021
Chas A Arce,Services,35.84,12/9/2021
"Checkfluid, Inc",Materials,450,3/1/2021
"Checkfluid, Inc",Materials,600,3/4/2021
"Checkfluid, Inc",Materials,450,5/21/2021
"Checkfluid, Inc",Materials,600,7/1/2021
"Checkfluid, Inc",Materials,750,7/7/2021
"Checkfluid, Inc",Materials,900,8/10/2021
"Checkfluid, Inc",Materials,600,8/26/2021
Chem & Consult  Inc.,Materials,1969,1/25/2021
Chem & Consult  Inc.,Materials,1969,4/20/2021
Chem & Consult  Inc.,Materials,2222,5/17/2021
Chem & Consult  Inc.,Materials,2602.6,10/14/2021
Chi Lam Darren Tam,Services,8.5,7/1/2021
Chicago Area Public Affairs Group,Services,500,3/8/2021
Chicago Area Public Affairs Group,Services,500,12/22/2021
Chicago Bar Assn.,Services,376,4/27/2021
Chicago Car Seal Co.,Materials,299.9,1/4/2021
Chicago Car Seal Co.,Materials,299.9,2/19/2021
Chicago Car Seal Co.,Materials,299.9,3/22/2021
Chicago Car Seal Co.,Materials,599.9,3/23/2021
Chicago Faucet Shoppe,Materials,333.68,3/19/2021
Chicago Faucet Shoppe,Materials,3349.13,5/14/2021
Chicago Fire Department,Claims & Insurance,25,6/25/2021
Chicago Fire Department,Claims & Insurance,25,6/25/2021
Chicago Jack Service  Inc.,Materials,100.5,4/19/2021
Chicago Locksmith Service  Inc.,Services,3700,5/3/2021
Chicago Locksmith Service  Inc.,Materials,4985,5/3/2021
Chicago Locksmith Service  Inc.,Materials,3962.1,8/3/2021
Chicago Locksmith Service  Inc.,Services,4114,8/3/2021
Chicago Locksmith Service  Inc.,Services,1820,10/13/2021
Chicago Locksmith Service  Inc.,Materials,1434.75,10/13/2021
Chicago Metal Maintenance  Inc.,Services,615,1/4/2021
Chicago Metal Maintenance  Inc.,Services,615,1/28/2021
Chicago Metal Maintenance  Inc.,Services,615,3/12/2021
Chicago Metal Maintenance  Inc.,Services,615,3/25/2021
Chicago Metal Maintenance  Inc.,Services,615,5/10/2021
Chicago Metal Maintenance  Inc.,Services,615,5/28/2021
Chicago Metal Maintenance  Inc.,Services,615,7/1/2021
Chicago Metal Maintenance  Inc.,Services,615,8/2/2021
Chicago Metal Maintenance  Inc.,Services,615,8/26/2021
Chicago Metal Maintenance  Inc.,Services,615,10/7/2021
Chicago Metal Maintenance  Inc.,Services,1230,12/17/2021
Chicago Parts & Sound  Llc. Dba Police Department Systems,Services,9597,5/10/2021
Chicago Parts & Sound  Llc. Dba Police Department Systems,Services,4195,6/18/2021
Chicago Parts & Sound  Llc. Dba Police Department Systems,Services,170,12/17/2021
Chicago Parts & Sound  Llc. Dba Police Department Systems,Services,3686,12/17/2021
Chicago Police Dept. Records Customer Service Section,Claims & Insurance,45.71,7/30/2021
Chicago Railroad Supply Inc.,Capital Purchases,44872,1/5/2021
Chicago Railroad Supply Inc.,Materials,11218,3/8/2021
Chicago Railroad Supply Inc.,Materials,14058,4/19/2021
Chicago Railroad Supply Inc.,Materials,12141,5/24/2021
Chicago Railroad Supply Inc.,Services,11290,8/4/2021
Chicago Railroad Supply Inc.,Services,13548,8/4/2021
Chicago Railroad Supply Inc.,Services,13548,8/4/2021
Chicago Railroad Supply Inc.,Materials,10719.74,10/14/2021
Chicago Railroad Supply Inc.,Materials,23069,12/17/2021
Chicago Spence Tool & Rubber Co.,Materials,568.2,1/28/2021
Chicago Spence Tool & Rubber Co.,Materials,568.2,3/17/2021
Chicago Spence Tool & Rubber Co.,Materials,852.3,5/19/2021
Chicago Sun-Times,Services,624,2/9/2021
Chicago Tire Inc.,Services,9958.15,1/4/2021
Chicago Tire Inc.,Services,8274,1/7/2021
Chicago Tire Inc.,Services,1392,3/4/2021
Chicago Tire Inc.,Services,2604,3/12/2021
Chicago Tire Inc.,Services,1327,3/17/2021
Chicago Tire Inc.,Services,1034.42,4/6/2021
Chicago Tire Inc.,Services,12080,4/13/2021
Chicago Tire Inc.,Services,227.41,5/5/2021
Chicago Tire Inc.,Services,7429,5/28/2021
Chicago Tire Inc.,Services,934.72,5/28/2021
Chicago Tire Inc.,Services,1217.76,5/28/2021
Chicago Tire Inc.,Services,12080,6/1/2021
Chicago Tire Inc.,Services,40,6/1/2021
Chicago Tire Inc.,Services,1302,6/3/2021
Chicago Tire Inc.,Services,7989,6/18/2021
Chicago Tire Inc.,Services,5550,7/12/2021
Chicago Tire Inc.,Services,5204,7/27/2021
Chicago Tire Inc.,Services,7960,8/24/2021
Chicago Tire Inc.,Services,2694,8/25/2021
Chicago Tire Inc.,Services,484,8/26/2021
Chicago Tire Inc.,Services,12090,9/10/2021
Chicago Tire Inc.,Services,12080,9/28/2021
Chicago Tire Inc.,Services,8714.4,10/5/2021
Chicago Tire Inc.,Services,2604,11/15/2021
Chicago Tire Inc.,Services,1990,11/17/2021
Chicago Tire Inc.,Services,607,12/17/2021
Chicago Title & Trust Co.,Capital Purchases,15000,8/4/2021
Chicago Title Insurance,Capital Purchases,2160,10/11/2021
Chicago Transit Authority,Services,6545,1/29/2021
Chicago Transit Authority,Services,6638.5,2/25/2021
Chicago Transit Authority,Services,6171,3/23/2021
Chicago Transit Authority,Services,8041,4/14/2021
Chicago Transit Authority,Services,6732,5/19/2021
Chicago Transit Authority,Services,7012.5,6/14/2021
Chicago Transit Authority,Services,8882.5,7/16/2021
Chicago Transit Authority,Services,8461.75,8/16/2021
Chicago Transit Authority,Services,10378.5,9/24/2021
Chicago Transit Authority,Services,1527.04,10/26/2021
Chicago Transit Authority,Services,10425.25,10/28/2021
Chicago Transit Authority,Services,10098,11/15/2021
Chicago Transit Authority,Services,9864.25,12/14/2021
Chicago Tribune,Services,179.37,8/30/2021
Chicago United Industries  Ltd.,Materials,189,1/14/2021
Chicago United Industries  Ltd.,Materials,269,2/1/2021
Chicago United Industries  Ltd.,Materials,1199,2/3/2021
Chicago United Industries  Ltd.,Materials,4888,3/1/2021
Chicago United Industries  Ltd.,Materials,289,3/1/2021
Chicago United Industries  Ltd.,Materials,815.85,4/20/2021
Chicago United Industries  Ltd.,Materials,309,5/17/2021
Chicago United Industries  Ltd.,Materials,5544.55,5/28/2021
Chicago United Industries  Ltd.,Materials,2016,6/3/2021
Chicago United Industries  Ltd.,Materials,1208,6/9/2021
Chicago United Industries  Ltd.,Materials,2823,6/18/2021
Chicago United Industries  Ltd.,Materials,260,7/1/2021
Chicago United Industries  Ltd.,Materials,279,7/1/2021
Chicago United Industries  Ltd.,Materials,3549.3,7/14/2021
Chicago United Industries  Ltd.,Materials,260,7/22/2021
Chicago United Industries  Ltd.,Materials,260,10/14/2021
Chicago United Industries  Ltd.,Materials,305,11/1/2021
Chicago United Industries  Ltd.,Materials,305,11/1/2021
Chicago United Industries  Ltd.,Materials,559,11/1/2021
Chicago United Industries  Ltd.,Materials,285,11/1/2021
Chicago United Industries  Ltd.,Materials,978,11/1/2021
Chicago United Industries  Ltd.,Materials,260,11/2/2021
Chicagoland Paving Contractors Inc.,Capital Purchases,15586.22,2/1/2021
Chicagoland Paving Contractors Inc.,Capital Purchases,312003.45,3/1/2021
Chicagoland Paving Contractors Inc.,Services,5280,3/1/2021
Chicagoland Paving Contractors Inc.,Capital Purchases,154299.08,3/1/2021
Chicagoland Paving Contractors Inc.,Capital Purchases,900,4/1/2021
Chicagoland Paving Contractors Inc.,Capital Purchases,16388.16,4/1/2021
Chicagoland Truck Parts LLC,Materials,1337.13,1/4/2021
Chicagoland Truck Parts LLC,Materials,3987.87,1/4/2021
Chicagoland Truck Parts LLC,Materials,112.55,1/5/2021
Chicagoland Truck Parts LLC,Materials,2933.7,1/25/2021
Chicagoland Truck Parts LLC,Materials,44.85,1/28/2021
Chicagoland Truck Parts LLC,Materials,56.97,2/24/2021
Chicagoland Truck Parts LLC,Materials,5151.11,2/24/2021
Chicagoland Truck Parts LLC,Materials,778.52,2/26/2021
Chicagoland Truck Parts LLC,Materials,1828.95,2/26/2021
Chicagoland Truck Parts LLC,Materials,78,3/12/2021
Chicagoland Truck Parts LLC,Materials,1092.95,3/17/2021
Chicagoland Truck Parts LLC,Materials,3132.98,3/17/2021
Chicagoland Truck Parts LLC,Materials,1748,3/22/2021
Chicagoland Truck Parts LLC,Materials,660,3/23/2021
Chicagoland Truck Parts LLC,Materials,1911.93,4/1/2021
Chicagoland Truck Parts LLC,Materials,175.5,4/6/2021
Chicagoland Truck Parts LLC,Materials,295.58,4/13/2021
Chicagoland Truck Parts LLC,Materials,2930.16,4/13/2021
Chicagoland Truck Parts LLC,Materials,172.8,4/20/2021
Chicagoland Truck Parts LLC,Materials,101.94,5/5/2021
Chicagoland Truck Parts LLC,Materials,10369.28,5/5/2021
Chicagoland Truck Parts LLC,Materials,3437.54,5/10/2021
Chicagoland Truck Parts LLC,Materials,999.98,5/10/2021
Chicagoland Truck Parts LLC,Materials,874.75,5/17/2021
Chicagoland Truck Parts LLC,Materials,78,5/19/2021
Chicagoland Truck Parts LLC,Materials,3814.42,6/3/2021
Chicagoland Truck Parts LLC,Materials,75.39,6/4/2021
Chicagoland Truck Parts LLC,Materials,7710.1,6/8/2021
Chicagoland Truck Parts LLC,Materials,1152.42,6/25/2021
Chicagoland Truck Parts LLC,Materials,2234.09,6/25/2021
Chicagoland Truck Parts LLC,Materials,245.35,7/2/2021
Chicagoland Truck Parts LLC,Materials,120.49,7/2/2021
Chicagoland Truck Parts LLC,Materials,118.5,7/14/2021
Chicagoland Truck Parts LLC,Materials,1858.57,7/14/2021
Chicagoland Truck Parts LLC,Materials,10897.48,7/21/2021
Chicagoland Truck Parts LLC,Materials,276.3,7/21/2021
Chicagoland Truck Parts LLC,Materials,240.19,7/30/2021
Chicagoland Truck Parts LLC,Materials,3857.63,8/2/2021
Chicagoland Truck Parts LLC,Materials,412.75,8/5/2021
Chicagoland Truck Parts LLC,Materials,2771.55,8/24/2021
Chicagoland Truck Parts LLC,Materials,146.48,9/28/2021
Chicagoland Truck Parts LLC,Materials,5980.59,9/28/2021
Chicagoland Truck Parts LLC,Materials,1862.51,9/28/2021
Chicagoland Truck Parts LLC,Materials,998.6,9/29/2021
Chicagoland Truck Parts LLC,Materials,122.85,10/5/2021
Chicagoland Truck Parts LLC,Materials,763.77,10/5/2021
Chicagoland Truck Parts LLC,Materials,101.85,10/7/2021
Chicagoland Truck Parts LLC,Materials,1995.41,10/14/2021
Chicagoland Truck Parts LLC,Materials,278.25,10/22/2021
Chicagoland Truck Parts LLC,Materials,872.66,10/22/2021
Chicagoland Truck Parts LLC,Materials,162.39,11/2/2021
Chicagoland Truck Parts LLC,Materials,4334.76,11/3/2021
Chicagoland Truck Parts LLC,Materials,56.7,11/3/2021
Chicagoland Truck Parts LLC,Materials,68.04,11/15/2021
Chicagoland Truck Parts LLC,Materials,4054.15,11/15/2021
Chicagoland Truck Parts LLC,Materials,15787.07,12/17/2021
Chicagoland Truck Parts LLC,Materials,148.05,12/17/2021
Chris Rose,Services,42.55,1/19/2021
Chris Rose,Services,41.44,2/25/2021
Christopher A Prutsman,Services,64.96,8/19/2021
Christopher Lawrence,Services,13.5,12/1/2021
Christopher Lawrence,Services,100.13,12/1/2021
Christopher P. Dorsey,Services,511.84,1/20/2021
Christopher P. Dorsey,Services,294.56,2/8/2021
Christopher P. Dorsey,Services,320.88,2/23/2021
Christopher P. Dorsey,Services,320.88,3/17/2021
Christopher P. Dorsey,Services,341.6,4/5/2021
Christopher P. Dorsey,Services,273.84,4/16/2021
Christopher P. Dorsey,Services,291.76,5/24/2021
Christopher P. Dorsey,Services,338.8,6/11/2021
Christopher P. Dorsey,Services,341.6,6/21/2021
Christopher P. Dorsey,Services,318.08,7/2/2021
Christopher P. Dorsey,Services,179.76,7/21/2021
Christopher P. Dorsey,Services,135.52,8/9/2021
Christopher P. Dorsey,Services,392,8/26/2021
Christopher P. Dorsey,Services,318.08,9/16/2021
Christopher P. Dorsey,Services,271.04,9/23/2021
Christopher P. Dorsey,Services,312.48,10/11/2021
Christopher P. Dorsey,Services,341.6,10/19/2021
Christopher P. Dorsey,Services,315.28,11/9/2021
Christopher P. Dorsey,Services,315.28,11/17/2021
Christopher P. Dorsey,Services,341.6,12/8/2021
Christopher P. Dorsey,Services,362.32,12/17/2021
Christy Webber & Co.,Services,3791,1/14/2021
Christy Webber & Co.,Services,5987,1/14/2021
Christy Webber & Co.,Services,9778,4/15/2021
Christy Webber & Co.,Services,3791,6/1/2021
Christy Webber & Co.,Services,5987,6/1/2021
Christy Webber & Co.,Services,5987,6/8/2021
Christy Webber & Co.,Services,3791,6/8/2021
Christy Webber & Co.,Services,3791,7/15/2021
Christy Webber & Co.,Services,5987,7/15/2021
Christy Webber & Co.,Services,5987,8/4/2021
Christy Webber & Co.,Services,3791,8/4/2021
Christy Webber & Co.,Services,17961,11/15/2021
Christy Webber & Co.,Services,11373,11/15/2021
Chrome Crankshaft Company LLC,Services,5700,3/12/2021
Chrome Crankshaft Company LLC,Services,24585,5/28/2021
Ciera Stipe,Services,35.84,4/13/2021
Ciera Stipe,Services,44.8,6/15/2021
"CIOX Health, LLC",Claims & Insurance,113.91,6/28/2021
City Of Blue Island,Utilities,20.94,1/13/2021
City Of Blue Island,Utilities,436,1/13/2021
City Of Blue Island,Utilities,157.05,1/13/2021
City Of Blue Island,Utilities,20.94,1/13/2021
City Of Blue Island,Utilities,157.05,1/13/2021
City Of Blue Island,Utilities,157.05,1/13/2021
City Of Blue Island,Utilities,157.05,1/13/2021
City Of Blue Island,Utilities,20.94,1/13/2021
City Of Blue Island,Utilities,62.82,2/10/2021
City Of Blue Island,Utilities,157.05,2/10/2021
City Of Blue Island,Utilities,20.94,2/10/2021
City Of Blue Island,Utilities,136.11,2/10/2021
City Of Blue Island,Utilities,157.05,2/11/2021
City Of Blue Island,Utilities,157.05,2/11/2021
City Of Blue Island,Utilities,157.05,2/11/2021
City Of Blue Island,Utilities,436,2/11/2021
City Of Blue Island,Utilities,146.58,3/8/2021
City Of Blue Island,Utilities,157.05,3/9/2021
City Of Blue Island,Utilities,31.41,3/9/2021
City Of Blue Island,Utilities,593.05,3/9/2021
City Of Blue Island,Utilities,157.05,3/9/2021
City Of Blue Island,Utilities,20.94,3/9/2021
City Of Blue Island,Utilities,157.05,3/9/2021
City Of Blue Island,Utilities,157.05,4/14/2021
City Of Blue Island,Utilities,20.94,4/14/2021
City Of Blue Island,Utilities,20.94,4/14/2021
City Of Blue Island,Utilities,20.94,4/14/2021
City Of Blue Island,Utilities,172.76,4/15/2021
City Of Blue Island,Utilities,479.6,4/15/2021
City Of Blue Island,Utilities,172.76,4/15/2021
City Of Blue Island,Utilities,172.76,4/15/2021
City Of Blue Island,Utilities,593.05,5/12/2021
City Of Blue Island,Utilities,157.05,5/12/2021
City Of Blue Island,Utilities,62.82,5/12/2021
City Of Blue Island,Utilities,157.05,5/12/2021
City Of Blue Island,Utilities,20.94,5/12/2021
City Of Blue Island,Utilities,23.03,5/26/2021
City Of Blue Island,Utilities,172.76,5/26/2021
City Of Blue Island,Utilities,20.94,6/8/2021
City Of Blue Island,Utilities,157.05,6/8/2021
City Of Blue Island,Utilities,141.34,6/8/2021
City Of Blue Island,Services,20.94,6/8/2021
City Of Blue Island,Utilities,20.94,6/8/2021
City Of Blue Island,Utilities,593.05,6/8/2021
City Of Blue Island,Utilities,329.81,7/14/2021
City Of Blue Island,Utilities,41.88,7/14/2021
City Of Blue Island,Utilities,141.34,7/14/2021
City Of Blue Island,Utilities,436,7/14/2021
City Of Blue Island,Utilities,157.05,7/14/2021
City Of Blue Island,Utilities,157.05,7/14/2021
City Of Blue Island,Utilities,20.94,7/14/2021
City Of Blue Island,Utilities,20.94,7/14/2021
City Of Blue Island,Utilities,599.85,8/6/2021
City Of Blue Island,Utilities,21.18,8/6/2021
City Of Blue Island,Utilities,158.85,8/6/2021
City Of Blue Island,Utilities,143.14,8/6/2021
City Of Blue Island,Utilities,42.36,8/6/2021
City Of Blue Island,Utilities,158.85,8/6/2021
City Of Blue Island,Utilities,21.18,8/6/2021
City Of Blue Island,Utilities,174.74,9/21/2021
City Of Blue Island,Utilities,174.74,9/22/2021
City Of Blue Island,Utilities,23.3,9/22/2021
City Of Blue Island,Utilities,23.3,9/22/2021
City Of Blue Island,Utilities,174.74,9/22/2021
City Of Blue Island,Utilities,659.84,9/22/2021
City Of Blue Island,Utilities,23.3,9/22/2021
City Of Blue Island,Utilities,21.18,10/11/2021
City Of Blue Island,Utilities,142.96,10/11/2021
City Of Blue Island,Utilities,21.18,10/11/2021
City Of Blue Island,Utilities,142.96,10/11/2021
City Of Blue Island,Utilities,158.85,10/11/2021
City Of Blue Island,Utilities,21.18,10/11/2021
City Of Blue Island,Utilities,599.85,10/11/2021
City Of Blue Island,Utilities,174.74,11/18/2021
City Of Blue Island,Utilities,174.74,11/18/2021
City Of Blue Island,Utilities,23.3,11/18/2021
City Of Blue Island,Utilities,21.18,11/18/2021
City Of Blue Island,Utilities,174.74,11/18/2021
City Of Blue Island,Utilities,659.84,11/18/2021
City Of Blue Island,Utilities,25.63,12/14/2021
City Of Blue Island,Utilities,192.21,12/14/2021
City Of Blue Island,Utilities,237.22,12/14/2021
City Of Blue Island,Utilities,190.62,12/14/2021
City Of Blue Island,Utilities,725.82,12/14/2021
City Of Blue Island,Utilities,25.63,12/14/2021
City of Chicago,Capital Purchases,375,3/2/2021
City of Chicago,Services,1000,5/10/2021
City of Chicago,Services,6228.36,6/1/2021
City of Chicago,Services,7300.7,6/15/2021
City of Chicago,Claims & Insurance,15000,7/20/2021
City of Chicago,Capital Purchases,16982.24,11/23/2021
City Of Elgin,Utilities,282.48,1/13/2021
City Of Elgin,Utilities,1087.34,1/13/2021
City Of Elgin,Utilities,215.15,2/1/2021
City Of Elgin,Utilities,502.75,2/11/2021
City Of Elgin,Utilities,981.23,2/11/2021
City Of Elgin,Utilities,244.18,3/1/2021
City Of Elgin,Utilities,392.74,3/9/2021
City Of Elgin,Utilities,821.44,3/9/2021
City Of Elgin,Utilities,317.18,4/1/2021
City Of Elgin,Utilities,245.32,4/15/2021
City Of Elgin,Utilities,779.07,4/15/2021
City Of Elgin,Utilities,221.98,4/26/2021
City Of Elgin,Utilities,863.8,5/12/2021
City Of Elgin,Utilities,359.25,5/13/2021
City Of Elgin,Utilities,207.18,5/26/2021
City Of Elgin,Utilities,237.41,6/8/2021
City Of Elgin,Utilities,966.23,6/8/2021
City Of Elgin,Utilities,244.18,6/29/2021
City Of Elgin,Utilities,254.34,7/7/2021
City Of Elgin,Utilities,892.24,7/7/2021
City Of Elgin,Utilities,207.18,7/28/2021
City Of Elgin,Utilities,886,8/11/2021
City Of Elgin,Utilities,255.45,8/11/2021
City Of Elgin,Utilities,229.38,9/7/2021
City Of Elgin,Utilities,782.11,9/13/2021
City Of Elgin,Utilities,159.93,9/14/2021
City Of Elgin,Utilities,248.53,9/14/2021
City Of Elgin,Utilities,244.18,9/29/2021
City Of Elgin,Utilities,232.52,10/12/2021
City Of Elgin,Utilities,930.87,10/12/2021
City Of Elgin,Utilities,214.58,11/3/2021
City Of Elgin,Utilities,154.27,12/13/2021
City Of Elgin,Utilities,1044.31,12/13/2021
City Of Elgin,Utilities,56.48,12/14/2021
City Of Elgin,Utilities,949.43,12/14/2021
City Of Harvey Water Department,Utilities,37.03,1/13/2021
City Of Harvey Water Department,Utilities,33.72,2/11/2021
City Of Harvey Water Department,Utilities,43.79,3/10/2021
City Of Harvey Water Department,Utilities,43.92,3/10/2021
City Of Harvey Water Department,Utilities,37.36,4/15/2021
City Of Harvey Water Department,Utilities,110.52,4/19/2021
City Of Harvey Water Department,Utilities,33.58,5/26/2021
City Of Harvey Water Department,Utilities,23.52,6/9/2021
City Of Harvey Water Department,Utilities,40.29,6/21/2021
City Of Harvey Water Department,Utilities,33.8,7/2/2021
City Of Harvey Water Department,Utilities,34.02,7/2/2021
City Of Harvey Water Department,Utilities,11.66,8/11/2021
City Of Harvey Water Department,Utilities,33.83,8/11/2021
City Of Harvey Water Department,Utilities,33.89,9/14/2021
City Of Harvey Water Department,Utilities,33.87,9/14/2021
City Of Harvey Water Department,Utilities,37.3,10/11/2021
City Of Harvey Water Department,Utilities,37.25,10/11/2021
City Of Harvey Water Department,Utilities,46.25,12/13/2021
City Of Harvey Water Department,Utilities,37.27,12/13/2021
City Of Harvey Water Department,Utilities,88.88,12/14/2021
City Of Harvey Water Department,Utilities,74.59,12/15/2021
City Of Highland Park,Services,150343.31,1/13/2021
City Of Highland Park,Utilities,27.8,3/10/2021
City Of Highland Park,Utilities,27.8,6/8/2021
City Of Highland Park,Utilities,27.8,9/14/2021
City Of Joliet,Utilities,20.01,1/26/2021
City Of Joliet,Utilities,20.75,2/25/2021
City Of Joliet,Utilities,20.52,4/1/2021
City Of Joliet,Utilities,19.36,4/23/2021
City Of Joliet,Utilities,20.58,5/26/2021
City Of Joliet,Utilities,20.13,6/17/2021
City Of Joliet,Utilities,20.58,7/22/2021
City Of Joliet,Utilities,20.13,8/20/2021
City Of Joliet,Utilities,20.58,9/21/2021
City Of Joliet,Utilities,20.52,10/19/2021
City Of Joliet,Utilities,21.38,12/14/2021
City of North Chicago,Services,218608.57,3/11/2021
City Of Oak Forest Ill.,Utilities,37.86,1/19/2021
City Of Oak Forest Ill.,Utilities,26.43,4/15/2021
City Of Oak Forest Ill.,Utilities,38.6,7/14/2021
City Of Oak Forest Ill.,Utilities,62.96,10/19/2021
City of Woodstock,Services,249417.54,8/2/2021
Claeven  Ltd.,Services,1820,1/4/2021
Claeven  Ltd.,Services,1404,1/4/2021
Claeven  Ltd.,Services,845,1/4/2021
Claeven  Ltd.,Services,1300,1/5/2021
Claeven  Ltd.,Services,1235,1/20/2021
Claeven  Ltd.,Services,455,1/20/2021
Claeven  Ltd.,Services,234,1/25/2021
Claeven  Ltd.,Services,455,1/28/2021
Claeven  Ltd.,Services,1105,1/28/2021
Claeven  Ltd.,Services,845,1/28/2021
Claeven  Ltd.,Services,325,1/28/2021
Claeven  Ltd.,Services,325,1/29/2021
Claeven  Ltd.,Services,715,2/18/2021
Claeven  Ltd.,Services,845,2/18/2021
Claeven  Ltd.,Services,2626,2/18/2021
Claeven  Ltd.,Services,1235,2/24/2021
Claeven  Ltd.,Services,715,2/24/2021
Claeven  Ltd.,Services,234,2/24/2021
Claeven  Ltd.,Services,715,2/26/2021
Claeven  Ltd.,Services,675,2/26/2021
Claeven  Ltd.,Services,455,2/26/2021
Claeven  Ltd.,Services,455,3/1/2021
Claeven  Ltd.,Services,1170,3/4/2021
Claeven  Ltd.,Services,455,3/4/2021
Claeven  Ltd.,Services,325,3/12/2021
Claeven  Ltd.,Services,455,3/12/2021
Claeven  Ltd.,Services,780,3/22/2021
Claeven  Ltd.,Services,2990,3/22/2021
Claeven  Ltd.,Services,455,3/22/2021
Claeven  Ltd.,Services,325,3/29/2021
Claeven  Ltd.,Services,455,3/29/2021
Claeven  Ltd.,Services,845,3/29/2021
Claeven  Ltd.,Services,715,4/7/2021
Claeven  Ltd.,Services,455,4/8/2021
Claeven  Ltd.,Services,455,4/8/2021
Claeven  Ltd.,Services,845,4/13/2021
Claeven  Ltd.,Services,1813.5,4/21/2021
Claeven  Ltd.,Services,455,4/21/2021
Claeven  Ltd.,Services,455,4/21/2021
Claeven  Ltd.,Services,455,5/4/2021
Claeven  Ltd.,Services,910,5/6/2021
Claeven  Ltd.,Services,1235,5/6/2021
Claeven  Ltd.,Services,455,5/17/2021
Claeven  Ltd.,Services,780,5/19/2021
Claeven  Ltd.,Services,1170,5/24/2021
Claeven  Ltd.,Services,4995,5/28/2021
Claeven  Ltd.,Services,845,5/28/2021
Claeven  Ltd.,Services,455,5/28/2021
Claeven  Ltd.,Services,1040,6/3/2021
Claeven  Ltd.,Services,845,6/10/2021
Claeven  Ltd.,Services,2535,6/16/2021
Claeven  Ltd.,Services,455,6/16/2021
Claeven  Ltd.,Services,455,6/16/2021
Claeven  Ltd.,Services,715,6/16/2021
Claeven  Ltd.,Services,546,6/25/2021
Claeven  Ltd.,Services,2135,7/1/2021
Claeven  Ltd.,Services,75,7/1/2021
Claeven  Ltd.,Services,715,7/1/2021
Claeven  Ltd.,Services,559,7/1/2021
Claeven  Ltd.,Services,689,7/2/2021
Claeven  Ltd.,Services,546,7/2/2021
Claeven  Ltd.,Services,455,7/2/2021
Claeven  Ltd.,Services,1755,7/14/2021
Claeven  Ltd.,Services,455,7/19/2021
Claeven  Ltd.,Services,1391,7/21/2021
Claeven  Ltd.,Services,455,7/21/2021
Claeven  Ltd.,Services,455,7/22/2021
Claeven  Ltd.,Services,546,7/29/2021
Claeven  Ltd.,Services,2340,8/11/2021
Claeven  Ltd.,Services,715,8/16/2021
Claeven  Ltd.,Services,2080,8/16/2021
Claeven  Ltd.,Services,1365,8/25/2021
Claeven  Ltd.,Services,455,8/26/2021
Claeven  Ltd.,Services,455,8/26/2021
Claeven  Ltd.,Services,1105,8/26/2021
Claeven  Ltd.,Services,1690,8/30/2021
Claeven  Ltd.,Services,1911,9/21/2021
Claeven  Ltd.,Services,455,9/21/2021
Claeven  Ltd.,Services,910,9/21/2021
Claeven  Ltd.,Services,845,9/21/2021
Claeven  Ltd.,Services,715,9/28/2021
Claeven  Ltd.,Services,234,9/29/2021
Claeven  Ltd.,Services,455,10/6/2021
Claeven  Ltd.,Services,455,10/6/2021
Claeven  Ltd.,Services,845,10/7/2021
Claeven  Ltd.,Services,455,10/26/2021
Claeven  Ltd.,Services,2015,10/28/2021
Claeven  Ltd.,Services,2145,11/8/2021
Claeven  Ltd.,Services,1170,11/8/2021
Claeven  Ltd.,Services,1300,11/24/2021
Claeven  Ltd.,Services,455,11/24/2021
Claeven  Ltd.,Services,2795,11/24/2021
Claeven  Ltd.,Services,546,11/29/2021
Clarity Partners  Llc,Services,76177.5,1/5/2021
Clarity Partners  Llc,Services,1570.34,1/5/2021
Clarity Partners  Llc,Services,29920.34,1/22/2021
Clarity Partners  Llc,Services,72607.5,1/22/2021
Clarity Partners  Llc,Services,65005,3/1/2021
Clarity Partners  Llc,Services,1570.34,3/1/2021
Clarity Partners  Llc,Services,2298.34,3/17/2021
Clarity Partners  Llc,Services,59653.75,3/17/2021
Clarity Partners  Llc,Services,1570.34,4/21/2021
Clarity Partners  Llc,Services,47870,4/21/2021
Clarity Partners  Llc,Services,1570.34,5/19/2021
Clarity Partners  Llc,Services,22305,5/19/2021
Clarity Partners  Llc,Services,1570.34,6/25/2021
Clarity Partners  Llc,Services,45703.75,6/25/2021
Clarity Partners  Llc,Services,1570.34,7/29/2021
Clarity Partners  Llc,Services,32662.5,7/29/2021
Clarity Partners  Llc,Services,55000,8/16/2021
Clarity Partners  Llc,Services,1570.34,8/16/2021
Clarity Partners  Llc,Services,10537.5,11/8/2021
Clarity Partners  Llc,Services,2186.34,11/8/2021
Clark Catering Inc,Services,34690.2,4/13/2021
Clark Catering Inc,Services,447.2,9/1/2021
Clark Catering Inc,Services,535,10/7/2021
Clark Catering Inc,Services,456.85,10/13/2021
Clark Catering Inc,Services,526.1,11/29/2021
Claybourne Miller,Services,241.5,1/12/2021
Claybourne Miller,Services,462.3,1/14/2021
Claybourne Miller,Services,235.2,1/27/2021
Claybourne Miller,Services,271.04,2/8/2021
Claybourne Miller,Services,271.04,2/22/2021
Claybourne Miller,Services,199.36,3/8/2021
Claybourne Miller,Services,271.04,3/23/2021
Claybourne Miller,Services,235.2,4/13/2021
Claybourne Miller,Services,281.12,4/20/2021
Claybourne Miller,Services,235.2,5/7/2021
Claybourne Miller,Services,199.36,5/26/2021
Claybourne Miller,Services,306.88,6/8/2021
Claybourne Miller,Services,235.2,6/21/2021
Claybourne Miller,Services,235.2,7/8/2021
Claybourne Miller,Services,281.12,7/21/2021
Claybourne Miller,Services,235.2,8/10/2021
Claybourne Miller,Services,189.28,8/19/2021
Claybourne Miller,Services,235.2,9/2/2021
Claybourne Miller,Services,235.2,9/20/2021
Claybourne Miller,Services,316.96,10/14/2021
Claybourne Miller,Services,235.2,10/20/2021
Claybourne Miller,Services,153.44,11/12/2021
Claybourne Miller,Services,271.04,11/22/2021
Claybourne Miller,Services,189.28,12/8/2021
Claybourne Miller,Services,199.36,12/22/2021
Clayton Starks Iii,Services,113.12,3/1/2021
Clayton Starks Iii,Services,223.55,4/20/2021
Clayton Starks Iii,Services,8.96,9/22/2021
Clayton Starks Iii,Services,224,9/22/2021
Clayton Starks Iii,Services,170.24,10/20/2021
Clayton Starks Iii,Services,215.04,11/22/2021
Clayton Starks Iii,Services,134.4,12/8/2021
Cleaning Specialist  Inc.,Services,4562,1/4/2021
Cleaning Specialist  Inc.,Services,2295,1/8/2021
Cleaning Specialist  Inc.,Services,3672,2/3/2021
Cleaning Specialist  Inc.,Services,2078,2/17/2021
Cleaning Specialist  Inc.,Services,400,3/4/2021
Cleaning Specialist  Inc.,Services,6825,3/12/2021
Cleaning Specialist  Inc.,Services,3300,4/1/2021
Cleaning Specialist  Inc.,Capital Purchases,2800,4/21/2021
Cleaning Specialist  Inc.,Services,14693,5/6/2021
Cleaning Specialist  Inc.,Services,510,5/10/2021
Cleaning Specialist  Inc.,Services,2242,5/12/2021
Cleaning Specialist  Inc.,Services,2763,5/17/2021
Cleaning Specialist  Inc.,Capital Purchases,3150,7/12/2021
Cleaning Specialist  Inc.,Services,5491,7/14/2021
Cleaning Specialist  Inc.,Services,1997,7/26/2021
Cleaning Specialist  Inc.,Services,548,8/3/2021
Cleaning Specialist  Inc.,Services,6340,8/3/2021
Cleaning Specialist  Inc.,Services,657,8/5/2021
Cleaning Specialist  Inc.,Services,3529,8/10/2021
Cleaning Specialist  Inc.,Services,5566,8/10/2021
Cleaning Specialist  Inc.,Services,610,8/26/2021
Cleaning Specialist  Inc.,Services,3267,9/13/2021
Cleaning Specialist  Inc.,Services,6845,9/14/2021
Cleaning Specialist  Inc.,Services,3101,9/21/2021
Cleaning Specialist  Inc.,Services,7840,10/20/2021
Cleaning Specialist  Inc.,Services,7840,10/21/2021
Cleaning Specialist  Inc.,Services,6692,11/5/2021
Cleaning Specialist  Inc.,Services,4939,12/2/2021
Clever Devices Ltd.,Capital Purchases,938371.57,1/5/2021
Clever Devices Ltd.,Capital Purchases,292607.17,2/18/2021
Clever Devices Ltd.,Capital Purchases,286755.6,2/18/2021
Clever Devices Ltd.,Capital Purchases,110894.83,3/15/2021
Clever Devices Ltd.,Capital Purchases,113157.77,3/15/2021
Clever Devices Ltd.,Capital Purchases,232891.42,4/8/2021
Clever Devices Ltd.,Capital Purchases,228234.05,4/8/2021
Clever Devices Ltd.,Capital Purchases,591186.5,5/13/2021
Clever Devices Ltd.,Services,185298.91,5/28/2021
Clever Devices Ltd.,Capital Purchases,450615.31,6/24/2021
Clever Devices Ltd.,Capital Purchases,459811.9,6/24/2021
Clever Devices Ltd.,Capital Purchases,397946.55,8/16/2021
Clever Devices Ltd.,Capital Purchases,406067.09,8/16/2021
Clever Devices Ltd.,Capital Purchases,48999.95,9/9/2021
Clever Devices Ltd.,Capital Purchases,50000.05,9/9/2021
Clever Devices Ltd.,Capital Purchases,463638.89,9/24/2021
Clever Devices Ltd.,Capital Purchases,473101.49,9/24/2021
Clever Devices Ltd.,Capital Purchases,1280163.89,10/5/2021
Clever Devices Ltd.,Capital Purchases,301261.84,10/20/2021
Clever Devices Ltd.,Capital Purchases,295237.2,10/20/2021
Clever Devices Ltd.,Capital Purchases,760493.4,11/3/2021
Clever Devices Ltd.,Capital Purchases,1901233.5,12/6/2021
Clifford A. Clanin,Services,184.24,10/20/2021
Clifford A. Clanin,Services,94,10/20/2021
Clifford A. Clanin,Services,594.36,10/20/2021
Clifford A. Clanin,Services,140,10/20/2021
Clinical Neuroscience Services Of WNC,Claims & Insurance,7691.08,9/8/2021
Cloudinary Inc,Services,48900,1/4/2021
Cloudinary Inc,Services,41400,11/29/2021
Cody Johnson,Services,33.35,1/19/2021
Cody Johnson,Services,72.45,1/19/2021
Cohnreznick Llp,Services,4960,4/13/2021
Cohnreznick Llp,Services,13000,8/4/2021
Cohnreznick Llp,Services,71355,9/14/2021
Coldgon Products International  Inc,Services,188,5/21/2021
Coldgon Products International  Inc,Services,1252.5,5/21/2021
Coldgon Products International  Inc,Services,1252.5,5/21/2021
Coldgon Products International  Inc,Services,188,5/21/2021
Collins Bargione & Vukovich,Claims & Insurance,278.54,4/26/2021
Collins Bargione & Vukovich,Claims & Insurance,2542.99,11/9/2021
Collins Engineers  Inc.,Capital Purchases,64778.58,6/3/2021
Columbia Pipe & Supply,Materials,3066,8/16/2021
Columbia Pipe & Supply,Services,61.32,8/16/2021
Com Ed-Real Estate Dept.  4Th Fl.,Rental Expense,573.26,1/4/2021
Com Ed-Real Estate Dept.  4Th Fl.,Rental Expense,601.92,1/22/2021
Com Ed-Real Estate Dept.  4Th Fl.,Rental Expense,601.92,3/12/2021
Com Ed-Real Estate Dept.  4Th Fl.,Rental Expense,601.92,3/22/2021
Com Ed-Real Estate Dept.  4Th Fl.,Rental Expense,601.92,4/22/2021
Com Ed-Real Estate Dept.  4Th Fl.,Rental Expense,601.92,5/20/2021
Com Ed-Real Estate Dept.  4Th Fl.,Rental Expense,601.92,6/23/2021
Com Ed-Real Estate Dept.  4Th Fl.,Rental Expense,601.92,7/28/2021
Com Ed-Real Estate Dept.  4Th Fl.,Rental Expense,601.92,8/23/2021
Com Ed-Real Estate Dept.  4Th Fl.,Rental Expense,601.92,9/16/2021
Com Ed-Real Estate Dept.  4Th Fl.,Rental Expense,601.92,10/20/2021
Comcast,Utilities,1300,1/12/2021
Comcast,Utilities,4411.8,1/12/2021
Comcast,Utilities,4453.68,2/17/2021
Comcast,Utilities,1300,2/17/2021
Comcast,Utilities,2531.62,4/19/2021
Comcast,Utilities,8975.74,4/19/2021
Comcast,Utilities,4490.28,5/10/2021
Comcast,Utilities,1266.49,5/10/2021
Comcast,Utilities,4490.36,6/1/2021
Comcast,Utilities,1266.5,6/1/2021
Comcast,Utilities,4485.68,7/7/2021
Comcast,Utilities,1265.19,7/7/2021
Comcast,Capital Purchases,49794.29,7/12/2021
Comcast,Utilities,1270.96,8/5/2021
Comcast,Utilities,4506.15,8/5/2021
Comcast,Utilities,1271.04,9/14/2021
Comcast,Utilities,4506.43,9/14/2021
Comcast,Utilities,1270.8,10/14/2021
Comcast,Utilities,4505.56,10/14/2021
Comcast,Utilities,1270.68,11/18/2021
Comcast,Utilities,4505.12,11/18/2021
Comcast,Utilities,1270.68,12/14/2021
Comcast,Utilities,4505.12,12/14/2021
Comcast Business,Utilities,24867,1/12/2021
Comcast Business,Utilities,37301.42,1/12/2021
Comcast Business,Utilities,24867.4,2/17/2021
Comcast Business,Utilities,37301.02,2/17/2021
Comcast Business,Utilities,37301.05,4/19/2021
Comcast Business,Utilities,24867.37,4/19/2021
Comcast Business,Utilities,37438.73,4/22/2021
Comcast Business,Utilities,24959.16,4/22/2021
Comcast Business,Utilities,50291.32,5/10/2021
Comcast Business,Utilities,75436.99,5/10/2021
Comcast Business,Utilities,24920.65,7/28/2021
Comcast Business,Utilities,37380.98,7/28/2021
Comcast Business,Utilities,24814.68,8/16/2021
Comcast Business,Utilities,37222.03,8/16/2021
Comcast Business,Utilities,37222.03,9/29/2021
Comcast Business,Utilities,24814.68,9/29/2021
Comcast Business,Utilities,37153.16,12/14/2021
Comcast Business,Utilities,24768.77,12/14/2021
Commercial Group Lifting Products,Services,181.49,1/5/2021
Commercial Group Lifting Products,Services,199.52,2/26/2021
Commercial Group Lifting Products,Services,368.85,6/3/2021
Commercial Group Lifting Products,Services,175,7/26/2021
Commercial Group Lifting Products,Services,200.42,7/29/2021
Commercial Group Lifting Products,Services,245,9/28/2021
Commonwealth Edison,Utilities,56.25,1/4/2021
Commonwealth Edison,Utilities,47.76,1/7/2021
Commonwealth Edison,Utilities,91.65,1/7/2021
Commonwealth Edison,Utilities,175.99,1/7/2021
Commonwealth Edison,Utilities,40.55,1/7/2021
Commonwealth Edison,Utilities,122.48,1/7/2021
Commonwealth Edison,Utilities,236.42,1/8/2021
Commonwealth Edison,Utilities,155.39,1/8/2021
Commonwealth Edison,Utilities,223.5,1/8/2021
Commonwealth Edison,Utilities,24.82,1/8/2021
Commonwealth Edison,Utilities,214.88,1/8/2021
Commonwealth Edison,Utilities,119.48,1/8/2021
Commonwealth Edison,Utilities,45.07,1/8/2021
Commonwealth Edison,Utilities,1048.24,1/8/2021
Commonwealth Edison,Utilities,47.05,1/8/2021
Commonwealth Edison,Utilities,67.21,1/8/2021
Commonwealth Edison,Utilities,138.98,1/13/2021
Commonwealth Edison,Utilities,259.41,1/13/2021
Commonwealth Edison,Utilities,31.59,1/13/2021
Commonwealth Edison,Utilities,97.19,1/13/2021
Commonwealth Edison,Utilities,68.4,1/13/2021
Commonwealth Edison,Capital Purchases,835.5,1/13/2021
Commonwealth Edison,Utilities,50.36,1/13/2021
Commonwealth Edison,Utilities,77326.08,1/13/2021
Commonwealth Edison,Utilities,29.62,1/13/2021
Commonwealth Edison,Utilities,106.3,1/13/2021
Commonwealth Edison,Utilities,64.72,1/14/2021
Commonwealth Edison,Utilities,95.51,1/14/2021
Commonwealth Edison,Utilities,64.18,1/21/2021
Commonwealth Edison,Utilities,46.63,1/21/2021
Commonwealth Edison,Utilities,355.31,1/26/2021
Commonwealth Edison,Utilities,60.93,2/1/2021
Commonwealth Edison,Utilities,96.1,2/2/2021
Commonwealth Edison,Utilities,176.17,2/2/2021
Commonwealth Edison,Utilities,51.32,2/2/2021
Commonwealth Edison,Utilities,43.37,2/2/2021
Commonwealth Edison,Utilities,50.98,2/2/2021
Commonwealth Edison,Utilities,253.59,2/2/2021
Commonwealth Edison,Utilities,67.13,2/2/2021
Commonwealth Edison,Utilities,1038.37,2/2/2021
Commonwealth Edison,Utilities,63.4,2/2/2021
Commonwealth Edison,Utilities,97.3,2/2/2021
Commonwealth Edison,Utilities,43.05,2/2/2021
Commonwealth Edison,Utilities,137.49,2/2/2021
Commonwealth Edison,Utilities,54.96,2/2/2021
Commonwealth Edison,Utilities,191.65,2/2/2021
Commonwealth Edison,Utilities,611.99,2/2/2021
Commonwealth Edison,Utilities,24.62,2/10/2021
Commonwealth Edison,Utilities,29.32,2/10/2021
Commonwealth Edison,Utilities,25.25,2/10/2021
Commonwealth Edison,Utilities,82009.64,2/10/2021
Commonwealth Edison,Utilities,108.73,2/12/2021
Commonwealth Edison,Utilities,32.48,2/12/2021
Commonwealth Edison,Utilities,1108.92,2/12/2021
Commonwealth Edison,Utilities,189.53,2/12/2021
Commonwealth Edison,Utilities,138.04,2/12/2021
Commonwealth Edison,Utilities,274.44,2/17/2021
Commonwealth Edison,Utilities,208.78,2/22/2021
Commonwealth Edison,Utilities,70.32,2/22/2021
Commonwealth Edison,Utilities,142265.13,2/24/2021
Commonwealth Edison,Utilities,171746.87,3/1/2021
Commonwealth Edison,Utilities,24.3,3/2/2021
Commonwealth Edison,Utilities,428.49,3/2/2021
Commonwealth Edison,Utilities,1166.49,3/2/2021
Commonwealth Edison,Utilities,159.56,3/2/2021
Commonwealth Edison,Utilities,340.87,3/3/2021
Commonwealth Edison,Utilities,185.21,3/3/2021
Commonwealth Edison,Utilities,155.54,3/3/2021
Commonwealth Edison,Utilities,72.95,3/3/2021
Commonwealth Edison,Utilities,140.18,3/3/2021
Commonwealth Edison,Utilities,46.13,3/3/2021
Commonwealth Edison,Utilities,160.33,3/12/2021
Commonwealth Edison,Utilities,268.35,3/12/2021
Commonwealth Edison,Utilities,30.01,3/12/2021
Commonwealth Edison,Utilities,100.3,3/12/2021
Commonwealth Edison,Utilities,96.77,3/12/2021
Commonwealth Edison,Utilities,232.11,3/12/2021
Commonwealth Edison,Utilities,197.22,3/12/2021
Commonwealth Edison,Utilities,60.79,3/12/2021
Commonwealth Edison,Utilities,67.7,3/12/2021
Commonwealth Edison,Utilities,2827.7,3/19/2021
Commonwealth Edison,Utilities,413.04,3/19/2021
Commonwealth Edison,Utilities,2516.66,3/19/2021
Commonwealth Edison,Utilities,274.1,3/19/2021
Commonwealth Edison,Utilities,190.56,3/19/2021
Commonwealth Edison,Utilities,883.01,3/19/2021
Commonwealth Edison,Utilities,732.96,3/19/2021
Commonwealth Edison,Utilities,136.3,3/22/2021
Commonwealth Edison,Utilities,64.1,3/22/2021
Commonwealth Edison,Utilities,1174.97,3/22/2021
Commonwealth Edison,Utilities,33.17,3/22/2021
Commonwealth Edison,Utilities,44.29,3/22/2021
Commonwealth Edison,Utilities,24.3,3/22/2021
Commonwealth Edison,Utilities,48.35,3/22/2021
Commonwealth Edison,Utilities,554.7,3/24/2021
Commonwealth Edison,Utilities,28.27,3/24/2021
Commonwealth Edison,Utilities,176.7,3/24/2021
Commonwealth Edison,Utilities,50.75,3/24/2021
Commonwealth Edison,Utilities,91232.26,3/24/2021
Commonwealth Edison,Utilities,25.02,3/25/2021
Commonwealth Edison,Utilities,216546.1,3/25/2021
Commonwealth Edison,Utilities,1096.26,4/8/2021
Commonwealth Edison,Utilities,403.55,4/8/2021
Commonwealth Edison,Utilities,24.62,4/8/2021
Commonwealth Edison,Utilities,63.1,4/8/2021
Commonwealth Edison,Utilities,94.75,4/8/2021
Commonwealth Edison,Utilities,45.54,4/8/2021
Commonwealth Edison,Utilities,205.24,4/8/2021
Commonwealth Edison,Utilities,29.01,4/8/2021
Commonwealth Edison,Utilities,189.73,4/8/2021
Commonwealth Edison,Utilities,1174.02,4/8/2021
Commonwealth Edison,Utilities,70.02,4/9/2021
Commonwealth Edison,Utilities,105897.02,4/14/2021
Commonwealth Edison,Utilities,107.97,4/20/2021
Commonwealth Edison,Utilities,749.46,4/20/2021
Commonwealth Edison,Utilities,232.83,4/20/2021
Commonwealth Edison,Utilities,401.22,4/20/2021
Commonwealth Edison,Utilities,2230.79,4/20/2021
Commonwealth Edison,Utilities,24.3,4/20/2021
Commonwealth Edison,Utilities,299.57,4/20/2021
Commonwealth Edison,Utilities,40.06,4/20/2021
Commonwealth Edison,Utilities,230955.72,4/21/2021
Commonwealth Edison,Utilities,28.75,5/4/2021
Commonwealth Edison,Utilities,116.48,5/5/2021
Commonwealth Edison,Utilities,1747.9,5/5/2021
Commonwealth Edison,Utilities,44.74,5/5/2021
Commonwealth Edison,Utilities,146.29,5/5/2021
Commonwealth Edison,Utilities,156.91,5/5/2021
Commonwealth Edison,Utilities,113.75,5/5/2021
Commonwealth Edison,Utilities,151.01,5/5/2021
Commonwealth Edison,Utilities,24.62,5/5/2021
Commonwealth Edison,Utilities,60.5,5/5/2021
Commonwealth Edison,Utilities,142.03,5/10/2021
Commonwealth Edison,Utilities,227.32,5/10/2021
Commonwealth Edison,Utilities,733.84,5/12/2021
Commonwealth Edison,Utilities,88.68,5/12/2021
Commonwealth Edison,Utilities,41.4,5/12/2021
Commonwealth Edison,Utilities,80.18,5/12/2021
Commonwealth Edison,Utilities,43.08,5/12/2021
Commonwealth Edison,Utilities,47.74,5/12/2021
Commonwealth Edison,Utilities,337.25,5/12/2021
Commonwealth Edison,Utilities,72.48,5/12/2021
Commonwealth Edison,Utilities,32.53,5/12/2021
Commonwealth Edison,Utilities,925.97,5/13/2021
Commonwealth Edison,Utilities,24.72,5/13/2021
Commonwealth Edison,Utilities,178.53,5/13/2021
Commonwealth Edison,Utilities,105.58,5/13/2021
Commonwealth Edison,Utilities,216391.29,5/19/2021
Commonwealth Edison,Utilities,60.64,5/19/2021
Commonwealth Edison,Utilities,109819.9,5/19/2021
Commonwealth Edison,Utilities,84088.35,6/1/2021
Commonwealth Edison,Utilities,179.06,6/2/2021
Commonwealth Edison,Utilities,92.99,6/2/2021
Commonwealth Edison,Utilities,174.16,6/2/2021
Commonwealth Edison,Utilities,104.93,6/2/2021
Commonwealth Edison,Utilities,1673.53,6/2/2021
Commonwealth Edison,Utilities,857.3,6/8/2021
Commonwealth Edison,Utilities,163.83,6/8/2021
Commonwealth Edison,Utilities,88.17,6/8/2021
Commonwealth Edison,Utilities,427.4,6/8/2021
Commonwealth Edison,Utilities,24.3,6/8/2021
Commonwealth Edison,Utilities,22.89,6/8/2021
Commonwealth Edison,Utilities,62.4,6/8/2021
Commonwealth Edison,Utilities,82.65,6/8/2021
Commonwealth Edison,Utilities,40.1,6/8/2021
Commonwealth Edison,Utilities,44.09,6/8/2021
Commonwealth Edison,Utilities,26.92,6/8/2021
Commonwealth Edison,Utilities,169.67,6/8/2021
Commonwealth Edison,Utilities,143.65,6/8/2021
Commonwealth Edison,Utilities,24.62,6/8/2021
Commonwealth Edison,Utilities,529.4,6/8/2021
Commonwealth Edison,Utilities,238.39,6/8/2021
Commonwealth Edison,Utilities,28.81,6/8/2021
Commonwealth Edison,Utilities,42.87,6/10/2021
Commonwealth Edison,Utilities,48.21,6/10/2021
Commonwealth Edison,Utilities,62.88,6/10/2021
Commonwealth Edison,Utilities,74690.23,6/14/2021
Commonwealth Edison,Utilities,84.37,6/17/2021
Commonwealth Edison,Utilities,27.82,6/22/2021
Commonwealth Edison,Utilities,164236.58,6/23/2021
Commonwealth Edison,Utilities,162.47,7/6/2021
Commonwealth Edison,Utilities,30.99,7/6/2021
Commonwealth Edison,Utilities,1975.48,7/6/2021
Commonwealth Edison,Utilities,539.81,7/6/2021
Commonwealth Edison,Utilities,562.98,7/6/2021
Commonwealth Edison,Utilities,39.13,7/6/2021
Commonwealth Edison,Utilities,1017.74,7/6/2021
Commonwealth Edison,Utilities,24.72,7/6/2021
Commonwealth Edison,Utilities,148.11,7/6/2021
Commonwealth Edison,Utilities,169.74,7/6/2021
Commonwealth Edison,Utilities,141.34,7/6/2021
Commonwealth Edison,Utilities,199.61,7/6/2021
Commonwealth Edison,Utilities,41.64,7/6/2021
Commonwealth Edison,Utilities,35.44,7/6/2021
Commonwealth Edison,Utilities,24.38,7/6/2021
Commonwealth Edison,Utilities,49.98,7/6/2021
Commonwealth Edison,Utilities,87.9,7/6/2021
Commonwealth Edison,Utilities,167.13,7/8/2021
Commonwealth Edison,Utilities,24.72,7/8/2021
Commonwealth Edison,Utilities,97.73,7/8/2021
Commonwealth Edison,Utilities,32.41,7/8/2021
Commonwealth Edison,Utilities,71.06,7/8/2021
Commonwealth Edison,Utilities,501.8,7/8/2021
Commonwealth Edison,Utilities,43.87,7/8/2021
Commonwealth Edison,Utilities,74.8,7/8/2021
Commonwealth Edison,Utilities,105.9,7/8/2021
Commonwealth Edison,Utilities,117.39,7/8/2021
Commonwealth Edison,Utilities,106.77,7/8/2021
Commonwealth Edison,Utilities,50.63,7/8/2021
Commonwealth Edison,Utilities,65.52,7/8/2021
Commonwealth Edison,Utilities,26.85,7/21/2021
Commonwealth Edison,Utilities,141409.74,7/21/2021
Commonwealth Edison,Utilities,35.31,7/21/2021
Commonwealth Edison,Utilities,134.61,8/2/2021
Commonwealth Edison,Utilities,176.97,8/2/2021
Commonwealth Edison,Utilities,60.82,8/2/2021
Commonwealth Edison,Utilities,222.88,8/2/2021
Commonwealth Edison,Utilities,547.69,8/2/2021
Commonwealth Edison,Utilities,107.66,8/11/2021
Commonwealth Edison,Utilities,33.97,8/11/2021
Commonwealth Edison,Utilities,77249.72,8/12/2021
Commonwealth Edison,Utilities,156834.95,8/16/2021
Commonwealth Edison,Utilities,107.24,8/19/2021
Commonwealth Edison,Utilities,147.11,8/20/2021
Commonwealth Edison,Utilities,129.66,8/20/2021
Commonwealth Edison,Utilities,24.38,8/20/2021
Commonwealth Edison,Utilities,284.81,8/20/2021
Commonwealth Edison,Utilities,75986.41,9/3/2021
Commonwealth Edison,Utilities,210.27,9/7/2021
Commonwealth Edison,Utilities,28.9,9/7/2021
Commonwealth Edison,Utilities,1514.57,9/7/2021
Commonwealth Edison,Utilities,104.25,9/9/2021
Commonwealth Edison,Utilities,43.54,9/9/2021
Commonwealth Edison,Utilities,114.56,9/9/2021
Commonwealth Edison,Utilities,143.99,9/9/2021
Commonwealth Edison,Utilities,114.34,9/9/2021
Commonwealth Edison,Utilities,72.5,9/9/2021
Commonwealth Edison,Utilities,216.18,9/9/2021
Commonwealth Edison,Utilities,641.64,9/9/2021
Commonwealth Edison,Utilities,49.25,9/9/2021
Commonwealth Edison,Utilities,289.44,9/13/2021
Commonwealth Edison,Utilities,31.65,9/13/2021
Commonwealth Edison,Utilities,81.05,9/13/2021
Commonwealth Edison,Utilities,130.01,9/13/2021
Commonwealth Edison,Utilities,84.61,9/13/2021
Commonwealth Edison,Utilities,27.31,9/22/2021
Commonwealth Edison,Utilities,370.31,9/22/2021
Commonwealth Edison,Utilities,1754.9,9/22/2021
Commonwealth Edison,Utilities,309.25,9/22/2021
Commonwealth Edison,Utilities,564.69,9/22/2021
Commonwealth Edison,Utilities,116.81,9/22/2021
Commonwealth Edison,Utilities,150559.41,9/27/2021
Commonwealth Edison,Utilities,50.7,9/29/2021
Commonwealth Edison,Utilities,55.3,9/29/2021
Commonwealth Edison,Utilities,105.29,9/29/2021
Commonwealth Edison,Utilities,54.18,9/29/2021
Commonwealth Edison,Utilities,118.9,10/12/2021
Commonwealth Edison,Utilities,79.63,10/12/2021
Commonwealth Edison,Utilities,44.7,10/12/2021
Commonwealth Edison,Utilities,99.8,10/12/2021
Commonwealth Edison,Utilities,2214.1,10/12/2021
Commonwealth Edison,Utilities,148.96,10/12/2021
Commonwealth Edison,Utilities,186.62,10/12/2021
Commonwealth Edison,Utilities,905.94,10/12/2021
Commonwealth Edison,Utilities,102.07,10/12/2021
Commonwealth Edison,Utilities,214.34,10/12/2021
Commonwealth Edison,Utilities,30.06,10/12/2021
Commonwealth Edison,Utilities,376.89,10/13/2021
Commonwealth Edison,Utilities,54.67,10/13/2021
Commonwealth Edison,Utilities,600.64,10/13/2021
Commonwealth Edison,Utilities,198.76,10/13/2021
Commonwealth Edison,Utilities,117.45,10/13/2021
Commonwealth Edison,Utilities,644.11,10/13/2021
Commonwealth Edison,Utilities,32.41,10/13/2021
Commonwealth Edison,Utilities,79484.51,10/13/2021
Commonwealth Edison,Utilities,257.69,10/13/2021
Commonwealth Edison,Utilities,68.41,10/14/2021
Commonwealth Edison,Utilities,148.6,10/14/2021
Commonwealth Edison,Utilities,30,10/14/2021
Commonwealth Edison,Utilities,217.55,10/14/2021
Commonwealth Edison,Utilities,48.79,10/14/2021
Commonwealth Edison,Utilities,148701.84,10/21/2021
Commonwealth Edison,Utilities,24.38,10/26/2021
Commonwealth Edison,Utilities,259.55,10/26/2021
Commonwealth Edison,Utilities,69.34,10/26/2021
Commonwealth Edison,Utilities,158.41,11/1/2021
Commonwealth Edison,Utilities,92.67,11/1/2021
Commonwealth Edison,Utilities,2787.38,11/1/2021
Commonwealth Edison,Utilities,50.91,11/1/2021
Commonwealth Edison,Utilities,102.58,11/1/2021
Commonwealth Edison,Utilities,28.35,11/1/2021
Commonwealth Edison,Utilities,68557.03,11/3/2021
Commonwealth Edison,Utilities,762.59,11/12/2021
Commonwealth Edison,Utilities,77.1,11/12/2021
Commonwealth Edison,Utilities,435.24,11/12/2021
Commonwealth Edison,Utilities,24.72,11/12/2021
Commonwealth Edison,Utilities,30.39,11/12/2021
Commonwealth Edison,Utilities,89.18,11/12/2021
Commonwealth Edison,Utilities,162.18,11/12/2021
Commonwealth Edison,Utilities,34.29,11/12/2021
Commonwealth Edison,Utilities,25.53,11/15/2021
Commonwealth Edison,Utilities,80.09,11/15/2021
Commonwealth Edison,Utilities,168.32,11/15/2021
Commonwealth Edison,Utilities,80.66,11/15/2021
Commonwealth Edison,Utilities,200.78,11/15/2021
Commonwealth Edison,Utilities,606.5,11/15/2021
Commonwealth Edison,Utilities,173.07,11/15/2021
Commonwealth Edison,Utilities,139572.5,11/22/2021
Commonwealth Edison,Utilities,196.84,11/29/2021
Commonwealth Edison,Utilities,285.04,11/29/2021
Commonwealth Edison,Utilities,128.17,12/1/2021
Commonwealth Edison,Utilities,3054.94,12/1/2021
Commonwealth Edison,Utilities,191.41,12/1/2021
Commonwealth Edison,Utilities,151.51,12/1/2021
Commonwealth Edison,Utilities,24.38,12/10/2021
Commonwealth Edison,Utilities,50.99,12/10/2021
Commonwealth Edison,Utilities,580.13,12/10/2021
Commonwealth Edison,Utilities,88.49,12/10/2021
Commonwealth Edison,Utilities,73306.05,12/10/2021
Commonwealth Edison,Utilities,68.76,12/10/2021
Commonwealth Edison,Utilities,210.74,12/10/2021
Commonwealth Edison,Utilities,58.8,12/13/2021
Commonwealth Edison,Utilities,24.63,12/13/2021
Commonwealth Edison,Utilities,31.6,12/13/2021
Commonwealth Edison,Utilities,28.81,12/13/2021
Commonwealth Edison,Utilities,24.72,12/13/2021
Commonwealth Edison,Utilities,75.82,12/13/2021
Commonwealth Edison,Utilities,212.62,12/13/2021
Commonwealth Edison,Utilities,197.91,12/13/2021
Commonwealth Edison,Utilities,41.79,12/13/2021
Commonwealth Edison,Utilities,110110.84,12/16/2021
Commonwealth Edison,Utilities,3395.11,12/22/2021
Commonwealth Edison,Utilities,332.71,12/22/2021
Commonwealth Edison,Utilities,24.46,12/22/2021
Commonwealth Edison,Utilities,175.86,12/22/2021
Commonwealth Edison,Utilities,618.66,12/22/2021
Commonwealth Edison,Utilities,464.77,12/22/2021
Commonwealth Edison,Utilities,46.13,12/28/2021
Commonwealth Edison,Utilities,187.78,12/28/2021
Commonwealth Edison,Utilities,50.57,12/28/2021
Commonwealth Edison,Utilities,1020.13,12/28/2021
Commonwealth Edison,Utilities,107.6,12/28/2021
Commonwealth Edison,Utilities,24.72,12/28/2021
Commonwealth Edison,Utilities,314.42,12/28/2021
Commonwealth Edison,Utilities,366.1,12/29/2021
Commonwealth Edison,Utilities,227.47,12/29/2021
Commonwealth Edison,Utilities,156.36,12/29/2021
Commonwealth Edison,Utilities,822.01,12/29/2021
Commonwealth Edison,Utilities,112.92,12/29/2021
Commonwealth Edison,Utilities,87.15,12/29/2021
Commonwealth Edison,Utilities,37.82,12/29/2021
Commonwealth Edison Co.,Capital Purchases,1000,12/1/2021
Commonwealth Edison Co.,Capital Purchases,68258.83,12/1/2021
Commuter Rail Coalition,Services,30000,5/13/2021
Commuter Rail Construction Team Llc,Capital Purchases,100624.9,1/5/2021
Commuter Rail Construction Team Llc,Capital Purchases,5873.42,1/13/2021
Commuter Rail Construction Team Llc,Capital Purchases,2992.44,1/15/2021
Commuter Rail Construction Team Llc,Capital Purchases,57987.15,1/19/2021
Commuter Rail Construction Team Llc,Capital Purchases,59378.47,1/20/2021
Commuter Rail Construction Team Llc,Capital Purchases,2191.25,2/2/2021
Commuter Rail Construction Team Llc,Capital Purchases,6062.02,2/3/2021
Commuter Rail Construction Team Llc,Capital Purchases,31418.45,2/17/2021
Commuter Rail Construction Team Llc,Capital Purchases,8750.06,3/1/2021
Commuter Rail Construction Team Llc,Capital Purchases,83034.36,3/8/2021
Commuter Rail Construction Team Llc,Capital Purchases,69471.02,3/12/2021
Commuter Rail Construction Team Llc,Capital Purchases,65459.07,4/6/2021
Commuter Rail Construction Team Llc,Capital Purchases,36634.66,4/13/2021
Commuter Rail Construction Team Llc,Capital Purchases,26965.07,5/6/2021
Commuter Rail Construction Team Llc,Capital Purchases,62766.33,5/11/2021
Commuter Rail Construction Team Llc,Capital Purchases,3270.21,5/13/2021
Commuter Rail Construction Team Llc,Capital Purchases,6090.31,5/14/2021
Commuter Rail Construction Team Llc,Capital Purchases,59331.07,6/16/2021
Commuter Rail Construction Team Llc,Capital Purchases,2409.46,6/16/2021
Commuter Rail Construction Team Llc,Capital Purchases,5033.41,6/23/2021
Commuter Rail Construction Team Llc,Capital Purchases,53224.76,7/13/2021
Commuter Rail Construction Team Llc,Capital Purchases,20796.3,7/14/2021
Commuter Rail Construction Team Llc,Capital Purchases,25881.24,7/14/2021
Commuter Rail Construction Team Llc,Capital Purchases,4517.74,8/2/2021
Commuter Rail Construction Team Llc,Capital Purchases,63354.28,8/5/2021
Commuter Rail Construction Team Llc,Capital Purchases,17817.48,8/5/2021
Commuter Rail Construction Team Llc,Capital Purchases,109577.89,9/13/2021
Commuter Rail Construction Team Llc,Capital Purchases,8604.78,9/21/2021
Commuter Rail Construction Team Llc,Capital Purchases,13564.6,9/21/2021
Commuter Rail Construction Team Llc,Capital Purchases,66965.32,10/13/2021
Commuter Rail Construction Team Llc,Capital Purchases,22470.56,11/1/2021
Commuter Rail Construction Team Llc,Capital Purchases,6146.47,11/1/2021
Commuter Rail Construction Team Llc,Capital Purchases,6400.22,11/8/2021
Commuter Rail Construction Team Llc,Capital Purchases,4625.53,11/8/2021
Commuter Rail Construction Team Llc,Capital Purchases,3981.36,11/15/2021
Commuter Rail Construction Team Llc,Capital Purchases,3076.31,11/15/2021
Commuter Rail Construction Team Llc,Capital Purchases,82106.24,11/19/2021
Commuter Rail Construction Team Llc,Capital Purchases,69717.89,11/24/2021
Compass Minerals America Inc.,Materials,1411.03,1/19/2021
Compass Minerals America Inc.,Materials,3342.43,1/20/2021
Compass Minerals America Inc.,Materials,3318.68,2/2/2021
Compass Minerals America Inc.,Materials,3423.83,2/3/2021
Compass Minerals America Inc.,Materials,1770.73,2/3/2021
Compass Minerals America Inc.,Materials,1683.06,2/18/2021
Compass Minerals America Inc.,Materials,1641.99,2/18/2021
Compass Minerals America Inc.,Materials,1607.24,2/18/2021
Compass Minerals America Inc.,Materials,1600.92,2/22/2021
Compass Minerals America Inc.,Materials,1593.82,2/25/2021
Compass Minerals America Inc.,Materials,6366.58,2/26/2021
Compass Minerals America Inc.,Materials,6848.36,2/26/2021
Compass Minerals America Inc.,Materials,5174.62,2/26/2021
Compass Minerals America Inc.,Materials,1761.49,3/2/2021
Compass Minerals America Inc.,Materials,1725.71,3/4/2021
Compass Minerals America Inc.,Materials,1544.94,3/8/2021
Compass Minerals America Inc.,Materials,6471.62,3/8/2021
Compass Minerals America Inc.,Materials,3121.29,3/12/2021
Compass Minerals America Inc.,Materials,4647.18,3/15/2021
Compass Minerals America Inc.,Materials,3147.35,3/15/2021
Compass Minerals America Inc.,Materials,1670.43,3/16/2021
Compass Minerals America Inc.,Materials,1567.89,3/24/2021
Compass Minerals America Inc.,Materials,1722.55,3/24/2021
Compass Minerals America Inc.,Materials,1745.46,8/24/2021
Computer Aid  Inc.,Services,129667.88,1/5/2021
Computer Aid  Inc.,Services,179480.54,1/20/2021
Computer Aid  Inc.,Services,228098.43,2/22/2021
Computer Aid  Inc.,Services,228098.43,3/4/2021
Computer Aid  Inc.,Services,231694.4,4/6/2021
Computer Aid  Inc.,Services,95932.78,4/13/2021
Computer Aid  Inc.,Services,231694.4,5/5/2021
Computer Aid  Inc.,Services,206539.2,6/7/2021
Computer Aid  Inc.,Services,25155.2,6/8/2021
Computer Aid  Inc.,Services,25901.85,6/16/2021
Computer Aid  Inc.,Services,231694.4,7/12/2021
Computer Aid  Inc.,Services,231694.4,8/3/2021
Computer Aid  Inc.,Services,172384.18,9/21/2021
Computer Aid  Inc.,Services,48267.2,9/22/2021
Computer Aid  Inc.,Services,231694.4,10/26/2021
Computer Aid  Inc.,Services,183427.2,11/2/2021
Computer Aid  Inc.,Services,25155.2,12/1/2021
Computer Aid  Inc.,Capital Purchases,108000,12/1/2021
Computer Aid  Inc.,Services,206539.2,12/1/2021
Computer Sciences Corp,Capital Purchases,2651.8,1/11/2021
Computer Sciences Corp,Services,72365,4/6/2021
Computer Sciences Corp,Services,48200,11/24/2021
Comto,Services,250,12/14/2021
Constance Valkan,Services,570,7/26/2021
Constance Valkan,Services,29.25,7/26/2021
Constance Valkan,Services,2589,8/30/2021
Constance Valkan,Services,1165.5,8/30/2021
Constance Valkan,Services,3088.2,11/1/2021
Constance Valkan,Services,3325,11/12/2021
Constance Valkan,Services,1314,11/15/2021
Constance Valkan,Services,777,11/15/2021
Constance Valkan,Services,945,11/19/2021
Constance Valkan,Claims & Insurance,809,11/19/2021
Convergint Technologies  Llc,Services,492,1/25/2021
Cook County Bar Association,Services,200,12/14/2021
Cook County Clerk,Capital Purchases,950000,12/1/2021
Cook County Sheriffs Police Finance Dept. Rm 106,Services,237097.5,1/5/2021
Cook County Sheriffs Police Finance Dept. Rm 106,Services,247047.75,3/30/2021
Cook County Treasurer,Capital Purchases,950000,12/9/2021
Cook County Treasurer,Services,296906.14,12/23/2021
Cook County Treasurer,Services,24403.34,12/23/2021
Cook County Treasurer,Services,104659.5,12/23/2021
Corys Inc.,Services,7375,1/5/2021
Corys Inc.,Services,7375,1/20/2021
Corys Inc.,Services,7375,2/3/2021
Corys Inc.,Services,7375,3/4/2021
Corys Inc.,Services,6600,3/17/2021
Corys Inc.,Services,7375,4/19/2021
Corys Inc.,Services,7375,5/17/2021
Corys Inc.,Services,7375,6/16/2021
Corys Inc.,Services,7375,7/14/2021
Corys Inc.,Services,7375,8/16/2021
Corys Inc.,Services,7375,9/22/2021
Corys Inc.,Services,7375,11/2/2021
Corys Inc.,Services,7375,12/2/2021
"CPS Chicago Parking , LLC",Services,30000,2/3/2021
"CPS Chicago Parking , LLC",Services,126141.57,3/3/2021
"CPS Chicago Parking , LLC",Services,380422.21,3/12/2021
"CPS Chicago Parking , LLC",Services,60000,3/18/2021
"CPS Chicago Parking , LLC",Services,30000,4/1/2021
"CPS Chicago Parking , LLC",Services,30000,5/3/2021
"CPS Chicago Parking , LLC",Services,29011.76,6/2/2021
"CPS Chicago Parking , LLC",Services,29662.63,7/1/2021
"CPS Chicago Parking , LLC",Services,90995.62,7/7/2021
"CPS Chicago Parking , LLC",Services,19318,7/28/2021
"CPS Chicago Parking , LLC",Services,17541.19,8/31/2021
"CPS Chicago Parking , LLC",Services,15334.52,10/7/2021
"CPS Chicago Parking , LLC",Services,10199.22,12/30/2021
"CR Quality Services, Inc.",Services,619.76,4/21/2021
"CR Quality Services, Inc.",Services,645.89,5/10/2021
"CR Quality Services, Inc.",Capital Purchases,3098.36,5/10/2021
"CR Quality Services, Inc.",Capital Purchases,643.44,5/12/2021
"CR Quality Services, Inc.",Services,534.35,6/8/2021
Craig D Gavril,Services,66,12/1/2021
Craig D Gavril,Services,16.69,12/1/2021
Craig D Gavril,Services,715.84,12/1/2021
Craig D Gavril,Services,172.5,12/1/2021
Craig D. Gavril,Services,715.84,12/1/2021
Craig D. Gavril,Services,66,12/1/2021
Craig D. Gavril,Services,172.5,12/1/2021
Craig D. Gavril,Services,16.69,12/1/2021
Crains Chicago Business,Services,169,6/28/2021
Cranemasters Inc.,Services,85.08,3/25/2021
Cranemasters Inc.,Services,5861.25,3/25/2021
Cranemasters Inc.,Services,6744.15,7/14/2021
Critical Reach,Services,1128,6/9/2021
Crosstown Consulting Associates LLC,Claims & Insurance,4395,10/12/2021
Crosstown Consulting Associates LLC,Claims & Insurance,3573,10/12/2021
Crowe LLP,Capital Purchases,628000,2/17/2021
Crowe LLP,Capital Purchases,280000,2/18/2021
Crowe LLP,Capital Purchases,192983.79,2/19/2021
Crowe LLP,Capital Purchases,296000,2/19/2021
Crowe LLP,Capital Purchases,14916.21,2/19/2021
Crowe LLP,Services,196571.25,3/2/2021
Crowe LLP,Services,4140,3/2/2021
Crowe LLP,Services,23445,3/4/2021
Crowe LLP,Services,57500,3/12/2021
Crowe LLP,Capital Purchases,91000,4/20/2021
Crowe LLP,Capital Purchases,42699.64,4/20/2021
Crowe LLP,Capital Purchases,3300.36,4/20/2021
Crowe LLP,Services,36990,5/24/2021
Crowe LLP,Services,28875,6/17/2021
Crowe LLP,Capital Purchases,214000,7/2/2021
Crowe LLP,Services,23905.01,7/2/2021
Crowe LLP,Capital Purchases,285000,7/26/2021
Crowe LLP,Capital Purchases,90000,8/10/2021
Crowe LLP,Services,31668.64,8/16/2021
Crowe LLP,Capital Purchases,255000,8/16/2021
Crowe LLP,Capital Purchases,240000,8/16/2021
Crowe LLP,Services,17369.66,9/13/2021
Crowe LLP,Capital Purchases,96000,9/13/2021
Crowe LLP,Capital Purchases,240000,9/13/2021
Crowe LLP,Capital Purchases,240000,10/20/2021
Crowe LLP,Capital Purchases,96000,10/20/2021
Crowe LLP,Services,21680.21,11/19/2021
Crown Battery Mfg. Co.,Materials,53300,2/16/2021
Crown Battery Mfg. Co.,Materials,333,3/29/2021
Crown Battery Mfg. Co.,Materials,510,3/29/2021
Crown Battery Mfg. Co.,Materials,1470,4/13/2021
Crown Battery Mfg. Co.,Materials,31980,5/17/2021
Crown Battery Mfg. Co.,Materials,63960,5/24/2021
Crown Battery Mfg. Co.,Materials,2450,6/23/2021
Crown Battery Mfg. Co.,Materials,31980,7/28/2021
Crown Battery Mfg. Co.,Materials,1225,8/24/2021
Crown Battery Mfg. Co.,Materials,300,9/13/2021
Crown Battery Mfg. Co.,Materials,666,9/21/2021
Crown Battery Mfg. Co.,Materials,42640,11/2/2021
Crown Battery Mfg. Co.,Materials,53300,11/5/2021
Crown Battery Mfg. Co.,Materials,490,11/11/2021
Crown Battery Mfg. Co.,Materials,31980,12/17/2021
Csx Transportation Inc.,Rental Expense,8010.3,1/22/2021
Cubic-Transportation Systems  Inc.,Services,24404.51,1/4/2021
Cubic-Transportation Systems  Inc.,Services,26851.5,1/4/2021
Cubic-Transportation Systems  Inc.,Services,27015.05,2/4/2021
Cubic-Transportation Systems  Inc.,Services,23775.2,2/4/2021
Cubic-Transportation Systems  Inc.,Services,26573.04,3/3/2021
Cubic-Transportation Systems  Inc.,Services,28522.43,3/3/2021
Cubic-Transportation Systems  Inc.,Services,26905.7,3/23/2021
Cubic-Transportation Systems  Inc.,Services,28091.55,3/23/2021
Cubic-Transportation Systems  Inc.,Services,37392.38,5/6/2021
Cubic-Transportation Systems  Inc.,Services,34520.43,5/6/2021
Cubic-Transportation Systems  Inc.,Services,44540.1,6/8/2021
Cubic-Transportation Systems  Inc.,Services,41974.37,6/8/2021
Cubic-Transportation Systems  Inc.,Services,63151.25,7/12/2021
Cubic-Transportation Systems  Inc.,Services,54423.05,7/12/2021
Cubic-Transportation Systems  Inc.,Services,98821.83,8/5/2021
Cubic-Transportation Systems  Inc.,Services,86524.31,8/5/2021
Cubic-Transportation Systems  Inc.,Services,137695.83,8/16/2021
Cubic-Transportation Systems  Inc.,Services,108035.92,8/16/2021
Cubic-Transportation Systems  Inc.,Services,141802.56,9/23/2021
Cubic-Transportation Systems  Inc.,Services,106348.01,9/23/2021
Cubic-Transportation Systems  Inc.,Services,164515.31,12/1/2021
Cubic-Transportation Systems  Inc.,Services,108231.79,12/1/2021
Curt A. Otero,Services,41.24,1/27/2021
Cynthia Leonard,Services,34.5,1/20/2021
Cynthia Leonard,Services,52.9,1/20/2021
Cynthia Leonard,Services,33.6,2/17/2021
Cynthia Leonard,Services,67.2,2/17/2021
Cynthia Leonard,Services,136.64,3/8/2021
Cynthia Leonard,Services,33.6,3/8/2021
Cynthia Leonard,Services,33.6,4/13/2021
Cynthia Leonard,Services,33.6,4/13/2021
Cynthia Leonard,Services,33.6,5/7/2021
Cynthia Leonard,Services,91.84,5/7/2021
Cynthia Leonard,Services,196,6/14/2021
Cynthia Leonard,Services,114.46,7/15/2021
Cynthia Leonard,Services,67.2,7/15/2021
Cynthia Leonard,Services,224,8/5/2021
Cynthia Leonard,Services,47.04,11/17/2021
Cynthia Leonard,Services,329.28,12/13/2021
Cyrus Rab,Claims & Insurance,1686.85,11/15/2021
Dache Mann,Claims & Insurance,350,5/25/2021
Dacra Adjudication Systems LLC dba Dacra Tech LLC,Capital Purchases,1500,1/27/2021
Dacra Adjudication Systems LLC dba Dacra Tech LLC,Capital Purchases,1500,2/19/2021
Dacra Adjudication Systems LLC dba Dacra Tech LLC,Capital Purchases,1500,3/4/2021
Dacra Adjudication Systems LLC dba Dacra Tech LLC,Capital Purchases,1500,4/14/2021
Dacra Adjudication Systems LLC dba Dacra Tech LLC,Capital Purchases,1500,5/14/2021
Dacra Adjudication Systems LLC dba Dacra Tech LLC,Services,1750,6/29/2021
Dacra Adjudication Systems LLC dba Dacra Tech LLC,Services,1750,7/21/2021
Dacra Adjudication Systems LLC dba Dacra Tech LLC,Services,1750,8/3/2021
Dacra Adjudication Systems LLC dba Dacra Tech LLC,Services,1750,10/21/2021
